Workbook

Sheet Feuil1
A1: =TODAY() -> 2013-03-12 | B1: X | E1: =E58 -> 2012-01-31 | F1: MAMMI ALIMENTATION GENERALE
B2: DSGSD | E2: 2012-02-29
B3: تقــــــــــــــــــــرير ديون الموردون لسنة 2013 | E3: 2012-03-31
B4: X | E4: 2012-04-30
B5: X | E5: 2012-05-31
B6: X | E6: 2012-06-30
B7: X | E7: 2012-07-31
B8: X | E8: 2012-08-31
B9: X | C9: الى غاية: | D9: =EOMONTH($A$1,0) -> 2013-03-31 | E9: 2012-09-30
B10: X | E10: 2012-10-31
A11: N° | B11: FOURNISSEURS | C11: MONTANT | D11: OBSERVATIONS | E11: 2012-11-30
A12: 1 | B12: محمد للمواد الغدائية | C12: =Feuil2!$H$1 -> 1723409.2 | E12: 2012-12-31
A13: =+A12+1 -> 2 | B13: علي للخضر والفواكه | C13: =Feuil3!$H$1 -> 375796 | D13: -
A14: =+A13+1 -> 3 | B14: احمد لللحوم | C14: =Feuil4!$H$1 -> 553251 | D14: -
A15: 4 | B15: فريد للفلترات بانواعها | C15: =Feuil5!$H$1 -> 69600 | D15: -
A16: 5 | B16: خالد لمواد البناء | C16: =Feuil6!$H$1 -> 977214.5 | D16: -
A17: 6 | B17: H2PL | C17: =Feuil7!$H$1 -> 412140.94 | D17: -
A18: 7 | B18: REMLI MENUISIER | C18: =Feuil8!$H$1 -> 54204 | D18: -
A19: 8 | B19: SARL GUEZEI MULTI SERVUCES | C19: =Feuil9!$H$1 -> 82375 | D19: -
A20: 9 | B20: STATION AFRIC DIESEL | C20: =Feuil10!$H$1 -> 0 | D20: -
A21: 10 | B21: EL ATHIR | C21: =Feuil11!$H$1 -> 0
A22: 11 | C22: =Feuil12!$H$1 -> 0
A23: 12 | C23: =Feuil13!$H$1 -> 0
A24: 13 | C24: =Feuil14!$H$1 -> 0
A25: 14 | C25: =Feuil15!$H$1 -> 0
A26: 15 | C26: =Feuil16!$H$1 -> 0
A27: 16 | C27: =Feuil17!$H$1 -> 0
A28: 17 | C28: =Feuil18!$H$1 -> 0
A29: 18 | C29: =Feuil19!$H$1 -> 0
A30: 19 | C30: =Feuil20!$H$1 -> 0
A31: 20 | C31: =Feuil21!$H$1 -> 0
B32: =D9 -> 2013-03-31 | C32: =SUM(C12:C31) -> 4247990.64 | D32: -
B51: ETAT DES DETTES 2013
C57: au | D57: 2012-05-31 | E57: MOID
E58: 2012-01-31
A59: N° | B59: FOURNISSEURS | C59: MONTANT | D59: OBSERVATIONS | E59: 2012-02-29
A60: 1 | B60: =B12 -> محمد للمواد الغدائية | C60: =VLOOKUP($D$57,Feuil2!$L$4:$R$16,7,0) -> 1369975.2 | E60: 2012-03-31
A61: =+A60+1 -> 2 | B61: =B13 -> علي للخضر والفواكه | C61: =VLOOKUP($D$57,Feuil3!$L$4:$R$16,7,0) -> 233595 | D61: - | E61: 2012-04-30
A62: =+A61+1 -> 3 | B62: احمد لللحوم | C62: =VLOOKUP($D$57,Feuil4!$L$4:$R$16,7,0) -> 332126 | D62: - | E62: 2012-05-31
A63: 4 | B63: فريد للفلترات بانواعها | C63: =VLOOKUP($D$57,Feuil5!$L$4:$R$16,7,0) -> 69600 | D63: - | E63: 2012-06-30
A64: 5 | B64: خالد لمواد البناء | C64: =VLOOKUP($D$57,Feuil6!$L$4:$R$16,7,0) -> 977214.5 | D64: - | E64: 2012-07-31
A65: 6 | B65: H2PL | C65: =VLOOKUP($D$57,Feuil7!$L$4:$R$16,7,0) -> 365660.18 | D65: - | E65: 2012-08-31
A66: 7 | B66: REMLI MENUISIER | C66: =VLOOKUP($D$57,Feuil8!$L$4:$R$16,7,0) -> 54204 | D66: - | E66: 2012-09-30
A67: 8 | B67: SARL GUEZEI MULTI SERVUCES | C67: =VLOOKUP($D$57,Feuil9!$L$4:$R$16,7,0) -> 0 | D67: - | E67: 2012-10-31
A68: 9 | B68: STATION AFRIC DIESEL | C68: =VLOOKUP($D$57,Feuil10!$L$4:$R$16,7,0) -> 0 | D68: - | E68: 2012-11-30
A69: 10 | B69: EL ATHIR | C69: =VLOOKUP($D$57,Feuil11!$L$4:$R$16,7,0) -> 0 | E69: 2012-12-31
A70: 11 | B70: 0 | C70: =VLOOKUP($D$57,Feuil12!$L$4:$R$16,7,0) -> 0
A71: 12 | B71: 0 | C71: =VLOOKUP($D$57,Feuil13!$L$4:$R$16,7,0) -> 0
A72: 13 | B72: 0 | C72: =VLOOKUP($D$57,Feuil14!$L$4:$R$16,7,0) -> 0
A73: 14 | B73: 0 | C73: =VLOOKUP($D$57,Feuil15!$L$4:$R$16,7,0) -> 0
A74: 15 | B74: 0 | C74: =VLOOKUP($D$57,Feuil16!$L$4:$R$16,7,0) -> 0
A75: 16 | B75: 0 | C75: =VLOOKUP($D$57,Feuil17!$L$4:$R$16,7,0) -> 0
A76: 17 | B76: 0 | C76: =VLOOKUP($D$57,Feuil18!$L$4:$R$16,7,0) -> 0
A77: 18 | B77: 0 | C77: =VLOOKUP($D$57,Feuil19!$L$4:$R$16,7,0) -> 0
A78: 19 | B78: 0 | C78: =VLOOKUP($D$57,Feuil20!$L$4:$R$16,7,0) -> 0
A79: 20 | B79: 0 | C79: =VLOOKUP($D$57,Feuil21!$L$4:$R$16,7,0) -> 0
B80: =D57 -> 2012-05-31 | C80: =SUM(C60:C79) -> 3402374.88 | D80: -

Sheet Feuil2
A1: 2013-02-04 | B1: =Feuil1!B12 -> محمد للمواد الغدائية | G1: 2012-12-01 | H1: =SUM(B:B) -> 1723409.2 | L1: =MONTH(G1) -> 12
A2: 78520
A3: التاريخ | B3: المبلغ | C3: رقم الوصل | D3: نهاية الشهر | E3: مجموع نهاية الشهر | F3: المجموع الكلي | L3: FIN MOID | M3: SOME MOID | O3: DATE AVONCE | P3: MONTENT AVONCE | R3: TOTAL
A4: 2012-12-31 | B4: 1369975.2 | D4: 2012-12-31 | F4: =B4 -> 1369975.2 | M4: =F4 -> 1369975.2
A5: 2013-01-05 | B5: 56120 | C5: 1 | D5: =IF(B5<0,"",IF(AND(D4<>"",EOMONTH(A4,0)=EOMONTH(A5,0)),"",IF(AND(G5<>G6,D4=EOMONTH(A4,0)),EOMONTH(A5,0),IF(G5=G6,"",IF(G5=$L$1,EOMONTH($G$1,0),IF(AND(G5<>G6,G5<>H5),EOMONTH(A4,0),"")))))) ->  | E5: =IF(G5=G6,"",IF(D5="","",SUMIF(G:G,G5,B:B))) ->  | F5: =IF(OR(D5=EOMONTH(A5,0),B5<0),SUM($B$4:B5),"") ->  | G5: =IF(A5="","",IF(B5>0,MONTH(A5),"a")) -> 1 | H5: =IF(G5="a","a","") ->  | I5: =IF(J5<>"",MONTH(J5),"") ->  | J5: =IF(G5="a",A5,"") ->  | K5: =IF(G5="a",B5,"") ->  | L5: 2012-01-31 | M5: =IFERROR(VLOOKUP(L5,D:E,2,0),"0") -> 0 | N5: =IF(P5<0,SUM($M$4:M5,P5),SUM($M$4:M5)) -> 1369975.2 | O5: =IFERROR(VLOOKUP(MONTH(L5),I:K,2,0),"") ->  | P5: =IFERROR(VLOOKUP(MONTH(L5),I:K,3,0),"") ->  | Q5: =IFERROR(P5+N5,"") ->  | R5: =N5 -> 1369975.2
A6: 2013-01-05 | B6: 9570 | C6: =IF(A6="","",IF(C5="",C4+1,IF(G6="a","",C5+1))) -> 2 | F6: =IF(OR(D6=EOMONTH(A6,0),B6<0),SUM($B$4:B6),"") ->  | G6: =IF(A6="","",IF(B6>0,MONTH(A6),"a")) -> 1 | H6: =IF(G6="a","a","") ->  | I6: =IF(J6<>"",MONTH(J6),"") ->  | J6: =IF(G6="a",A6,"") ->  | K6: =IF(G6="a",B6,"") ->  | L6: 2012-02-29 | M6: =IFERROR(VLOOKUP(L6,D:E,2,0),"0") -> 0 | N6: =IF(P6<0,SUM($M$4:M6,P6),SUM($M$4:M6)) -> 1369975.2 | O6: =IFERROR(VLOOKUP(MONTH(L6),I:K,2,0),"") ->  | P6: =IFERROR(VLOOKUP(MONTH(L6),I:K,3,0),"") ->  | Q6: =IFERROR(P6+N6,"") ->  | R6: =IFERROR(R5+M6+P6,R5+M6) -> 1369975.2
A7: 2013-01-17 | B7: 10465 | C7: =IF(A7="","",IF(C6="",C5+1,IF(G7="a","",C6+1))) -> 3 | F7: =IF(OR(D7=EOMONTH(A7,0),B7<0),SUM($B$4:B7),"") ->  | G7: 1 | L7: 2012-03-31 | M7: 0 | N7: =IF(P7<0,SUM($M$4:M7,P7),SUM($M$4:M7)) -> 1369975.2 | R7: =IFERROR(R6+M7+P7,R6+M7) -> 1369975.2
A8: 2013-01-21 | B8: 87635 | C8: 4 | F8: =IF(OR(D8=EOMONTH(A8,0),B8<0),SUM($B$4:B8),"") ->  | G8: 1 | L8: 2012-04-30 | M8: 0 | N8: =IF(P8<0,SUM($M$4:M8,P8),SUM($M$4:M8)) -> 1369975.2 | R8: 1369975.2
A9: 2013-01-23 | B9: 11160 | C9: 5 | F9: =IF(OR(D9=EOMONTH(A9,0),B9<0),SUM($B$4:B9),"") ->  | G9: 1 | L9: 2012-05-31 | M9: 0 | N9: =IF(P9<0,SUM($M$4:M9,P9),SUM($M$4:M9)) -> 1369975.2 | R9: 1369975.2
A10: 2013-01-24 | B10: 20700 | C10: 6 | D10: 2013-01-31 | E10: 195650 | F10: =IF(OR(D10=EOMONTH(A10,0),B10<0),SUM($B$4:B10),"") -> 1565625.2 | G10: 1 | L10: 2012-06-30 | M10: 0 | N10: =IF(P10<0,SUM($M$4:M10,P10),SUM($M$4:M10)) -> 1369975.2 | R10: 1369975.2
A11: 2013-02-04 | B11: 78520 | C11: 7 | F11: =IF(OR(D11=EOMONTH(A11,0),B11<0),SUM($B$4:B11),"") ->  | G11: 2 | L11: 2012-07-31 | M11: 0 | N11: =IF(P11<0,SUM($M$4:M11,P11),SUM($M$4:M11)) -> 1369975.2 | R11: 1369975.2
A12: 2013-02-06 | B12: 7850 | C12: 8 | F12: =IF(OR(D12=EOMONTH(A12,0),B12<0),SUM($B$4:B12),"") ->  | G12: 2 | L12: 2012-08-31 | M12: 0 | N12: =IF(P12<0,SUM($M$4:M12,P12),SUM($M$4:M12)) -> 1369975.2 | R12: 1369975.2
A13: 2013-02-18 | B13: 62079 | C13: 9 | F13: =IF(OR(D13=EOMONTH(A13,0),B13<0),SUM($B$4:B13),"") ->  | G13: 2 | L13: 2012-09-30 | M13: 0 | N13: =IF(P13<0,SUM($M$4:M13,P13),SUM($M$4:M13)) -> 1369975.2 | R13: 1369975.2
A14: 2013-02-20 | B14: 9335 | C14: 10 | D14: 2013-02-28 | E14: 157784 | F14: =IF(OR(D14=EOMONTH(A14,0),B14<0),SUM($B$4:B14),"") -> 1723409.2 | G14: 2 | L14: 2012-10-31 | M14: 0 | N14: =IF(P14<0,SUM($M$4:M14,P14),SUM($M$4:M14)) -> 1369975.2 | R14: 1369975.2
F15: =IF(OR(D15=EOMONTH(A15,0),B15<0),SUM($B$4:B15),"") ->  | L15: 2012-11-30 | M15: 0 | N15: =IF(P15<0,SUM($M$4:M15,P15),SUM($M$4:M15)) -> 1369975.2 | R15: 1369975.2
F16: =IF(OR(D16=EOMONTH(A16,0),B16<0),SUM($B$4:B16),"") ->  | L16: 2012-12-31 | M16: 0 | N16: =IF(P16<0,SUM($M$4:M16,P16),SUM($M$4:M16)) -> 1369975.2 | R16: 1369975.2
F17: =IF(OR(D17=EOMONTH(A17,0),B17<0),SUM($B$4:B17),"") ->  | R17: =R16-H1 -> -353434
F18: =IF(OR(D18=EOMONTH(A18,0),B18<0),SUM($B$4:B18),"") ->  | L18: =IF(D4=EOMONTH(D4,0),1,0) -> 1
F19: =IF(OR(D19=EOMONTH(A19,0),B19<0),SUM($B$4:B19),"") ->  | L19: =IF(B4<0,1,0) -> 0
F20: =IF(OR(D20=EOMONTH(A20,0),B20<0),SUM($B$4:B20),"") -> 
F21: =IF(OR(D21=EOMONTH(A21,0),B21<0),SUM($B$4:B21),"") -> 
F22: =IF(OR(D22=EOMONTH(A22,0),B22<0),SUM($B$4:B22),"") ->  | R22: =IFERROR(Q22+O22,"") -> 0
F23: =IF(OR(D23=EOMONTH(A23,0),B23<0),SUM($B$4:B23),"") -> 
F24: =IF(OR(D24=EOMONTH(A24,0),B24<0),SUM($B$4:B24),"") -> 
F25: =IF(OR(D25=EOMONTH(A25,0),B25<0),SUM($B$4:B25),"") -> 
F26: =IF(OR(D26=EOMONTH(A26,0),B26<0),SUM($B$4:B26),"") -> 
F27: =IF(OR(D27=EOMONTH(A27,0),B27<0),SUM($B$4:B27),"") -> 
F28: =IF(OR(D28=EOMONTH(A28,0),B28<0),SUM($B$4:B28),"") -> 
F29: =IF(OR(D29=EOMONTH(A29,0),B29<0),SUM($B$4:B29),"") -> 
F30: =IF(OR(D30=EOMONTH(A30,0),B30<0),SUM($B$4:B30),"") -> 
F31: =IF(OR(D31=EOMONTH(A31,0),B31<0),SUM($B$4:B31),"") -> 
F32: =IF(OR(D32=EOMONTH(A32,0),B32<0),SUM($B$4:B32),"") -> 
F33: =IF(OR(D33=EOMONTH(A33,0),B33<0),SUM($B$4:B33),"") -> 
F34: =IF(OR(D34=EOMONTH(A34,0),B34<0),SUM($B$4:B34),"") -> 
F35: =IF(OR(D35=EOMONTH(A35,0),B35<0),SUM($B$4:B35),"") -> 
F36: =IF(OR(D36=EOMONTH(A36,0),B36<0),SUM($B$4:B36),"") -> 
F37: =IF(OR(D37=EOMONTH(A37,0),B37<0),SUM($B$4:B37),"") -> 
F38: =IF(OR(D38=EOMONTH(A38,0),B38<0),SUM($B$4:B38),"") -> 
F39: =IF(OR(D39=EOMONTH(A39,0),B39<0),SUM($B$4:B39),"") -> 
F40: =IF(OR(D40=EOMONTH(A40,0),B40<0),SUM($B$4:B40),"") -> 
F41: =IF(OR(D41=EOMONTH(A41,0),B41<0),SUM($B$4:B41),"") -> 
F42: =IF(OR(D42=EOMONTH(A42,0),B42<0),SUM($B$4:B42),"") -> 
F43: =IF(OR(D43=EOMONTH(A43,0),B43<0),SUM($B$4:B43),"") -> 
F44: =IF(OR(D44=EOMONTH(A44,0),B44<0),SUM($B$4:B44),"") -> 
F45: =IF(OR(D45=EOMONTH(A45,0),B45<0),SUM($B$4:B45),"") -> 
F46: =IF(OR(D46=EOMONTH(A46,0),B46<0),SUM($B$4:B46),"") -> 
F47: =IF(OR(D47=EOMONTH(A47,0),B47<0),SUM($B$4:B47),"") -> 
F48: =IF(OR(D48=EOMONTH(A48,0),B48<0),SUM($B$4:B48),"") -> 
F49: =IF(OR(D49=EOMONTH(A49,0),B49<0),SUM($B$4:B49),"") -> 
F50: =IF(OR(D50=EOMONTH(A50,0),B50<0),SUM($B$4:B50),"") -> 
F51: =IF(OR(D51=EOMONTH(A51,0),B51<0),SUM($B$4:B51),"") -> 
F52: =IF(OR(D52=EOMONTH(A52,0),B52<0),SUM($B$4:B52),"") -> 
F53: =IF(OR(D53=EOMONTH(A53,0),B53<0),SUM($B$4:B53),"") -> 
F54: =IF(OR(D54=EOMONTH(A54,0),B54<0),SUM($B$4:B54),"") -> 
F55: =IF(OR(D55=EOMONTH(A55,0),B55<0),SUM($B$4:B55),"") -> 
F56: =IF(OR(D56=EOMONTH(A56,0),B56<0),SUM($B$4:B56),"") -> 
F57: =IF(OR(D57=EOMONTH(A57,0),B57<0),SUM($B$4:B57),"") -> 
F58: =IF(OR(D58=EOMONTH(A58,0),B58<0),SUM($B$4:B58),"") -> 
F59: =IF(OR(D59=EOMONTH(A59,0),B59<0),SUM($B$4:B59),"") -> 
F60: =IF(OR(D60=EOMONTH(A60,0),B60<0),SUM($B$4:B60),"") -> 
F61: =IF(OR(D61=EOMONTH(A61,0),B61<0),SUM($B$4:B61),"") -> 
F62: =IF(OR(D62=EOMONTH(A62,0),B62<0),SUM($B$4:B62),"") -> 
F63: =IF(OR(D63=EOMONTH(A63,0),B63<0),SUM($B$4:B63),"") ->  | H63: =IF(G63="a","a","") -> 
F64: =IF(OR(D64=EOMONTH(A64,0),B64<0),SUM($B$4:B64),"") -> 
F65: =IF(OR(D65=EOMONTH(A65,0),B65<0),SUM($B$4:B65),"") -> 
F66: =IF(OR(D66=EOMONTH(A66,0),B66<0),SUM($B$4:B66),"") -> 
F67: =IF(OR(D67=EOMONTH(A67,0),B67<0),SUM($B$4:B67),"") -> 
F68: =IF(OR(D68=EOMONTH(A68,0),B68<0),SUM($B$4:B68),"") -> 
D69: =IF(B69<0,"",IF(AND(D68<>"",EOMONTH(A68,0)=EOMONTH(A69,0)),"",IF(AND(G69<>G70,D68=EOMONTH(A68,0)),EOMONTH(A69,0),IF(G69=G70,"",IF(G69=$L$1,EOMONTH($G$1,0),IF(AND(G69<>G70,G69<>H69),EOMONTH(A68,0),"")))))) ->  | F69: =IF(OR(D69=EOMONTH(A69,0),B69<0),SUM($B$4:B69),"") -> 
E70: =IF(G70=G71,"",IF(D70="","",SUMIF(G:G,G70,B:B))) ->  | F70: =IF(OR(D70=EOMONTH(A70,0),B70<0),SUM($B$4:B70),"") ->  | G70: =IF(A70="","",IF(B70>0,MONTH(A70),"a")) ->  | H70: =IF(G70="a","a","") ->  | I70: =IF(J70<>"",MONTH(J70),"") ->  | J70: =IF(G70="a",A70,"") ->  | K70: =IF(G70="a",B70,"") -> 
C71: =IF(A71="","",IF(C70="",C69+1,IF(G71="a","",C70+1))) ->  | F71: =IF(OR(D71=EOMONTH(A71,0),B71<0),SUM($B$4:B71),"") -> 
F72: =IF(OR(D72=EOMONTH(A72,0),B72<0),SUM($B$4:B72),"") -> 
F73: =IF(OR(D73=EOMONTH(A73,0),B73<0),SUM($B$4:B73),"") -> 
F74: =IF(OR(D74=EOMONTH(A74,0),B74<0),SUM($B$4:B74),"") -> 
F75: =IF(OR(D75=EOMONTH(A75,0),B75<0),SUM($B$4:B75),"") -> 
F76: =IF(OR(D76=EOMONTH(A76,0),B76<0),SUM($B$4:B76),"") -> 
F77: =IF(OR(D77=EOMONTH(A77,0),B77<0),SUM($B$4:B77),"") -> 
E78: =IF(G78=G79,"",IF(D78="","",SUMIF(G:G,G78,B:B))) ->  | F78: =IF(OR(D78=EOMONTH(A78,0),B78<0),SUM($B$4:B78),"") -> 
F79: =IF(OR(D79=EOMONTH(A79,0),B79<0),SUM($B$4:B79),"") -> 
F80: =IF(OR(D80=EOMONTH(A80,0),B80<0),SUM($B$4:B80),"") -> 
F81: =IF(OR(D81=EOMONTH(A81,0),B81<0),SUM($B$4:B81),"") -> 
F82: =IF(OR(D82=EOMONTH(A82,0),B82<0),SUM($B$4:B82),"") -> 
F83: =IF(OR(D83=EOMONTH(A83,0),B83<0),SUM($B$4:B83),"") ->  | J83: =IF(G83="a",A83,"") ->  | K83: =IF(G83="a",B83,"") -> 
E84: =IF(G84=G85,"",IF(D84="","",SUMIF(G:G,G84,B:B))) ->  | F84: =IF(OR(D84=EOMONTH(A84,0),B84<0),SUM($B$4:B84),"") ->  | G84: =IF(A84="","",IF(B84>0,MONTH(A84),"a")) ->  | J84: =IF(G84="a",A84,"") ->  | K84: =IF(G84="a",B84,"") -> 
F85: =IF(OR(D85=EOMONTH(A85,0),B85<0),SUM($B$4:B85),"") -> 
F86: =IF(OR(D86=EOMONTH(A86,0),B86<0),SUM($B$4:B86),"") -> 
F87: =IF(OR(D87=EOMONTH(A87,0),B87<0),SUM($B$4:B87),"") -> 
F88: =IF(OR(D88=EOMONTH(A88,0),B88<0),SUM($B$4:B88),"") -> 
F89: =IF(OR(D89=EOMONTH(A89,0),B89<0),SUM($B$4:B89),"") -> 
F90: =IF(OR(D90=EOMONTH(A90,0),B90<0),SUM($B$4:B90),"") -> 
F91: =IF(OR(D91=EOMONTH(A91,0),B91<0),SUM($B$4:B91),"") -> 
F92: =IF(OR(D92=EOMONTH(A92,0),B92<0),SUM($B$4:B92),"") -> 
F93: =IF(OR(D93=EOMONTH(A93,0),B93<0),SUM($B$4:B93),"") -> 
F94: =IF(OR(D94=EOMONTH(A94,0),B94<0),SUM($B$4:B94),"") -> 
F95: =IF(OR(D95=EOMONTH(A95,0),B95<0),SUM($B$4:B95),"") -> 
F96: =IF(OR(D96=EOMONTH(A96,0),B96<0),SUM($B$4:B96),"") -> 
F97: =IF(OR(D97=EOMONTH(A97,0),B97<0),SUM($B$4:B97),"") -> 
F98: =IF(OR(D98=EOMONTH(A98,0),B98<0),SUM($B$4:B98),"") -> 
F99: =IF(OR(D99=EOMONTH(A99,0),B99<0),SUM($B$4:B99),"") -> 
F100: =IF(OR(D100=EOMONTH(A100,0),B100<0),SUM($B$4:B100),"") -> 

Sheet Feuil3
A1: 2013-02-20 | B1: =Feuil1!B13 -> علي للخضر والفواكه | F1: 233595 | G1: 2012-12-01 | H1: =SUM(B:B) -> 375796 | L1: =MONTH(G1) -> 12
A2: 39440
A3: التاريخ | B3: المبلغ | C3: رقم الوصل | D3: نهاية الشهر | E3: مجموع نهاية الشهر | F3: المجموع الكلي | L3: FIN MOID | M3: SOME MOID | O3: DATE AVONCE | P3: MONTENT AVONCE | R3: TOTAL
A4: 2012-12-31 | B4: 233595 | D4: 2012-12-31 | F4: =B4 -> 233595 | M4: =F4 -> 233595
A5: 2013-01-05 | B5: 29450 | C5: 1 | D5: =IF(B5<0,"",IF(AND(D4<>"",EOMONTH(A4,0)=EOMONTH(A5,0)),"",IF(AND(G5<>G6,D4=EOMONTH(A4,0)),EOMONTH(A5,0),IF(G5=G6,"",IF(G5=$L$1,EOMONTH($G$1,0),IF(AND(G5<>G6,G5<>H5),EOMONTH(A4,0),"")))))) ->  | E5: =IF(G5=G6,"",IF(D5="","",SUMIF(G:G,G5,B:B))) ->  | F5: =IF(OR(D5=EOMONTH(A5,0),B5<0),SUM($B$4:B5),"") ->  | G5: =IF(A5="","",IF(B5>0,MONTH(A5),"a")) -> 1 | H5: =IF(G5="a","a","") ->  | I5: =IF(J5<>"",MONTH(J5),"") ->  | J5: =IF(G5="a",A5,"") ->  | K5: =IF(G5="a",B5,"") ->  | L5: 2012-01-31 | M5: =IFERROR(VLOOKUP(L5,D:E,2,0),"0") -> 0 | N5: =IF(P5<0,SUM($M$4:M5,P5),SUM($M$4:M5)) -> 233595 | O5: =IFERROR(VLOOKUP(MONTH(L5),I:K,2,0),"") ->  | P5: =IFERROR(VLOOKUP(MONTH(L5),I:K,3,0),"") ->  | Q5: =IFERROR(P5+N5,"") ->  | R5: =N5 -> 233595
A6: 2013-01-05 | B6: 4000 | C6: =IF(A6="","",IF(C5="",C4+1,IF(G6="a","",C5+1))) -> 2 | F6: =IF(OR(D6=EOMONTH(A6,0),B6<0),SUM($B$4:B6),"") ->  | G6: =IF(A6="","",IF(B6>0,MONTH(A6),"a")) -> 1 | H6: =IF(G6="a","a","") ->  | I6: =IF(J6<>"",MONTH(J6),"") ->  | J6: =IF(G6="a",A6,"") ->  | K6: =IF(G6="a",B6,"") ->  | L6: 2012-02-29 | M6: =IFERROR(VLOOKUP(L6,D:E,2,0),"0") -> 0 | N6: =IF(P6<0,SUM($M$4:M6,P6),SUM($M$4:M6)) -> 233595 | O6: =IFERROR(VLOOKUP(MONTH(L6),I:K,2,0),"") ->  | P6: =IFERROR(VLOOKUP(MONTH(L6),I:K,3,0),"") ->  | Q6: =IFERROR(P6+N6,"") ->  | R6: =IFERROR(R5+M6+P6,R5+M6) -> 233595
A7: 17/01/2013 | B7: 4600 | C7: =IF(A7="","",IF(C6="",C5+1,IF(G7="a","",C6+1))) -> 3 | F7: =IF(OR(D7=EOMONTH(A7,0),B7<0),SUM($B$4:B7),"") ->  | G7: 1 | L7: 2012-03-31 | M7: 0 | N7: =IF(P7<0,SUM($M$4:M7,P7),SUM($M$4:M7)) -> 233595 | R7: =IFERROR(R6+M7+P7,R6+M7) -> 233595
A8: 2013-01-21 | B8: 18240 | C8: 4 | F8: =IF(OR(D8=EOMONTH(A8,0),B8<0),SUM($B$4:B8),"") ->  | G8: 1 | L8: 2012-04-30 | M8: 0 | N8: =IF(P8<0,SUM($M$4:M8,P8),SUM($M$4:M8)) -> 233595 | R8: 233595
A9: 2013-01-23 | B9: 4535 | C9: 5 | D9: 2013-01-31 | E9: 60825 | F9: =IF(OR(D9=EOMONTH(A9,0),B9<0),SUM($B$4:B9),"") -> 294420 | G9: 1 | L9: 2012-05-31 | M9: 0 | N9: =IF(P9<0,SUM($M$4:M9,P9),SUM($M$4:M9)) -> 233595 | R9: 233595
A10: 2013-02-04 | B10: 33066 | C10: 6 | F10: =IF(OR(D10=EOMONTH(A10,0),B10<0),SUM($B$4:B10),"") ->  | G10: 2 | L10: 2012-06-30 | M10: 0 | N10: =IF(P10<0,SUM($M$4:M10,P10),SUM($M$4:M10)) -> 233595 | R10: 233595
A11: 2013-02-06 | B11: 4910 | C11: 7 | F11: =IF(OR(D11=EOMONTH(A11,0),B11<0),SUM($B$4:B11),"") ->  | G11: 2 | L11: 2012-07-31 | M11: 0 | N11: =IF(P11<0,SUM($M$4:M11,P11),SUM($M$4:M11)) -> 233595 | R11: 233595
A12: 18/02/2013 | B12: 39440 | C12: 8 | F12: =IF(OR(D12=EOMONTH(A12,0),B12<0),SUM($B$4:B12),"") ->  | G12: 2 | L12: 2012-08-31 | M12: 0 | N12: =IF(P12<0,SUM($M$4:M12,P12),SUM($M$4:M12)) -> 233595 | R12: 233595
A13: 2013-02-20 | B13: 3960 | C13: 9 | D13: 2013-02-28 | E13: 81376 | F13: =IF(OR(D13=EOMONTH(A13,0),B13<0),SUM($B$4:B13),"") -> 375796 | G13: 2 | L13: 2012-09-30 | M13: 0 | N13: =IF(P13<0,SUM($M$4:M13,P13),SUM($M$4:M13)) -> 233595 | R13: 233595
F14: =IF(OR(D14=EOMONTH(A14,0),B14<0),SUM($B$4:B14),"") ->  | L14: 2012-10-31 | M14: 0 | N14: =IF(P14<0,SUM($M$4:M14,P14),SUM($M$4:M14)) -> 233595 | R14: 233595
F15: =IF(OR(D15=EOMONTH(A15,0),B15<0),SUM($B$4:B15),"") ->  | L15: 2012-11-30 | M15: 0 | N15: =IF(P15<0,SUM($M$4:M15,P15),SUM($M$4:M15)) -> 233595 | R15: 233595
F16: =IF(OR(D16=EOMONTH(A16,0),B16<0),SUM($B$4:B16),"") ->  | L16: 2012-12-31 | M16: 0 | N16: =IF(P16<0,SUM($M$4:M16,P16),SUM($M$4:M16)) -> 233595 | R16: 233595
F17: =IF(OR(D17=EOMONTH(A17,0),B17<0),SUM($B$4:B17),"") ->  | R17: =R16-H1 -> -142201
F18: =IF(OR(D18=EOMONTH(A18,0),B18<0),SUM($B$4:B18),"") -> 
F19: =IF(OR(D19=EOMONTH(A19,0),B19<0),SUM($B$4:B19),"") -> 
F20: =IF(OR(D20=EOMONTH(A20,0),B20<0),SUM($B$4:B20),"") -> 
F21: =IF(OR(D21=EOMONTH(A21,0),B21<0),SUM($B$4:B21),"") -> 
F22: =IF(OR(D22=EOMONTH(A22,0),B22<0),SUM($B$4:B22),"") ->  | R22: =IFERROR(Q22+O22,"") -> 0
F23: =IF(OR(D23=EOMONTH(A23,0),B23<0),SUM($B$4:B23),"") -> 
F24: =IF(OR(D24=EOMONTH(A24,0),B24<0),SUM($B$4:B24),"") -> 
F25: =IF(OR(D25=EOMONTH(A25,0),B25<0),SUM($B$4:B25),"") -> 
F26: =IF(OR(D26=EOMONTH(A26,0),B26<0),SUM($B$4:B26),"") -> 
F27: =IF(OR(D27=EOMONTH(A27,0),B27<0),SUM($B$4:B27),"") -> 
F28: =IF(OR(D28=EOMONTH(A28,0),B28<0),SUM($B$4:B28),"") -> 
F29: =IF(OR(D29=EOMONTH(A29,0),B29<0),SUM($B$4:B29),"") -> 
F30: =IF(OR(D30=EOMONTH(A30,0),B30<0),SUM($B$4:B30),"") -> 
F31: =IF(OR(D31=EOMONTH(A31,0),B31<0),SUM($B$4:B31),"") -> 
F32: =IF(OR(D32=EOMONTH(A32,0),B32<0),SUM($B$4:B32),"") -> 
F33: =IF(OR(D33=EOMONTH(A33,0),B33<0),SUM($B$4:B33),"") -> 
F34: =IF(OR(D34=EOMONTH(A34,0),B34<0),SUM($B$4:B34),"") -> 
F35: =IF(OR(D35=EOMONTH(A35,0),B35<0),SUM($B$4:B35),"") -> 
F36: =IF(OR(D36=EOMONTH(A36,0),B36<0),SUM($B$4:B36),"") -> 
F37: =IF(OR(D37=EOMONTH(A37,0),B37<0),SUM($B$4:B37),"") -> 
F38: =IF(OR(D38=EOMONTH(A38,0),B38<0),SUM($B$4:B38),"") -> 
F39: =IF(OR(D39=EOMONTH(A39,0),B39<0),SUM($B$4:B39),"") -> 
F40: =IF(OR(D40=EOMONTH(A40,0),B40<0),SUM($B$4:B40),"") -> 
F41: =IF(OR(D41=EOMONTH(A41,0),B41<0),SUM($B$4:B41),"") -> 
F42: =IF(OR(D42=EOMONTH(A42,0),B42<0),SUM($B$4:B42),"") -> 
F43: =IF(OR(D43=EOMONTH(A43,0),B43<0),SUM($B$4:B43),"") -> 
F44: =IF(OR(D44=EOMONTH(A44,0),B44<0),SUM($B$4:B44),"") -> 
F45: =IF(OR(D45=EOMONTH(A45,0),B45<0),SUM($B$4:B45),"") -> 
F46: =IF(OR(D46=EOMONTH(A46,0),B46<0),SUM($B$4:B46),"") -> 
F47: =IF(OR(D47=EOMONTH(A47,0),B47<0),SUM($B$4:B47),"") -> 
F48: =IF(OR(D48=EOMONTH(A48,0),B48<0),SUM($B$4:B48),"") -> 
F49: =IF(OR(D49=EOMONTH(A49,0),B49<0),SUM($B$4:B49),"") -> 
F50: =IF(OR(D50=EOMONTH(A50,0),B50<0),SUM($B$4:B50),"") -> 
F51: =IF(OR(D51=EOMONTH(A51,0),B51<0),SUM($B$4:B51),"") -> 
F52: =IF(OR(D52=EOMONTH(A52,0),B52<0),SUM($B$4:B52),"") -> 
F53: =IF(OR(D53=EOMONTH(A53,0),B53<0),SUM($B$4:B53),"") -> 
F54: =IF(OR(D54=EOMONTH(A54,0),B54<0),SUM($B$4:B54),"") -> 
F55: =IF(OR(D55=EOMONTH(A55,0),B55<0),SUM($B$4:B55),"") -> 
F56: =IF(OR(D56=EOMONTH(A56,0),B56<0),SUM($B$4:B56),"") -> 
F57: =IF(OR(D57=EOMONTH(A57,0),B57<0),SUM($B$4:B57),"") -> 
F58: =IF(OR(D58=EOMONTH(A58,0),B58<0),SUM($B$4:B58),"") -> 
F59: =IF(OR(D59=EOMONTH(A59,0),B59<0),SUM($B$4:B59),"") -> 
F60: =IF(OR(D60=EOMONTH(A60,0),B60<0),SUM($B$4:B60),"") -> 
F61: =IF(OR(D61=EOMONTH(A61,0),B61<0),SUM($B$4:B61),"") -> 
F62: =IF(OR(D62=EOMONTH(A62,0),B62<0),SUM($B$4:B62),"") -> 
F63: =IF(OR(D63=EOMONTH(A63,0),B63<0),SUM($B$4:B63),"") ->  | H63: =IF(G63="a","a","") -> 
F64: =IF(OR(D64=EOMONTH(A64,0),B64<0),SUM($B$4:B64),"") -> 
F65: =IF(OR(D65=EOMONTH(A65,0),B65<0),SUM($B$4:B65),"") -> 
F66: =IF(OR(D66=EOMONTH(A66,0),B66<0),SUM($B$4:B66),"") -> 
F67: =IF(OR(D67=EOMONTH(A67,0),B67<0),SUM($B$4:B67),"") -> 
F68: =IF(OR(D68=EOMONTH(A68,0),B68<0),SUM($B$4:B68),"") -> 
D69: =IF(B69<0,"",IF(AND(D68<>"",EOMONTH(A68,0)=EOMONTH(A69,0)),"",IF(AND(G69<>G70,D68=EOMONTH(A68,0)),EOMONTH(A69,0),IF(G69=G70,"",IF(G69=$L$1,EOMONTH($G$1,0),IF(AND(G69<>G70,G69<>H69),EOMONTH(A68,0),"")))))) ->  | F69: =IF(OR(D69=EOMONTH(A69,0),B69<0),SUM($B$4:B69),"") -> 
E70: =IF(G70=G71,"",IF(D70="","",SUMIF(G:G,G70,B:B))) ->  | F70: =IF(OR(D70=EOMONTH(A70,0),B70<0),SUM($B$4:B70),"") ->  | G70: =IF(A70="","",IF(B70>0,MONTH(A70),"a")) ->  | H70: =IF(G70="a","a","") ->  | I70: =IF(J70<>"",MONTH(J70),"") ->  | J70: =IF(G70="a",A70,"") ->  | K70: =IF(G70="a",B70,"") -> 
C71: =IF(A71="","",IF(C70="",C69+1,IF(G71="a","",C70+1))) ->  | F71: =IF(OR(D71=EOMONTH(A71,0),B71<0),SUM($B$4:B71),"") -> 
F72: =IF(OR(D72=EOMONTH(A72,0),B72<0),SUM($B$4:B72),"") -> 
F73: =IF(OR(D73=EOMONTH(A73,0),B73<0),SUM($B$4:B73),"") -> 
F74: =IF(OR(D74=EOMONTH(A74,0),B74<0),SUM($B$4:B74),"") -> 
F75: =IF(OR(D75=EOMONTH(A75,0),B75<0),SUM($B$4:B75),"") -> 
F76: =IF(OR(D76=EOMONTH(A76,0),B76<0),SUM($B$4:B76),"") -> 
F77: =IF(OR(D77=EOMONTH(A77,0),B77<0),SUM($B$4:B77),"") -> 
E78: =IF(G78=G79,"",IF(D78="","",SUMIF(G:G,G78,B:B))) ->  | F78: =IF(OR(D78=EOMONTH(A78,0),B78<0),SUM($B$4:B78),"") -> 
E79: =IF(G79=G80,"",IF(D79="","",SUMIF(G:G,G79,B:B))) ->  | F79: =IF(OR(D79=EOMONTH(A79,0),B79<0),SUM($B$4:B79),"") -> 
F80: =IF(OR(D80=EOMONTH(A80,0),B80<0),SUM($B$4:B80),"") -> 
F81: =IF(OR(D81=EOMONTH(A81,0),B81<0),SUM($B$4:B81),"") -> 
F82: =IF(OR(D82=EOMONTH(A82,0),B82<0),SUM($B$4:B82),"") -> 
F83: =IF(OR(D83=EOMONTH(A83,0),B83<0),SUM($B$4:B83),"") -> 
F84: =IF(OR(D84=EOMONTH(A84,0),B84<0),SUM($B$4:B84),"") -> 
F85: =IF(OR(D85=EOMONTH(A85,0),B85<0),SUM($B$4:B85),"") -> 
F86: =IF(OR(D86=EOMONTH(A86,0),B86<0),SUM($B$4:B86),"") -> 
F87: =IF(OR(D87=EOMONTH(A87,0),B87<0),SUM($B$4:B87),"") -> 
F88: =IF(OR(D88=EOMONTH(A88,0),B88<0),SUM($B$4:B88),"") -> 
F89: =IF(OR(D89=EOMONTH(A89,0),B89<0),SUM($B$4:B89),"") -> 
F90: =IF(OR(D90=EOMONTH(A90,0),B90<0),SUM($B$4:B90),"") -> 
F91: =IF(OR(D91=EOMONTH(A91,0),B91<0),SUM($B$4:B91),"") -> 
F92: =IF(OR(D92=EOMONTH(A92,0),B92<0),SUM($B$4:B92),"") -> 
F93: =IF(OR(D93=EOMONTH(A93,0),B93<0),SUM($B$4:B93),"") -> 
F94: =IF(OR(D94=EOMONTH(A94,0),B94<0),SUM($B$4:B94),"") -> 
F95: =IF(OR(D95=EOMONTH(A95,0),B95<0),SUM($B$4:B95),"") -> 
F96: =IF(OR(D96=EOMONTH(A96,0),B96<0),SUM($B$4:B96),"") -> 
F97: =IF(OR(D97=EOMONTH(A97,0),B97<0),SUM($B$4:B97),"") -> 
F98: =IF(OR(D98=EOMONTH(A98,0),B98<0),SUM($B$4:B98),"") -> 
F99: =IF(OR(D99=EOMONTH(A99,0),B99<0),SUM($B$4:B99),"") -> 
F100: =IF(OR(D100=EOMONTH(A100,0),B100<0),SUM($B$4:B100),"") -> 

Sheet Feuil4
A1: 2013-02-19 | B1: =Feuil1!B14 -> احمد لللحوم | F1: 332126 | G1: 2012-12-01 | H1: =SUM(B:B) -> 553251 | L1: =MONTH(G1) -> 12
A2: 103800
A3: التاريخ | B3: المبلغ | C3: رقم الوصل | D3: نهاية الشهر | E3: مجموع نهاية الشهر | F3: المجموع الكلي | L3: FIN MOID | M3: SOME MOID | O3: DATE AVONCE | P3: MONTENT AVONCE | R3: TOTAL
A4: 2012-12-31 | B4: 332126 | D4: 2011-12-31 | F4: =B4 -> 332126 | M4: =F4 -> 332126
A5: 2013-01-05 | B5: 12441 | C5: 1 | D5: =IF(B5<0,"",IF(AND(D4<>"",EOMONTH(A4,0)=EOMONTH(A5,0)),"",IF(AND(G5<>G6,D4=EOMONTH(A4,0)),EOMONTH(A5,0),IF(G5=G6,"",IF(G5=$L$1,EOMONTH($G$1,0),IF(AND(G5<>G6,G5<>H5),EOMONTH(A4,0),"")))))) ->  | E5: =IF(G5=G6,"",IF(D5="","",SUMIF(G:G,G5,B:B))) ->  | F5: =IF(OR(D5=EOMONTH(A5,0),B5<0),SUM($B$4:B5),"") ->  | G5: =IF(A5="","",IF(B5>0,MONTH(A5),"a")) -> 1 | H5: =IF(G5="a","a","") ->  | I5: =IF(J5<>"",MONTH(J5),"") ->  | J5: =IF(G5="a",A5,"") ->  | K5: =IF(G5="a",B5,"") ->  | L5: 2012-01-31 | M5: =IFERROR(VLOOKUP(L5,D:E,2,0),"0") -> 0 | N5: =IF(P5<0,SUM($M$4:M5,P5),SUM($M$4:M5)) -> 332126 | O5: =IFERROR(VLOOKUP(MONTH(L5),I:K,2,0),"") ->  | P5: =IFERROR(VLOOKUP(MONTH(L5),I:K,3,0),"") ->  | Q5: =IFERROR(P5+N5,"") ->  | R5: =N5 -> 332126
A6: 17/01/2013 | B6: 2964 | C6: =IF(A6="","",IF(C5="",C4+1,IF(G6="a","",C5+1))) -> 2 | F6: =IF(OR(D6=EOMONTH(A6,0),B6<0),SUM($B$4:B6),"") ->  | G6: =IF(A6="","",IF(B6>0,MONTH(A6),"a")) -> 1 | H6: =IF(G6="a","a","") ->  | I6: =IF(J6<>"",MONTH(J6),"") ->  | J6: =IF(G6="a",A6,"") ->  | K6: =IF(G6="a",B6,"") ->  | L6: 2012-02-29 | M6: =IFERROR(VLOOKUP(L6,D:E,2,0),"0") -> 0 | N6: =IF(P6<0,SUM($M$4:M6,P6),SUM($M$4:M6)) -> 332126 | O6: =IFERROR(VLOOKUP(MONTH(L6),I:K,2,0),"") ->  | P6: =IFERROR(VLOOKUP(MONTH(L6),I:K,3,0),"") ->  | Q6: =IFERROR(P6+N6,"") ->  | R6: =IFERROR(R5+M6+P6,R5+M6) -> 332126
A7: 2013-01-21 | B7: 8830 | C7: =IF(A7="","",IF(C6="",C5+1,IF(G7="a","",C6+1))) -> 3 | F7: =IF(OR(D7=EOMONTH(A7,0),B7<0),SUM($B$4:B7),"") ->  | G7: 1 | L7: 2012-03-31 | M7: 0 | N7: =IF(P7<0,SUM($M$4:M7,P7),SUM($M$4:M7)) -> 332126 | R7: =IFERROR(R6+M7+P7,R6+M7) -> 332126
A8: 2013-01-23 | B8: 1510 | C8: 4 | D8: 2013-01-31 | E8: 25745 | F8: =IF(OR(D8=EOMONTH(A8,0),B8<0),SUM($B$4:B8),"") -> 357871 | G8: 1 | L8: 2012-04-30 | M8: 0 | N8: =IF(P8<0,SUM($M$4:M8,P8),SUM($M$4:M8)) -> 332126 | R8: 332126
A9: 2013-02-04 | B9: 17800 | C9: 5 | F9: =IF(OR(D9=EOMONTH(A9,0),B9<0),SUM($B$4:B9),"") ->  | G9: 2 | L9: 2012-05-31 | M9: 0 | N9: =IF(P9<0,SUM($M$4:M9,P9),SUM($M$4:M9)) -> 332126 | R9: 332126
A10: 2013-02-06 | B10: 2480 | C10: 6 | F10: =IF(OR(D10=EOMONTH(A10,0),B10<0),SUM($B$4:B10),"") ->  | G10: 2 | L10: 2012-06-30 | M10: 0 | N10: =IF(P10<0,SUM($M$4:M10,P10),SUM($M$4:M10)) -> 332126 | R10: 332126
A11: 18/02/2013 | B11: 103800 | C11: 7 | F11: =IF(OR(D11=EOMONTH(A11,0),B11<0),SUM($B$4:B11),"") ->  | G11: 2 | L11: 2012-07-31 | M11: 0 | N11: =IF(P11<0,SUM($M$4:M11,P11),SUM($M$4:M11)) -> 332126 | R11: 332126
A12: 18/02/2013 | B12: 69100 | C12: 8 | F12: =IF(OR(D12=EOMONTH(A12,0),B12<0),SUM($B$4:B12),"") ->  | G12: 2 | L12: 2012-08-31 | M12: 0 | N12: =IF(P12<0,SUM($M$4:M12,P12),SUM($M$4:M12)) -> 332126 | R12: 332126
A13: 2013-02-20 | B13: 2200 | C13: 9 | D13: 2013-02-28 | E13: 195380 | F13: =IF(OR(D13=EOMONTH(A13,0),B13<0),SUM($B$4:B13),"") -> 553251 | G13: 2 | L13: 2012-09-30 | M13: 0 | N13: =IF(P13<0,SUM($M$4:M13,P13),SUM($M$4:M13)) -> 332126 | R13: 332126
F14: =IF(OR(D14=EOMONTH(A14,0),B14<0),SUM($B$4:B14),"") ->  | L14: 2012-10-31 | M14: 0 | N14: =IF(P14<0,SUM($M$4:M14,P14),SUM($M$4:M14)) -> 332126 | R14: 332126
F15: =IF(OR(D15=EOMONTH(A15,0),B15<0),SUM($B$4:B15),"") ->  | L15: 2012-11-30 | M15: 0 | N15: =IF(P15<0,SUM($M$4:M15,P15),SUM($M$4:M15)) -> 332126 | R15: 332126
F16: =IF(OR(D16=EOMONTH(A16,0),B16<0),SUM($B$4:B16),"") ->  | L16: 2012-12-31 | M16: 0 | N16: =IF(P16<0,SUM($M$4:M16,P16),SUM($M$4:M16)) -> 332126 | R16: 332126
F17: =IF(OR(D17=EOMONTH(A17,0),B17<0),SUM($B$4:B17),"") ->  | R17: =R16-H1 -> -221125
F18: =IF(OR(D18=EOMONTH(A18,0),B18<0),SUM($B$4:B18),"") -> 
F19: =IF(OR(D19=EOMONTH(A19,0),B19<0),SUM($B$4:B19),"") -> 
F20: =IF(OR(D20=EOMONTH(A20,0),B20<0),SUM($B$4:B20),"") -> 
F21: =IF(OR(D21=EOMONTH(A21,0),B21<0),SUM($B$4:B21),"") -> 
F22: =IF(OR(D22=EOMONTH(A22,0),B22<0),SUM($B$4:B22),"") ->  | R22: =IFERROR(Q22+O22,"") -> 0
F23: =IF(OR(D23=EOMONTH(A23,0),B23<0),SUM($B$4:B23),"") -> 
F24: =IF(OR(D24=EOMONTH(A24,0),B24<0),SUM($B$4:B24),"") -> 
F25: =IF(OR(D25=EOMONTH(A25,0),B25<0),SUM($B$4:B25),"") -> 
F26: =IF(OR(D26=EOMONTH(A26,0),B26<0),SUM($B$4:B26),"") -> 
F27: =IF(OR(D27=EOMONTH(A27,0),B27<0),SUM($B$4:B27),"") -> 
F28: =IF(OR(D28=EOMONTH(A28,0),B28<0),SUM($B$4:B28),"") -> 
F29: =IF(OR(D29=EOMONTH(A29,0),B29<0),SUM($B$4:B29),"") -> 
F30: =IF(OR(D30=EOMONTH(A30,0),B30<0),SUM($B$4:B30),"") -> 
F31: =IF(OR(D31=EOMONTH(A31,0),B31<0),SUM($B$4:B31),"") -> 
F32: =IF(OR(D32=EOMONTH(A32,0),B32<0),SUM($B$4:B32),"") -> 
F33: =IF(OR(D33=EOMONTH(A33,0),B33<0),SUM($B$4:B33),"") -> 
F34: =IF(OR(D34=EOMONTH(A34,0),B34<0),SUM($B$4:B34),"") -> 
F35: =IF(OR(D35=EOMONTH(A35,0),B35<0),SUM($B$4:B35),"") -> 
F36: =IF(OR(D36=EOMONTH(A36,0),B36<0),SUM($B$4:B36),"") -> 
F37: =IF(OR(D37=EOMONTH(A37,0),B37<0),SUM($B$4:B37),"") -> 
F38: =IF(OR(D38=EOMONTH(A38,0),B38<0),SUM($B$4:B38),"") -> 
F39: =IF(OR(D39=EOMONTH(A39,0),B39<0),SUM($B$4:B39),"") -> 
F40: =IF(OR(D40=EOMONTH(A40,0),B40<0),SUM($B$4:B40),"") -> 
F41: =IF(OR(D41=EOMONTH(A41,0),B41<0),SUM($B$4:B41),"") -> 
F42: =IF(OR(D42=EOMONTH(A42,0),B42<0),SUM($B$4:B42),"") -> 
F43: =IF(OR(D43=EOMONTH(A43,0),B43<0),SUM($B$4:B43),"") -> 
F44: =IF(OR(D44=EOMONTH(A44,0),B44<0),SUM($B$4:B44),"") -> 
F45: =IF(OR(D45=EOMONTH(A45,0),B45<0),SUM($B$4:B45),"") -> 
F46: =IF(OR(D46=EOMONTH(A46,0),B46<0),SUM($B$4:B46),"") -> 
F47: =IF(OR(D47=EOMONTH(A47,0),B47<0),SUM($B$4:B47),"") -> 
F48: =IF(OR(D48=EOMONTH(A48,0),B48<0),SUM($B$4:B48),"") -> 
F49: =IF(OR(D49=EOMONTH(A49,0),B49<0),SUM($B$4:B49),"") -> 
F50: =IF(OR(D50=EOMONTH(A50,0),B50<0),SUM($B$4:B50),"") -> 
F51: =IF(OR(D51=EOMONTH(A51,0),B51<0),SUM($B$4:B51),"") -> 
F52: =IF(OR(D52=EOMONTH(A52,0),B52<0),SUM($B$4:B52),"") -> 
F53: =IF(OR(D53=EOMONTH(A53,0),B53<0),SUM($B$4:B53),"") -> 
F54: =IF(OR(D54=EOMONTH(A54,0),B54<0),SUM($B$4:B54),"") -> 
F55: =IF(OR(D55=EOMONTH(A55,0),B55<0),SUM($B$4:B55),"") -> 
F56: =IF(OR(D56=EOMONTH(A56,0),B56<0),SUM($B$4:B56),"") -> 
F57: =IF(OR(D57=EOMONTH(A57,0),B57<0),SUM($B$4:B57),"") -> 
F58: =IF(OR(D58=EOMONTH(A58,0),B58<0),SUM($B$4:B58),"") -> 
F59: =IF(OR(D59=EOMONTH(A59,0),B59<0),SUM($B$4:B59),"") -> 
F60: =IF(OR(D60=EOMONTH(A60,0),B60<0),SUM($B$4:B60),"") -> 
F61: =IF(OR(D61=EOMONTH(A61,0),B61<0),SUM($B$4:B61),"") -> 
F62: =IF(OR(D62=EOMONTH(A62,0),B62<0),SUM($B$4:B62),"") -> 
F63: =IF(OR(D63=EOMONTH(A63,0),B63<0),SUM($B$4:B63),"") ->  | H63: =IF(G63="a","a","") -> 
F64: =IF(OR(D64=EOMONTH(A64,0),B64<0),SUM($B$4:B64),"") -> 
F65: =IF(OR(D65=EOMONTH(A65,0),B65<0),SUM($B$4:B65),"") -> 
F66: =IF(OR(D66=EOMONTH(A66,0),B66<0),SUM($B$4:B66),"") -> 
F67: =IF(OR(D67=EOMONTH(A67,0),B67<0),SUM($B$4:B67),"") -> 
F68: =IF(OR(D68=EOMONTH(A68,0),B68<0),SUM($B$4:B68),"") -> 
D69: =IF(B69<0,"",IF(AND(D68<>"",EOMONTH(A68,0)=EOMONTH(A69,0)),"",IF(AND(G69<>G70,D68=EOMONTH(A68,0)),EOMONTH(A69,0),IF(G69=G70,"",IF(G69=$L$1,EOMONTH($G$1,0),IF(AND(G69<>G70,G69<>H69),EOMONTH(A68,0),"")))))) ->  | F69: =IF(OR(D69=EOMONTH(A69,0),B69<0),SUM($B$4:B69),"") -> 
E70: =IF(G70=G71,"",IF(D70="","",SUMIF(G:G,G70,B:B))) ->  | F70: =IF(OR(D70=EOMONTH(A70,0),B70<0),SUM($B$4:B70),"") ->  | G70: =IF(A70="","",IF(B70>0,MONTH(A70),"a")) ->  | H70: =IF(G70="a","a","") ->  | I70: =IF(J70<>"",MONTH(J70),"") ->  | J70: =IF(G70="a",A70,"") ->  | K70: =IF(G70="a",B70,"") -> 
C71: =IF(A71="","",IF(C70="",C69+1,IF(G71="a","",C70+1))) ->  | F71: =IF(OR(D71=EOMONTH(A71,0),B71<0),SUM($B$4:B71),"") -> 
F72: =IF(OR(D72=EOMONTH(A72,0),B72<0),SUM($B$4:B72),"") -> 
F73: =IF(OR(D73=EOMONTH(A73,0),B73<0),SUM($B$4:B73),"") -> 
F74: =IF(OR(D74=EOMONTH(A74,0),B74<0),SUM($B$4:B74),"") -> 
F75: =IF(OR(D75=EOMONTH(A75,0),B75<0),SUM($B$4:B75),"") -> 
F76: =IF(OR(D76=EOMONTH(A76,0),B76<0),SUM($B$4:B76),"") -> 
F77: =IF(OR(D77=EOMONTH(A77,0),B77<0),SUM($B$4:B77),"") -> 
E78: =IF(G78=G79,"",IF(D78="","",SUMIF(G:G,G78,B:B))) ->  | F78: =IF(OR(D78=EOMONTH(A78,0),B78<0),SUM($B$4:B78),"") -> 
E79: =IF(G79=G80,"",IF(D79="","",SUMIF(G:G,G79,B:B))) ->  | F79: =IF(OR(D79=EOMONTH(A79,0),B79<0),SUM($B$4:B79),"") -> 
F80: =IF(OR(D80=EOMONTH(A80,0),B80<0),SUM($B$4:B80),"") -> 
F81: =IF(OR(D81=EOMONTH(A81,0),B81<0),SUM($B$4:B81),"") -> 
F82: =IF(OR(D82=EOMONTH(A82,0),B82<0),SUM($B$4:B82),"") -> 
F83: =IF(OR(D83=EOMONTH(A83,0),B83<0),SUM($B$4:B83),"") -> 
F84: =IF(OR(D84=EOMONTH(A84,0),B84<0),SUM($B$4:B84),"") -> 
F85: =IF(OR(D85=EOMONTH(A85,0),B85<0),SUM($B$4:B85),"") -> 
F86: =IF(OR(D86=EOMONTH(A86,0),B86<0),SUM($B$4:B86),"") -> 
F87: =IF(OR(D87=EOMONTH(A87,0),B87<0),SUM($B$4:B87),"") -> 
F88: =IF(OR(D88=EOMONTH(A88,0),B88<0),SUM($B$4:B88),"") -> 
F89: =IF(OR(D89=EOMONTH(A89,0),B89<0),SUM($B$4:B89),"") -> 
F90: =IF(OR(D90=EOMONTH(A90,0),B90<0),SUM($B$4:B90),"") -> 
F91: =IF(OR(D91=EOMONTH(A91,0),B91<0),SUM($B$4:B91),"") -> 
F92: =IF(OR(D92=EOMONTH(A92,0),B92<0),SUM($B$4:B92),"") -> 
F93: =IF(OR(D93=EOMONTH(A93,0),B93<0),SUM($B$4:B93),"") -> 
F94: =IF(OR(D94=EOMONTH(A94,0),B94<0),SUM($B$4:B94),"") -> 
F95: =IF(OR(D95=EOMONTH(A95,0),B95<0),SUM($B$4:B95),"") -> 
F96: =IF(OR(D96=EOMONTH(A96,0),B96<0),SUM($B$4:B96),"") -> 
F97: =IF(OR(D97=EOMONTH(A97,0),B97<0),SUM($B$4:B97),"") -> 
F98: =IF(OR(D98=EOMONTH(A98,0),B98<0),SUM($B$4:B98),"") -> 
F99: =IF(OR(D99=EOMONTH(A99,0),B99<0),SUM($B$4:B99),"") -> 
F100: =IF(OR(D100=EOMONTH(A100,0),B100<0),SUM($B$4:B100),"") -> 

Sheet Feuil5
A1: 2012-09-05 | B1: =Feuil1!B15 -> فريد للفلترات بانواعها | F1: 69600 | G1: 2012-12-01 | H1: =SUM(B:B) -> 69600 | L1: =MONTH(G1) -> 12
A2: -200000
A3: التاريخ | B3: المبلغ | C3: رقم الوصل | D3: نهاية الشهر | E3: مجموع نهاية الشهر | F3: المجموع الكلي | L3: FIN MOID | M3: SOME MOID | O3: DATE AVONCE | P3: MONTENT AVONCE | R3: TOTAL
A4: 2012-12-31 | B4: 69600 | D4: 2012-12-31 | F4: =B4 -> 69600 | M4: =F4 -> 69600
C5: 1 | D5: =IF(B5<0,"",IF(AND(D4<>"",EOMONTH(A4,0)=EOMONTH(A5,0)),"",IF(AND(G5<>G6,D4=EOMONTH(A4,0)),EOMONTH(A5,0),IF(G5=G6,"",IF(G5=$L$1,EOMONTH($G$1,0),IF(AND(G5<>G6,G5<>H5),EOMONTH(A4,0),"")))))) ->  | E5: =IF(G5=G6,"",IF(D5="","",SUMIF(G:G,G5,B:B))) ->  | F5: =IF(OR(D5=EOMONTH(A5,0),B5<0),SUM($B$4:B5),"") ->  | G5: =IF(A5="","",IF(B5>0,MONTH(A5),"a")) ->  | H5: =IF(G5="a","a","") ->  | I5: =IF(J5<>"",MONTH(J5),"") ->  | J5: =IF(G5="a",A5,"") ->  | K5: =IF(G5="a",B5,"") ->  | L5: 2012-01-31 | M5: =IFERROR(VLOOKUP(L5,D:E,2,0),"0") -> 0 | N5: =IF(P5<0,SUM($M$4:M5,P5),SUM($M$4:M5)) -> 69600 | O5: =IFERROR(VLOOKUP(MONTH(L5),I:K,2,0),"") ->  | P5: =IFERROR(VLOOKUP(MONTH(L5),I:K,3,0),"") ->  | Q5: =IFERROR(P5+N5,"") ->  | R5: =N5 -> 69600
C6: =IF(A6="","",IF(C5="",C4+1,IF(G6="a","",C5+1))) ->  | F6: =IF(OR(D6=EOMONTH(A6,0),B6<0),SUM($B$4:B6),"") ->  | G6: =IF(A6="","",IF(B6>0,MONTH(A6),"a")) ->  | H6: =IF(G6="a","a","") ->  | I6: =IF(J6<>"",MONTH(J6),"") ->  | J6: =IF(G6="a",A6,"") ->  | K6: =IF(G6="a",B6,"") ->  | L6: 2012-02-29 | M6: =IFERROR(VLOOKUP(L6,D:E,2,0),"0") -> 0 | N6: =IF(P6<0,SUM($M$4:M6,P6),SUM($M$4:M6)) -> 69600 | O6: =IFERROR(VLOOKUP(MONTH(L6),I:K,2,0),"") ->  | P6: =IFERROR(VLOOKUP(MONTH(L6),I:K,3,0),"") ->  | Q6: =IFERROR(P6+N6,"") ->  | R6: =IFERROR(R5+M6+P6,R5+M6) -> 69600
C7: =IF(A7="","",IF(C6="",C5+1,IF(G7="a","",C6+1))) ->  | F7: =IF(OR(D7=EOMONTH(A7,0),B7<0),SUM($B$4:B7),"") ->  | L7: 2012-03-31 | M7: 0 | N7: =IF(P7<0,SUM($M$4:M7,P7),SUM($M$4:M7)) -> 69600 | R7: =IFERROR(R6+M7+P7,R6+M7) -> 69600
F8: =IF(OR(D8=EOMONTH(A8,0),B8<0),SUM($B$4:B8),"") ->  | L8: 2012-04-30 | M8: 0 | N8: =IF(P8<0,SUM($M$4:M8,P8),SUM($M$4:M8)) -> 69600 | R8: 69600
F9: =IF(OR(D9=EOMONTH(A9,0),B9<0),SUM($B$4:B9),"") ->  | L9: 2012-05-31 | M9: 0 | N9: =IF(P9<0,SUM($M$4:M9,P9),SUM($M$4:M9)) -> 69600 | R9: 69600
F10: =IF(OR(D10=EOMONTH(A10,0),B10<0),SUM($B$4:B10),"") ->  | L10: 2012-06-30 | M10: 0 | N10: =IF(P10<0,SUM($M$4:M10,P10),SUM($M$4:M10)) -> 69600 | R10: 69600
F11: =IF(OR(D11=EOMONTH(A11,0),B11<0),SUM($B$4:B11),"") ->  | L11: 2012-07-31 | M11: 0 | N11: =IF(P11<0,SUM($M$4:M11,P11),SUM($M$4:M11)) -> 69600 | R11: 69600
F12: =IF(OR(D12=EOMONTH(A12,0),B12<0),SUM($B$4:B12),"") ->  | L12: 2012-08-31 | M12: 0 | N12: =IF(P12<0,SUM($M$4:M12,P12),SUM($M$4:M12)) -> 69600 | R12: 69600
F13: =IF(OR(D13=EOMONTH(A13,0),B13<0),SUM($B$4:B13),"") ->  | L13: 2012-09-30 | M13: 0 | N13: =IF(P13<0,SUM($M$4:M13,P13),SUM($M$4:M13)) -> 69600 | R13: 69600
F14: =IF(OR(D14=EOMONTH(A14,0),B14<0),SUM($B$4:B14),"") ->  | L14: 2012-10-31 | M14: 0 | N14: =IF(P14<0,SUM($M$4:M14,P14),SUM($M$4:M14)) -> 69600 | R14: 69600
F15: =IF(OR(D15=EOMONTH(A15,0),B15<0),SUM($B$4:B15),"") ->  | L15: 2012-11-30 | M15: 0 | N15: =IF(P15<0,SUM($M$4:M15,P15),SUM($M$4:M15)) -> 69600 | R15: 69600
F16: =IF(OR(D16=EOMONTH(A16,0),B16<0),SUM($B$4:B16),"") ->  | L16: 2012-12-31 | M16: 0 | N16: =IF(P16<0,SUM($M$4:M16,P16),SUM($M$4:M16)) -> 69600 | R16: 69600
F17: =IF(OR(D17=EOMONTH(A17,0),B17<0),SUM($B$4:B17),"") ->  | R17: =R16-H1 -> 0
F18: =IF(OR(D18=EOMONTH(A18,0),B18<0),SUM($B$4:B18),"") -> 
F19: =IF(OR(D19=EOMONTH(A19,0),B19<0),SUM($B$4:B19),"") -> 
F20: =IF(OR(D20=EOMONTH(A20,0),B20<0),SUM($B$4:B20),"") -> 
F21: =IF(OR(D21=EOMONTH(A21,0),B21<0),SUM($B$4:B21),"") -> 
F22: =IF(OR(D22=EOMONTH(A22,0),B22<0),SUM($B$4:B22),"") ->  | R22: =IFERROR(Q22+O22,"") -> 0
F23: =IF(OR(D23=EOMONTH(A23,0),B23<0),SUM($B$4:B23),"") -> 
F24: =IF(OR(D24=EOMONTH(A24,0),B24<0),SUM($B$4:B24),"") -> 
F25: =IF(OR(D25=EOMONTH(A25,0),B25<0),SUM($B$4:B25),"") -> 
F26: =IF(OR(D26=EOMONTH(A26,0),B26<0),SUM($B$4:B26),"") -> 
F27: =IF(OR(D27=EOMONTH(A27,0),B27<0),SUM($B$4:B27),"") -> 
F28: =IF(OR(D28=EOMONTH(A28,0),B28<0),SUM($B$4:B28),"") -> 
F29: =IF(OR(D29=EOMONTH(A29,0),B29<0),SUM($B$4:B29),"") -> 
F30: =IF(OR(D30=EOMONTH(A30,0),B30<0),SUM($B$4:B30),"") -> 
F31: =IF(OR(D31=EOMONTH(A31,0),B31<0),SUM($B$4:B31),"") -> 
F32: =IF(OR(D32=EOMONTH(A32,0),B32<0),SUM($B$4:B32),"") -> 
F33: =IF(OR(D33=EOMONTH(A33,0),B33<0),SUM($B$4:B33),"") -> 
F34: =IF(OR(D34=EOMONTH(A34,0),B34<0),SUM($B$4:B34),"") -> 
F35: =IF(OR(D35=EOMONTH(A35,0),B35<0),SUM($B$4:B35),"") -> 
F36: =IF(OR(D36=EOMONTH(A36,0),B36<0),SUM($B$4:B36),"") -> 
F37: =IF(OR(D37=EOMONTH(A37,0),B37<0),SUM($B$4:B37),"") -> 
F38: =IF(OR(D38=EOMONTH(A38,0),B38<0),SUM($B$4:B38),"") -> 
F39: =IF(OR(D39=EOMONTH(A39,0),B39<0),SUM($B$4:B39),"") -> 
F40: =IF(OR(D40=EOMONTH(A40,0),B40<0),SUM($B$4:B40),"") -> 
F41: =IF(OR(D41=EOMONTH(A41,0),B41<0),SUM($B$4:B41),"") -> 
F42: =IF(OR(D42=EOMONTH(A42,0),B42<0),SUM($B$4:B42),"") -> 
F43: =IF(OR(D43=EOMONTH(A43,0),B43<0),SUM($B$4:B43),"") -> 
F44: =IF(OR(D44=EOMONTH(A44,0),B44<0),SUM($B$4:B44),"") -> 
F45: =IF(OR(D45=EOMONTH(A45,0),B45<0),SUM($B$4:B45),"") -> 
F46: =IF(OR(D46=EOMONTH(A46,0),B46<0),SUM($B$4:B46),"") -> 
F47: =IF(OR(D47=EOMONTH(A47,0),B47<0),SUM($B$4:B47),"") -> 
F48: =IF(OR(D48=EOMONTH(A48,0),B48<0),SUM($B$4:B48),"") -> 
F49: =IF(OR(D49=EOMONTH(A49,0),B49<0),SUM($B$4:B49),"") -> 
F50: =IF(OR(D50=EOMONTH(A50,0),B50<0),SUM($B$4:B50),"") -> 
F51: =IF(OR(D51=EOMONTH(A51,0),B51<0),SUM($B$4:B51),"") -> 
F52: =IF(OR(D52=EOMONTH(A52,0),B52<0),SUM($B$4:B52),"") -> 
F53: =IF(OR(D53=EOMONTH(A53,0),B53<0),SUM($B$4:B53),"") -> 
F54: =IF(OR(D54=EOMONTH(A54,0),B54<0),SUM($B$4:B54),"") -> 
F55: =IF(OR(D55=EOMONTH(A55,0),B55<0),SUM($B$4:B55),"") -> 
F56: =IF(OR(D56=EOMONTH(A56,0),B56<0),SUM($B$4:B56),"") -> 
F57: =IF(OR(D57=EOMONTH(A57,0),B57<0),SUM($B$4:B57),"") -> 
F58: =IF(OR(D58=EOMONTH(A58,0),B58<0),SUM($B$4:B58),"") -> 
F59: =IF(OR(D59=EOMONTH(A59,0),B59<0),SUM($B$4:B59),"") -> 
F60: =IF(OR(D60=EOMONTH(A60,0),B60<0),SUM($B$4:B60),"") -> 
F61: =IF(OR(D61=EOMONTH(A61,0),B61<0),SUM($B$4:B61),"") -> 
F62: =IF(OR(D62=EOMONTH(A62,0),B62<0),SUM($B$4:B62),"") -> 
F63: =IF(OR(D63=EOMONTH(A63,0),B63<0),SUM($B$4:B63),"") ->  | H63: =IF(G63="a","a","") -> 
F64: =IF(OR(D64=EOMONTH(A64,0),B64<0),SUM($B$4:B64),"") -> 
F65: =IF(OR(D65=EOMONTH(A65,0),B65<0),SUM($B$4:B65),"") -> 
F66: =IF(OR(D66=EOMONTH(A66,0),B66<0),SUM($B$4:B66),"") -> 
F67: =IF(OR(D67=EOMONTH(A67,0),B67<0),SUM($B$4:B67),"") -> 
F68: =IF(OR(D68=EOMONTH(A68,0),B68<0),SUM($B$4:B68),"") -> 
D69: =IF(B69<0,"",IF(AND(D68<>"",EOMONTH(A68,0)=EOMONTH(A69,0)),"",IF(AND(G69<>G70,D68=EOMONTH(A68,0)),EOMONTH(A69,0),IF(G69=G70,"",IF(G69=$L$1,EOMONTH($G$1,0),IF(AND(G69<>G70,G69<>H69),EOMONTH(A68,0),"")))))) ->  | F69: =IF(OR(D69=EOMONTH(A69,0),B69<0),SUM($B$4:B69),"") -> 
E70: =IF(G70=G71,"",IF(D70="","",SUMIF(G:G,G70,B:B))) ->  | F70: =IF(OR(D70=EOMONTH(A70,0),B70<0),SUM($B$4:B70),"") ->  | G70: =IF(A70="","",IF(B70>0,MONTH(A70),"a")) ->  | H70: =IF(G70="a","a","") ->  | I70: =IF(J70<>"",MONTH(J70),"") ->  | J70: =IF(G70="a",A70,"") ->  | K70: =IF(G70="a",B70,"") -> 
C71: =IF(A71="","",IF(C70="",C69+1,IF(G71="a","",C70+1))) ->  | F71: =IF(OR(D71=EOMONTH(A71,0),B71<0),SUM($B$4:B71),"") -> 
F72: =IF(OR(D72=EOMONTH(A72,0),B72<0),SUM($B$4:B72),"") -> 
F73: =IF(OR(D73=EOMONTH(A73,0),B73<0),SUM($B$4:B73),"") -> 
F74: =IF(OR(D74=EOMONTH(A74,0),B74<0),SUM($B$4:B74),"") -> 
F75: =IF(OR(D75=EOMONTH(A75,0),B75<0),SUM($B$4:B75),"") -> 
F76: =IF(OR(D76=EOMONTH(A76,0),B76<0),SUM($B$4:B76),"") -> 
F77: =IF(OR(D77=EOMONTH(A77,0),B77<0),SUM($B$4:B77),"") -> 
F78: =IF(OR(D78=EOMONTH(A78,0),B78<0),SUM($B$4:B78),"") -> 
F79: =IF(OR(D79=EOMONTH(A79,0),B79<0),SUM($B$4:B79),"") -> 
F80: =IF(OR(D80=EOMONTH(A80,0),B80<0),SUM($B$4:B80),"") -> 
F81: =IF(OR(D81=EOMONTH(A81,0),B81<0),SUM($B$4:B81),"") -> 
F82: =IF(OR(D82=EOMONTH(A82,0),B82<0),SUM($B$4:B82),"") -> 
F83: =IF(OR(D83=EOMONTH(A83,0),B83<0),SUM($B$4:B83),"") -> 
F84: =IF(OR(D84=EOMONTH(A84,0),B84<0),SUM($B$4:B84),"") -> 
F85: =IF(OR(D85=EOMONTH(A85,0),B85<0),SUM($B$4:B85),"") -> 
F86: =IF(OR(D86=EOMONTH(A86,0),B86<0),SUM($B$4:B86),"") -> 
F87: =IF(OR(D87=EOMONTH(A87,0),B87<0),SUM($B$4:B87),"") -> 
F88: =IF(OR(D88=EOMONTH(A88,0),B88<0),SUM($B$4:B88),"") -> 
F89: =IF(OR(D89=EOMONTH(A89,0),B89<0),SUM($B$4:B89),"") -> 
F90: =IF(OR(D90=EOMONTH(A90,0),B90<0),SUM($B$4:B90),"") -> 
F91: =IF(OR(D91=EOMONTH(A91,0),B91<0),SUM($B$4:B91),"") -> 
F92: =IF(OR(D92=EOMONTH(A92,0),B92<0),SUM($B$4:B92),"") -> 
F93: =IF(OR(D93=EOMONTH(A93,0),B93<0),SUM($B$4:B93),"") -> 
F94: =IF(OR(D94=EOMONTH(A94,0),B94<0),SUM($B$4:B94),"") -> 
F95: =IF(OR(D95=EOMONTH(A95,0),B95<0),SUM($B$4:B95),"") -> 
F96: =IF(OR(D96=EOMONTH(A96,0),B96<0),SUM($B$4:B96),"") -> 
F97: =IF(OR(D97=EOMONTH(A97,0),B97<0),SUM($B$4:B97),"") -> 
F98: =IF(OR(D98=EOMONTH(A98,0),B98<0),SUM($B$4:B98),"") -> 
F99: =IF(OR(D99=EOMONTH(A99,0),B99<0),SUM($B$4:B99),"") -> 
F100: =IF(OR(D100=EOMONTH(A100,0),B100<0),SUM($B$4:B100),"") -> 

Sheet Feuil6
A1: 2013-01-10 | B1: =Feuil1!B16 -> خالد لمواد البناء | F1: 977214.5 | G1: 2012-12-01 | H1: =SUM(B:B) -> 977214.5 | L1: =MONTH(G1) -> 12
A2: 2000
A3: التاريخ | B3: المبلغ | C3: رقم الوصل | D3: نهاية الشهر | E3: مجموع نهاية الشهر | F3: المجموع الكلي | L3: FIN MOID | M3: SOME MOID | O3: DATE AVONCE | P3: MONTENT AVONCE | R3: TOTAL
A4: 2012-12-31 | B4: 977214.5 | D4: 2012-12-31 | F4: =B4 -> 977214.5 | M4: =F4 -> 977214.5
C5: 1 | D5: =IF(B5<0,"",IF(AND(D4<>"",EOMONTH(A4,0)=EOMONTH(A5,0)),"",IF(AND(G5<>G6,D4=EOMONTH(A4,0)),EOMONTH(A5,0),IF(G5=G6,"",IF(G5=$L$1,EOMONTH($G$1,0),IF(AND(G5<>G6,G5<>H5),EOMONTH(A4,0),"")))))) ->  | E5: =IF(G5=G6,"",IF(D5="","",SUMIF(G:G,G5,B:B))) ->  | F5: =IF(OR(D5=EOMONTH(A5,0),B5<0),SUM($B$4:B5),"") ->  | G5: =IF(A5="","",IF(B5>0,MONTH(A5),"a")) ->  | H5: =IF(G5="a","a","") ->  | I5: =IF(J5<>"",MONTH(J5),"") ->  | J5: =IF(G5="a",A5,"") ->  | K5: =IF(G5="a",B5,"") ->  | L5: 2012-01-31 | M5: =IFERROR(VLOOKUP(L5,D:E,2,0),"0") -> 0 | N5: =IF(P5<0,SUM($M$4:M5,P5),SUM($M$4:M5)) -> 977214.5 | O5: =IFERROR(VLOOKUP(MONTH(L5),I:K,2,0),"") ->  | P5: =IFERROR(VLOOKUP(MONTH(L5),I:K,3,0),"") ->  | Q5: =IFERROR(P5+N5,"") ->  | R5: =N5 -> 977214.5
C6: =IF(A6="","",IF(C5="",C4+1,IF(G6="a","",C5+1))) ->  | F6: =IF(OR(D6=EOMONTH(A6,0),B6<0),SUM($B$4:B6),"") ->  | G6: =IF(A6="","",IF(B6>0,MONTH(A6),"a")) ->  | H6: =IF(G6="a","a","") ->  | I6: =IF(J6<>"",MONTH(J6),"") ->  | J6: =IF(G6="a",A6,"") ->  | K6: =IF(G6="a",B6,"") ->  | L6: 2012-02-29 | M6: =IFERROR(VLOOKUP(L6,D:E,2,0),"0") -> 0 | N6: =IF(P6<0,SUM($M$4:M6,P6),SUM($M$4:M6)) -> 977214.5 | O6: =IFERROR(VLOOKUP(MONTH(L6),I:K,2,0),"") ->  | P6: =IFERROR(VLOOKUP(MONTH(L6),I:K,3,0),"") ->  | Q6: =IFERROR(P6+N6,"") ->  | R6: =IFERROR(R5+M6+P6,R5+M6) -> 977214.5
C7: =IF(A7="","",IF(C6="",C5+1,IF(G7="a","",C6+1))) ->  | F7: =IF(OR(D7=EOMONTH(A7,0),B7<0),SUM($B$4:B7),"") ->  | L7: 2012-03-31 | M7: 0 | N7: =IF(P7<0,SUM($M$4:M7,P7),SUM($M$4:M7)) -> 977214.5 | R7: =IFERROR(R6+M7+P7,R6+M7) -> 977214.5
F8: =IF(OR(D8=EOMONTH(A8,0),B8<0),SUM($B$4:B8),"") ->  | L8: 2012-04-30 | M8: 0 | N8: =IF(P8<0,SUM($M$4:M8,P8),SUM($M$4:M8)) -> 977214.5 | R8: 977214.5
F9: =IF(OR(D9=EOMONTH(A9,0),B9<0),SUM($B$4:B9),"") ->  | L9: 2012-05-31 | M9: 0 | N9: =IF(P9<0,SUM($M$4:M9,P9),SUM($M$4:M9)) -> 977214.5 | R9: 977214.5
F10: =IF(OR(D10=EOMONTH(A10,0),B10<0),SUM($B$4:B10),"") ->  | L10: 2012-06-30 | M10: 0 | N10: =IF(P10<0,SUM($M$4:M10,P10),SUM($M$4:M10)) -> 977214.5 | R10: 977214.5
F11: =IF(OR(D11=EOMONTH(A11,0),B11<0),SUM($B$4:B11),"") ->  | L11: 2012-07-31 | M11: 0 | N11: =IF(P11<0,SUM($M$4:M11,P11),SUM($M$4:M11)) -> 977214.5 | R11: 977214.5
F12: =IF(OR(D12=EOMONTH(A12,0),B12<0),SUM($B$4:B12),"") ->  | L12: 2012-08-31 | M12: 0 | N12: =IF(P12<0,SUM($M$4:M12,P12),SUM($M$4:M12)) -> 977214.5 | R12: 977214.5
F13: =IF(OR(D13=EOMONTH(A13,0),B13<0),SUM($B$4:B13),"") ->  | L13: 2012-09-30 | M13: 0 | N13: =IF(P13<0,SUM($M$4:M13,P13),SUM($M$4:M13)) -> 977214.5 | R13: 977214.5
F14: =IF(OR(D14=EOMONTH(A14,0),B14<0),SUM($B$4:B14),"") ->  | L14: 2012-10-31 | M14: 0 | N14: =IF(P14<0,SUM($M$4:M14,P14),SUM($M$4:M14)) -> 977214.5 | R14: 977214.5
F15: =IF(OR(D15=EOMONTH(A15,0),B15<0),SUM($B$4:B15),"") ->  | L15: 2012-11-30 | M15: 0 | N15: =IF(P15<0,SUM($M$4:M15,P15),SUM($M$4:M15)) -> 977214.5 | R15: 977214.5
F16: =IF(OR(D16=EOMONTH(A16,0),B16<0),SUM($B$4:B16),"") ->  | L16: 2012-12-31 | M16: 0 | N16: =IF(P16<0,SUM($M$4:M16,P16),SUM($M$4:M16)) -> 977214.5 | R16: 977214.5
F17: =IF(OR(D17=EOMONTH(A17,0),B17<0),SUM($B$4:B17),"") ->  | R17: =R16-H1 -> 0
F18: =IF(OR(D18=EOMONTH(A18,0),B18<0),SUM($B$4:B18),"") -> 
F19: =IF(OR(D19=EOMONTH(A19,0),B19<0),SUM($B$4:B19),"") -> 
F20: =IF(OR(D20=EOMONTH(A20,0),B20<0),SUM($B$4:B20),"") -> 
F21: =IF(OR(D21=EOMONTH(A21,0),B21<0),SUM($B$4:B21),"") -> 
F22: =IF(OR(D22=EOMONTH(A22,0),B22<0),SUM($B$4:B22),"") ->  | R22: =IFERROR(Q22+O22,"") -> 0
F23: =IF(OR(D23=EOMONTH(A23,0),B23<0),SUM($B$4:B23),"") -> 
F24: =IF(OR(D24=EOMONTH(A24,0),B24<0),SUM($B$4:B24),"") -> 
F25: =IF(OR(D25=EOMONTH(A25,0),B25<0),SUM($B$4:B25),"") -> 
F26: =IF(OR(D26=EOMONTH(A26,0),B26<0),SUM($B$4:B26),"") -> 
F27: =IF(OR(D27=EOMONTH(A27,0),B27<0),SUM($B$4:B27),"") -> 
F28: =IF(OR(D28=EOMONTH(A28,0),B28<0),SUM($B$4:B28),"") -> 
F29: =IF(OR(D29=EOMONTH(A29,0),B29<0),SUM($B$4:B29),"") -> 
F30: =IF(OR(D30=EOMONTH(A30,0),B30<0),SUM($B$4:B30),"") -> 
F31: =IF(OR(D31=EOMONTH(A31,0),B31<0),SUM($B$4:B31),"") -> 
F32: =IF(OR(D32=EOMONTH(A32,0),B32<0),SUM($B$4:B32),"") -> 
F33: =IF(OR(D33=EOMONTH(A33,0),B33<0),SUM($B$4:B33),"") -> 
F34: =IF(OR(D34=EOMONTH(A34,0),B34<0),SUM($B$4:B34),"") -> 
F35: =IF(OR(D35=EOMONTH(A35,0),B35<0),SUM($B$4:B35),"") -> 
F36: =IF(OR(D36=EOMONTH(A36,0),B36<0),SUM($B$4:B36),"") -> 
F37: =IF(OR(D37=EOMONTH(A37,0),B37<0),SUM($B$4:B37),"") -> 
F38: =IF(OR(D38=EOMONTH(A38,0),B38<0),SUM($B$4:B38),"") -> 
F39: =IF(OR(D39=EOMONTH(A39,0),B39<0),SUM($B$4:B39),"") -> 
F40: =IF(OR(D40=EOMONTH(A40,0),B40<0),SUM($B$4:B40),"") -> 
F41: =IF(OR(D41=EOMONTH(A41,0),B41<0),SUM($B$4:B41),"") -> 
F42: =IF(OR(D42=EOMONTH(A42,0),B42<0),SUM($B$4:B42),"") -> 
F43: =IF(OR(D43=EOMONTH(A43,0),B43<0),SUM($B$4:B43),"") -> 
F44: =IF(OR(D44=EOMONTH(A44,0),B44<0),SUM($B$4:B44),"") -> 
F45: =IF(OR(D45=EOMONTH(A45,0),B45<0),SUM($B$4:B45),"") -> 
F46: =IF(OR(D46=EOMONTH(A46,0),B46<0),SUM($B$4:B46),"") -> 
F47: =IF(OR(D47=EOMONTH(A47,0),B47<0),SUM($B$4:B47),"") -> 
F48: =IF(OR(D48=EOMONTH(A48,0),B48<0),SUM($B$4:B48),"") -> 
F49: =IF(OR(D49=EOMONTH(A49,0),B49<0),SUM($B$4:B49),"") -> 
F50: =IF(OR(D50=EOMONTH(A50,0),B50<0),SUM($B$4:B50),"") -> 
F51: =IF(OR(D51=EOMONTH(A51,0),B51<0),SUM($B$4:B51),"") -> 
F52: =IF(OR(D52=EOMONTH(A52,0),B52<0),SUM($B$4:B52),"") -> 
F53: =IF(OR(D53=EOMONTH(A53,0),B53<0),SUM($B$4:B53),"") -> 
F54: =IF(OR(D54=EOMONTH(A54,0),B54<0),SUM($B$4:B54),"") -> 
F55: =IF(OR(D55=EOMONTH(A55,0),B55<0),SUM($B$4:B55),"") -> 
F56: =IF(OR(D56=EOMONTH(A56,0),B56<0),SUM($B$4:B56),"") -> 
F57: =IF(OR(D57=EOMONTH(A57,0),B57<0),SUM($B$4:B57),"") -> 
F58: =IF(OR(D58=EOMONTH(A58,0),B58<0),SUM($B$4:B58),"") -> 
F59: =IF(OR(D59=EOMONTH(A59,0),B59<0),SUM($B$4:B59),"") -> 
F60: =IF(OR(D60=EOMONTH(A60,0),B60<0),SUM($B$4:B60),"") -> 
F61: =IF(OR(D61=EOMONTH(A61,0),B61<0),SUM($B$4:B61),"") -> 
F62: =IF(OR(D62=EOMONTH(A62,0),B62<0),SUM($B$4:B62),"") -> 
F63: =IF(OR(D63=EOMONTH(A63,0),B63<0),SUM($B$4:B63),"") ->  | H63: =IF(G63="a","a","") -> 
F64: =IF(OR(D64=EOMONTH(A64,0),B64<0),SUM($B$4:B64),"") -> 
F65: =IF(OR(D65=EOMONTH(A65,0),B65<0),SUM($B$4:B65),"") -> 
F66: =IF(OR(D66=EOMONTH(A66,0),B66<0),SUM($B$4:B66),"") -> 
F67: =IF(OR(D67=EOMONTH(A67,0),B67<0),SUM($B$4:B67),"") -> 
F68: =IF(OR(D68=EOMONTH(A68,0),B68<0),SUM($B$4:B68),"") -> 
D69: =IF(B69<0,"",IF(AND(D68<>"",EOMONTH(A68,0)=EOMONTH(A69,0)),"",IF(AND(G69<>G70,D68=EOMONTH(A68,0)),EOMONTH(A69,0),IF(G69=G70,"",IF(G69=$L$1,EOMONTH($G$1,0),IF(AND(G69<>G70,G69<>H69),EOMONTH(A68,0),"")))))) ->  | F69: =IF(OR(D69=EOMONTH(A69,0),B69<0),SUM($B$4:B69),"") -> 
E70: =IF(G70=G71,"",IF(D70="","",SUMIF(G:G,G70,B:B))) ->  | F70: =IF(OR(D70=EOMONTH(A70,0),B70<0),SUM($B$4:B70),"") ->  | G70: =IF(A70="","",IF(B70>0,MONTH(A70),"a")) ->  | H70: =IF(G70="a","a","") ->  | I70: =IF(J70<>"",MONTH(J70),"") ->  | J70: =IF(G70="a",A70,"") ->  | K70: =IF(G70="a",B70,"") -> 
C71: =IF(A71="","",IF(C70="",C69+1,IF(G71="a","",C70+1))) ->  | F71: =IF(OR(D71=EOMONTH(A71,0),B71<0),SUM($B$4:B71),"") -> 
F72: =IF(OR(D72=EOMONTH(A72,0),B72<0),SUM($B$4:B72),"") -> 
F73: =IF(OR(D73=EOMONTH(A73,0),B73<0),SUM($B$4:B73),"") -> 
F74: =IF(OR(D74=EOMONTH(A74,0),B74<0),SUM($B$4:B74),"") -> 
F75: =IF(OR(D75=EOMONTH(A75,0),B75<0),SUM($B$4:B75),"") -> 
F76: =IF(OR(D76=EOMONTH(A76,0),B76<0),SUM($B$4:B76),"") -> 
F77: =IF(OR(D77=EOMONTH(A77,0),B77<0),SUM($B$4:B77),"") -> 
E78: =IF(G78=G79,"",IF(D78="","",SUMIF(G:G,G78,B:B))) ->  | F78: =IF(OR(D78=EOMONTH(A78,0),B78<0),SUM($B$4:B78),"") -> 
E79: =IF(G79=G80,"",IF(D79="","",SUMIF(G:G,G79,B:B))) ->  | F79: =IF(OR(D79=EOMONTH(A79,0),B79<0),SUM($B$4:B79),"") -> 
F80: =IF(OR(D80=EOMONTH(A80,0),B80<0),SUM($B$4:B80),"") -> 
F81: =IF(OR(D81=EOMONTH(A81,0),B81<0),SUM($B$4:B81),"") -> 
F82: =IF(OR(D82=EOMONTH(A82,0),B82<0),SUM($B$4:B82),"") -> 
F83: =IF(OR(D83=EOMONTH(A83,0),B83<0),SUM($B$4:B83),"") -> 
F84: =IF(OR(D84=EOMONTH(A84,0),B84<0),SUM($B$4:B84),"") -> 
F85: =IF(OR(D85=EOMONTH(A85,0),B85<0),SUM($B$4:B85),"") -> 
F86: =IF(OR(D86=EOMONTH(A86,0),B86<0),SUM($B$4:B86),"") -> 
F87: =IF(OR(D87=EOMONTH(A87,0),B87<0),SUM($B$4:B87),"") -> 
F88: =IF(OR(D88=EOMONTH(A88,0),B88<0),SUM($B$4:B88),"") -> 
F89: =IF(OR(D89=EOMONTH(A89,0),B89<0),SUM($B$4:B89),"") -> 
F90: =IF(OR(D90=EOMONTH(A90,0),B90<0),SUM($B$4:B90),"") -> 
F91: =IF(OR(D91=EOMONTH(A91,0),B91<0),SUM($B$4:B91),"") -> 
F92: =IF(OR(D92=EOMONTH(A92,0),B92<0),SUM($B$4:B92),"") -> 
F93: =IF(OR(D93=EOMONTH(A93,0),B93<0),SUM($B$4:B93),"") -> 
F94: =IF(OR(D94=EOMONTH(A94,0),B94<0),SUM($B$4:B94),"") -> 
F95: =IF(OR(D95=EOMONTH(A95,0),B95<0),SUM($B$4:B95),"") -> 
F96: =IF(OR(D96=EOMONTH(A96,0),B96<0),SUM($B$4:B96),"") -> 
F97: =IF(OR(D97=EOMONTH(A97,0),B97<0),SUM($B$4:B97),"") -> 
F98: =IF(OR(D98=EOMONTH(A98,0),B98<0),SUM($B$4:B98),"") -> 
F99: =IF(OR(D99=EOMONTH(A99,0),B99<0),SUM($B$4:B99),"") -> 
F100: =IF(OR(D100=EOMONTH(A100,0),B100<0),SUM($B$4:B100),"") -> 

Sheet Feuil7
B1: =Feuil1!B17 -> H2PL | G1: 2012-12-01 | H1: =SUM(B:B) -> 412140.94 | L1: =MONTH(G1) -> 12
A3: DATE | B3: MONTANT | C3: N° Bon | D3: Fin Mois | E3: Total Mois | F3: G TOTAL | L3: FIN MOID | M3: SOME MOID | O3: DATE AVONCE | P3: MONTENT AVONCE | R3: TOTAL
A4: 2011-12-31 | B4: 310190.41 | D4: 2011-12-31 | F4: =B4 -> 310190.41 | M4: =F4 -> 310190.41
A5: 2012-03-27 | B5: 3625 | C5: 1 | D5: =IF(B5<0,"",IF(AND(D4<>"",EOMONTH(A4,0)=EOMONTH(A5,0)),"",IF(AND(G5<>G6,D4=EOMONTH(A4,0)),EOMONTH(A5,0),IF(G5=G6,"",IF(G5=$L$1,EOMONTH($G$1,0),IF(AND(G5<>G6,G5<>H5),EOMONTH(A4,0),"")))))) ->  | E5: =IF(G5=G6,"",IF(D5="","",SUMIF(G:G,G5,B:B))) ->  | F5: =IF(OR(D5=EOMONTH(A5,0),B5<0),SUM($B$4:B5),"") ->  | G5: =IF(A5="","",IF(B5>0,MONTH(A5),"a")) -> 3 | H5: =IF(G5="a","a","") ->  | I5: =IF(J5<>"",MONTH(J5),"") ->  | J5: =IF(G5="a",A5,"") ->  | K5: =IF(G5="a",B5,"") ->  | L5: 2012-01-31 | M5: =IFERROR(VLOOKUP(L5,D:E,2,0),"0") -> 0 | N5: =IF(P5<0,SUM($M$4:M5,P5),SUM($M$4:M5)) -> 310190.41 | O5: =IFERROR(VLOOKUP(MONTH(L5),I:K,2,0),"") ->  | P5: =IFERROR(VLOOKUP(MONTH(L5),I:K,3,0),"") ->  | Q5: =IFERROR(P5+N5,"") ->  | R5: =N5 -> 310190.41
A6: 2012-03-28 | B6: 9637.5 | C6: =IF(A6="","",IF(C5="",C4+1,IF(G6="a","",C5+1))) -> 2 | D6: 2012-03-31 | E6: 13262.5 | F6: =IF(OR(D6=EOMONTH(A6,0),B6<0),SUM($B$4:B6),"") -> 323452.91 | G6: =IF(A6="","",IF(B6>0,MONTH(A6),"a")) -> 3 | H6: =IF(G6="a","a","") ->  | I6: =IF(J6<>"",MONTH(J6),"") ->  | J6: =IF(G6="a",A6,"") ->  | K6: =IF(G6="a",B6,"") ->  | L6: 2012-02-29 | M6: =IFERROR(VLOOKUP(L6,D:E,2,0),"0") -> 0 | N6: =IF(P6<0,SUM($M$4:M6,P6),SUM($M$4:M6)) -> 310190.41 | O6: =IFERROR(VLOOKUP(MONTH(L6),I:K,2,0),"") ->  | P6: =IFERROR(VLOOKUP(MONTH(L6),I:K,3,0),"") ->  | Q6: =IFERROR(P6+N6,"") ->  | R6: =IFERROR(R5+M6+P6,R5+M6) -> 310190.41
A7: 2012-04-30 | B7: 42207.27 | C7: =IF(A7="","",IF(C6="",C5+1,IF(G7="a","",C6+1))) -> 3 | D7: 2012-04-30 | E7: 42207.27 | F7: =IF(OR(D7=EOMONTH(A7,0),B7<0),SUM($B$4:B7),"") -> 365660.18 | G7: 4 | L7: 2012-03-31 | M7: 13262.5 | N7: =IF(P7<0,SUM($M$4:M7,P7),SUM($M$4:M7)) -> 323452.91 | R7: =IFERROR(R6+M7+P7,R6+M7) -> 323452.91
A8: 2012-09-12 | B8: 46480.76 | C8: 4 | D8: 2012-09-30 | E8: 46480.76 | F8: =IF(OR(D8=EOMONTH(A8,0),B8<0),SUM($B$4:B8),"") -> 412140.94 | G8: 9 | L8: 2012-04-30 | M8: 42207.27 | N8: =IF(P8<0,SUM($M$4:M8,P8),SUM($M$4:M8)) -> 365660.18 | R8: 365660.18
F9: =IF(OR(D9=EOMONTH(A9,0),B9<0),SUM($B$4:B9),"") ->  | L9: 2012-05-31 | M9: 0 | N9: =IF(P9<0,SUM($M$4:M9,P9),SUM($M$4:M9)) -> 365660.18 | R9: 365660.18
F10: =IF(OR(D10=EOMONTH(A10,0),B10<0),SUM($B$4:B10),"") ->  | L10: 2012-06-30 | M10: 0 | N10: =IF(P10<0,SUM($M$4:M10,P10),SUM($M$4:M10)) -> 365660.18 | R10: 365660.18
F11: =IF(OR(D11=EOMONTH(A11,0),B11<0),SUM($B$4:B11),"") ->  | L11: 2012-07-31 | M11: 0 | N11: =IF(P11<0,SUM($M$4:M11,P11),SUM($M$4:M11)) -> 365660.18 | R11: 365660.18
F12: =IF(OR(D12=EOMONTH(A12,0),B12<0),SUM($B$4:B12),"") ->  | L12: 2012-08-31 | M12: 0 | N12: =IF(P12<0,SUM($M$4:M12,P12),SUM($M$4:M12)) -> 365660.18 | R12: 365660.18
F13: =IF(OR(D13=EOMONTH(A13,0),B13<0),SUM($B$4:B13),"") ->  | L13: 2012-09-30 | M13: 46480.76 | N13: =IF(P13<0,SUM($M$4:M13,P13),SUM($M$4:M13)) -> 412140.94 | R13: 412140.94
F14: =IF(OR(D14=EOMONTH(A14,0),B14<0),SUM($B$4:B14),"") ->  | L14: 2012-10-31 | M14: 0 | N14: =IF(P14<0,SUM($M$4:M14,P14),SUM($M$4:M14)) -> 412140.94 | R14: 412140.94
F15: =IF(OR(D15=EOMONTH(A15,0),B15<0),SUM($B$4:B15),"") ->  | L15: 2012-11-30 | M15: 0 | N15: =IF(P15<0,SUM($M$4:M15,P15),SUM($M$4:M15)) -> 412140.94 | R15: 412140.94
F16: =IF(OR(D16=EOMONTH(A16,0),B16<0),SUM($B$4:B16),"") ->  | L16: 2012-12-31 | M16: 0 | N16: =IF(P16<0,SUM($M$4:M16,P16),SUM($M$4:M16)) -> 412140.94 | R16: 412140.94
F17: =IF(OR(D17=EOMONTH(A17,0),B17<0),SUM($B$4:B17),"") ->  | R17: =R16-H1 -> 0
F18: =IF(OR(D18=EOMONTH(A18,0),B18<0),SUM($B$4:B18),"") -> 
F19: =IF(OR(D19=EOMONTH(A19,0),B19<0),SUM($B$4:B19),"") -> 
F20: =IF(OR(D20=EOMONTH(A20,0),B20<0),SUM($B$4:B20),"") -> 
F21: =IF(OR(D21=EOMONTH(A21,0),B21<0),SUM($B$4:B21),"") -> 
F22: =IF(OR(D22=EOMONTH(A22,0),B22<0),SUM($B$4:B22),"") ->  | R22: =IFERROR(Q22+O22,"") -> 0
F23: =IF(OR(D23=EOMONTH(A23,0),B23<0),SUM($B$4:B23),"") -> 
F24: =IF(OR(D24=EOMONTH(A24,0),B24<0),SUM($B$4:B24),"") -> 
F25: =IF(OR(D25=EOMONTH(A25,0),B25<0),SUM($B$4:B25),"") -> 
F26: =IF(OR(D26=EOMONTH(A26,0),B26<0),SUM($B$4:B26),"") -> 
F27: =IF(OR(D27=EOMONTH(A27,0),B27<0),SUM($B$4:B27),"") -> 
F28: =IF(OR(D28=EOMONTH(A28,0),B28<0),SUM($B$4:B28),"") -> 
F29: =IF(OR(D29=EOMONTH(A29,0),B29<0),SUM($B$4:B29),"") -> 
F30: =IF(OR(D30=EOMONTH(A30,0),B30<0),SUM($B$4:B30),"") -> 
F31: =IF(OR(D31=EOMONTH(A31,0),B31<0),SUM($B$4:B31),"") -> 
F32: =IF(OR(D32=EOMONTH(A32,0),B32<0),SUM($B$4:B32),"") -> 
F33: =IF(OR(D33=EOMONTH(A33,0),B33<0),SUM($B$4:B33),"") -> 
F34: =IF(OR(D34=EOMONTH(A34,0),B34<0),SUM($B$4:B34),"") -> 
F35: =IF(OR(D35=EOMONTH(A35,0),B35<0),SUM($B$4:B35),"") -> 
F36: =IF(OR(D36=EOMONTH(A36,0),B36<0),SUM($B$4:B36),"") -> 
F37: =IF(OR(D37=EOMONTH(A37,0),B37<0),SUM($B$4:B37),"") -> 
F38: =IF(OR(D38=EOMONTH(A38,0),B38<0),SUM($B$4:B38),"") -> 
F39: =IF(OR(D39=EOMONTH(A39,0),B39<0),SUM($B$4:B39),"") -> 
F40: =IF(OR(D40=EOMONTH(A40,0),B40<0),SUM($B$4:B40),"") -> 
F41: =IF(OR(D41=EOMONTH(A41,0),B41<0),SUM($B$4:B41),"") -> 
F42: =IF(OR(D42=EOMONTH(A42,0),B42<0),SUM($B$4:B42),"") -> 
F43: =IF(OR(D43=EOMONTH(A43,0),B43<0),SUM($B$4:B43),"") -> 
F44: =IF(OR(D44=EOMONTH(A44,0),B44<0),SUM($B$4:B44),"") -> 
F45: =IF(OR(D45=EOMONTH(A45,0),B45<0),SUM($B$4:B45),"") -> 
F46: =IF(OR(D46=EOMONTH(A46,0),B46<0),SUM($B$4:B46),"") -> 
F47: =IF(OR(D47=EOMONTH(A47,0),B47<0),SUM($B$4:B47),"") -> 
F48: =IF(OR(D48=EOMONTH(A48,0),B48<0),SUM($B$4:B48),"") -> 
F49: =IF(OR(D49=EOMONTH(A49,0),B49<0),SUM($B$4:B49),"") -> 
F50: =IF(OR(D50=EOMONTH(A50,0),B50<0),SUM($B$4:B50),"") -> 
F51: =IF(OR(D51=EOMONTH(A51,0),B51<0),SUM($B$4:B51),"") -> 
F52: =IF(OR(D52=EOMONTH(A52,0),B52<0),SUM($B$4:B52),"") -> 
F53: =IF(OR(D53=EOMONTH(A53,0),B53<0),SUM($B$4:B53),"") -> 
F54: =IF(OR(D54=EOMONTH(A54,0),B54<0),SUM($B$4:B54),"") -> 
F55: =IF(OR(D55=EOMONTH(A55,0),B55<0),SUM($B$4:B55),"") -> 
F56: =IF(OR(D56=EOMONTH(A56,0),B56<0),SUM($B$4:B56),"") -> 
F57: =IF(OR(D57=EOMONTH(A57,0),B57<0),SUM($B$4:B57),"") -> 
F58: =IF(OR(D58=EOMONTH(A58,0),B58<0),SUM($B$4:B58),"") -> 
F59: =IF(OR(D59=EOMONTH(A59,0),B59<0),SUM($B$4:B59),"") -> 
F60: =IF(OR(D60=EOMONTH(A60,0),B60<0),SUM($B$4:B60),"") -> 
F61: =IF(OR(D61=EOMONTH(A61,0),B61<0),SUM($B$4:B61),"") -> 
F62: =IF(OR(D62=EOMONTH(A62,0),B62<0),SUM($B$4:B62),"") -> 
F63: =IF(OR(D63=EOMONTH(A63,0),B63<0),SUM($B$4:B63),"") ->  | H63: =IF(G63="a","a","") -> 
F64: =IF(OR(D64=EOMONTH(A64,0),B64<0),SUM($B$4:B64),"") -> 
F65: =IF(OR(D65=EOMONTH(A65,0),B65<0),SUM($B$4:B65),"") -> 
F66: =IF(OR(D66=EOMONTH(A66,0),B66<0),SUM($B$4:B66),"") -> 
F67: =IF(OR(D67=EOMONTH(A67,0),B67<0),SUM($B$4:B67),"") -> 
F68: =IF(OR(D68=EOMONTH(A68,0),B68<0),SUM($B$4:B68),"") -> 
D69: =IF(B69<0,"",IF(AND(D68<>"",EOMONTH(A68,0)=EOMONTH(A69,0)),"",IF(AND(G69<>G70,D68=EOMONTH(A68,0)),EOMONTH(A69,0),IF(G69=G70,"",IF(G69=$L$1,EOMONTH($G$1,0),IF(AND(G69<>G70,G69<>H69),EOMONTH(A68,0),"")))))) ->  | F69: =IF(OR(D69=EOMONTH(A69,0),B69<0),SUM($B$4:B69),"") -> 
E70: =IF(G70=G71,"",IF(D70="","",SUMIF(G:G,G70,B:B))) ->  | F70: =IF(OR(D70=EOMONTH(A70,0),B70<0),SUM($B$4:B70),"") ->  | G70: =IF(A70="","",IF(B70>0,MONTH(A70),"a")) ->  | H70: =IF(G70="a","a","") ->  | I70: =IF(J70<>"",MONTH(J70),"") ->  | J70: =IF(G70="a",A70,"") ->  | K70: =IF(G70="a",B70,"") -> 
C71: =IF(A71="","",IF(C70="",C69+1,IF(G71="a","",C70+1))) ->  | F71: =IF(OR(D71=EOMONTH(A71,0),B71<0),SUM($B$4:B71),"") -> 
F72: =IF(OR(D72=EOMONTH(A72,0),B72<0),SUM($B$4:B72),"") -> 
F73: =IF(OR(D73=EOMONTH(A73,0),B73<0),SUM($B$4:B73),"") -> 
F74: =IF(OR(D74=EOMONTH(A74,0),B74<0),SUM($B$4:B74),"") -> 
F75: =IF(OR(D75=EOMONTH(A75,0),B75<0),SUM($B$4:B75),"") -> 
F76: =IF(OR(D76=EOMONTH(A76,0),B76<0),SUM($B$4:B76),"") -> 
F77: =IF(OR(D77=EOMONTH(A77,0),B77<0),SUM($B$4:B77),"") -> 
E78: =IF(G78=G79,"",IF(D78="","",SUMIF(G:G,G78,B:B))) ->  | F78: =IF(OR(D78=EOMONTH(A78,0),B78<0),SUM($B$4:B78),"") -> 
E79: =IF(G79=G80,"",IF(D79="","",SUMIF(G:G,G79,B:B))) ->  | F79: =IF(OR(D79=EOMONTH(A79,0),B79<0),SUM($B$4:B79),"") -> 
F80: =IF(OR(D80=EOMONTH(A80,0),B80<0),SUM($B$4:B80),"") -> 
F81: =IF(OR(D81=EOMONTH(A81,0),B81<0),SUM($B$4:B81),"") -> 
F82: =IF(OR(D82=EOMONTH(A82,0),B82<0),SUM($B$4:B82),"") -> 
F83: =IF(OR(D83=EOMONTH(A83,0),B83<0),SUM($B$4:B83),"") -> 
F84: =IF(OR(D84=EOMONTH(A84,0),B84<0),SUM($B$4:B84),"") -> 
F85: =IF(OR(D85=EOMONTH(A85,0),B85<0),SUM($B$4:B85),"") -> 
F86: =IF(OR(D86=EOMONTH(A86,0),B86<0),SUM($B$4:B86),"") -> 
F87: =IF(OR(D87=EOMONTH(A87,0),B87<0),SUM($B$4:B87),"") -> 
F88: =IF(OR(D88=EOMONTH(A88,0),B88<0),SUM($B$4:B88),"") -> 
F89: =IF(OR(D89=EOMONTH(A89,0),B89<0),SUM($B$4:B89),"") -> 
F90: =IF(OR(D90=EOMONTH(A90,0),B90<0),SUM($B$4:B90),"") -> 
F91: =IF(OR(D91=EOMONTH(A91,0),B91<0),SUM($B$4:B91),"") -> 
F92: =IF(OR(D92=EOMONTH(A92,0),B92<0),SUM($B$4:B92),"") -> 
F93: =IF(OR(D93=EOMONTH(A93,0),B93<0),SUM($B$4:B93),"") -> 
F94: =IF(OR(D94=EOMONTH(A94,0),B94<0),SUM($B$4:B94),"") -> 
F95: =IF(OR(D95=EOMONTH(A95,0),B95<0),SUM($B$4:B95),"") -> 
F96: =IF(OR(D96=EOMONTH(A96,0),B96<0),SUM($B$4:B96),"") -> 
F97: =IF(OR(D97=EOMONTH(A97,0),B97<0),SUM($B$4:B97),"") -> 
F98: =IF(OR(D98=EOMONTH(A98,0),B98<0),SUM($B$4:B98),"") -> 
F99: =IF(OR(D99=EOMONTH(A99,0),B99<0),SUM($B$4:B99),"") -> 
F100: =IF(OR(D100=EOMONTH(A100,0),B100<0),SUM($B$4:B100),"") -> 

Sheet Feuil8
B1: =Feuil1!B18 -> REMLI MENUISIER | G1: 2012-12-01 | H1: =SUM(B:B) -> 54204 | L1: =MONTH(G1) -> 12
A3: DATE | B3: MONTANT | C3: N° Bon | D3: Fin Mois | E3: Total Mois | F3: G TOTAL | L3: FIN MOID | M3: SOME MOID | O3: DATE AVONCE | P3: MONTENT AVONCE | R3: TOTAL
A4: 2011-12-31 | D4: 2011-12-31 | F4: =B4 -> 0 | M4: =F4 -> 0
A5: 2012-01-01 | B5: 54204 | C5: 1 | D5: =IF(B5<0,"",IF(AND(D4<>"",EOMONTH(A4,0)=EOMONTH(A5,0)),"",IF(AND(G5<>G6,D4=EOMONTH(A4,0)),EOMONTH(A5,0),IF(G5=G6,"",IF(G5=$L$1,EOMONTH($G$1,0),IF(AND(G5<>G6,G5<>H5),EOMONTH(A4,0),"")))))) -> 2012-01-31 | E5: =IF(G5=G6,"",IF(D5="","",SUMIF(G:G,G5,B:B))) -> 54204 | F5: =IF(OR(D5=EOMONTH(A5,0),B5<0),SUM($B$4:B5),"") -> 54204 | G5: =IF(A5="","",IF(B5>0,MONTH(A5),"a")) -> 1 | H5: =IF(G5="a","a","") ->  | I5: =IF(J5<>"",MONTH(J5),"") ->  | J5: =IF(G5="a",A5,"") ->  | K5: =IF(G5="a",B5,"") ->  | L5: 2012-01-31 | M5: =IFERROR(VLOOKUP(L5,D:E,2,0),"0") -> 54204 | N5: =IF(P5<0,SUM($M$4:M5,P5),SUM($M$4:M5)) -> 54204 | O5: =IFERROR(VLOOKUP(MONTH(L5),I:K,2,0),"") ->  | P5: =IFERROR(VLOOKUP(MONTH(L5),I:K,3,0),"") ->  | Q5: =IFERROR(P5+N5,"") ->  | R5: =N5 -> 54204
C6: =IF(A6="","",IF(C5="",C4+1,IF(G6="a","",C5+1))) ->  | F6: =IF(OR(D6=EOMONTH(A6,0),B6<0),SUM($B$4:B6),"") ->  | G6: =IF(A6="","",IF(B6>0,MONTH(A6),"a")) ->  | H6: =IF(G6="a","a","") ->  | I6: =IF(J6<>"",MONTH(J6),"") ->  | J6: =IF(G6="a",A6,"") ->  | K6: =IF(G6="a",B6,"") ->  | L6: 2012-02-29 | M6: =IFERROR(VLOOKUP(L6,D:E,2,0),"0") -> 0 | N6: =IF(P6<0,SUM($M$4:M6,P6),SUM($M$4:M6)) -> 54204 | O6: =IFERROR(VLOOKUP(MONTH(L6),I:K,2,0),"") ->  | P6: =IFERROR(VLOOKUP(MONTH(L6),I:K,3,0),"") ->  | Q6: =IFERROR(P6+N6,"") ->  | R6: =IFERROR(R5+M6+P6,R5+M6) -> 54204
C7: =IF(A7="","",IF(C6="",C5+1,IF(G7="a","",C6+1))) ->  | F7: =IF(OR(D7=EOMONTH(A7,0),B7<0),SUM($B$4:B7),"") ->  | L7: 2012-03-31 | M7: 0 | N7: =IF(P7<0,SUM($M$4:M7,P7),SUM($M$4:M7)) -> 54204 | R7: =IFERROR(R6+M7+P7,R6+M7) -> 54204
F8: =IF(OR(D8=EOMONTH(A8,0),B8<0),SUM($B$4:B8),"") ->  | L8: 2012-04-30 | M8: 0 | N8: =IF(P8<0,SUM($M$4:M8,P8),SUM($M$4:M8)) -> 54204 | R8: 54204
F9: =IF(OR(D9=EOMONTH(A9,0),B9<0),SUM($B$4:B9),"") ->  | L9: 2012-05-31 | M9: 0 | N9: =IF(P9<0,SUM($M$4:M9,P9),SUM($M$4:M9)) -> 54204 | R9: 54204
F10: =IF(OR(D10=EOMONTH(A10,0),B10<0),SUM($B$4:B10),"") ->  | L10: 2012-06-30 | M10: 0 | N10: =IF(P10<0,SUM($M$4:M10,P10),SUM($M$4:M10)) -> 54204 | R10: 54204
F11: =IF(OR(D11=EOMONTH(A11,0),B11<0),SUM($B$4:B11),"") ->  | L11: 2012-07-31 | M11: 0 | N11: =IF(P11<0,SUM($M$4:M11,P11),SUM($M$4:M11)) -> 54204 | R11: 54204
F12: =IF(OR(D12=EOMONTH(A12,0),B12<0),SUM($B$4:B12),"") ->  | L12: 2012-08-31 | M12: 0 | N12: =IF(P12<0,SUM($M$4:M12,P12),SUM($M$4:M12)) -> 54204 | R12: 54204
F13: =IF(OR(D13=EOMONTH(A13,0),B13<0),SUM($B$4:B13),"") ->  | L13: 2012-09-30 | M13: 0 | N13: =IF(P13<0,SUM($M$4:M13,P13),SUM($M$4:M13)) -> 54204 | R13: 54204
F14: =IF(OR(D14=EOMONTH(A14,0),B14<0),SUM($B$4:B14),"") ->  | L14: 2012-10-31 | M14: 0 | N14: =IF(P14<0,SUM($M$4:M14,P14),SUM($M$4:M14)) -> 54204 | R14: 54204
F15: =IF(OR(D15=EOMONTH(A15,0),B15<0),SUM($B$4:B15),"") ->  | L15: 2012-11-30 | M15: 0 | N15: =IF(P15<0,SUM($M$4:M15,P15),SUM($M$4:M15)) -> 54204 | R15: 54204
F16: =IF(OR(D16=EOMONTH(A16,0),B16<0),SUM($B$4:B16),"") ->  | L16: 2012-12-31 | M16: 0 | N16: =IF(P16<0,SUM($M$4:M16,P16),SUM($M$4:M16)) -> 54204 | R16: 54204
F17: =IF(OR(D17=EOMONTH(A17,0),B17<0),SUM($B$4:B17),"") ->  | R17: =R16-H1 -> 0
F18: =IF(OR(D18=EOMONTH(A18,0),B18<0),SUM($B$4:B18),"") -> 
F19: =IF(OR(D19=EOMONTH(A19,0),B19<0),SUM($B$4:B19),"") -> 
F20: =IF(OR(D20=EOMONTH(A20,0),B20<0),SUM($B$4:B20),"") -> 
F21: =IF(OR(D21=EOMONTH(A21,0),B21<0),SUM($B$4:B21),"") -> 
F22: =IF(OR(D22=EOMONTH(A22,0),B22<0),SUM($B$4:B22),"") ->  | R22: =IFERROR(Q22+O22,"") -> 0
F23: =IF(OR(D23=EOMONTH(A23,0),B23<0),SUM($B$4:B23),"") -> 
F24: =IF(OR(D24=EOMONTH(A24,0),B24<0),SUM($B$4:B24),"") -> 
F25: =IF(OR(D25=EOMONTH(A25,0),B25<0),SUM($B$4:B25),"") -> 
F26: =IF(OR(D26=EOMONTH(A26,0),B26<0),SUM($B$4:B26),"") -> 
F27: =IF(OR(D27=EOMONTH(A27,0),B27<0),SUM($B$4:B27),"") -> 
F28: =IF(OR(D28=EOMONTH(A28,0),B28<0),SUM($B$4:B28),"") -> 
F29: =IF(OR(D29=EOMONTH(A29,0),B29<0),SUM($B$4:B29),"") -> 
F30: =IF(OR(D30=EOMONTH(A30,0),B30<0),SUM($B$4:B30),"") -> 
F31: =IF(OR(D31=EOMONTH(A31,0),B31<0),SUM($B$4:B31),"") -> 
F32: =IF(OR(D32=EOMONTH(A32,0),B32<0),SUM($B$4:B32),"") -> 
F33: =IF(OR(D33=EOMONTH(A33,0),B33<0),SUM($B$4:B33),"") -> 
F34: =IF(OR(D34=EOMONTH(A34,0),B34<0),SUM($B$4:B34),"") -> 
F35: =IF(OR(D35=EOMONTH(A35,0),B35<0),SUM($B$4:B35),"") -> 
F36: =IF(OR(D36=EOMONTH(A36,0),B36<0),SUM($B$4:B36),"") -> 
F37: =IF(OR(D37=EOMONTH(A37,0),B37<0),SUM($B$4:B37),"") -> 
F38: =IF(OR(D38=EOMONTH(A38,0),B38<0),SUM($B$4:B38),"") -> 
F39: =IF(OR(D39=EOMONTH(A39,0),B39<0),SUM($B$4:B39),"") -> 
F40: =IF(OR(D40=EOMONTH(A40,0),B40<0),SUM($B$4:B40),"") -> 
F41: =IF(OR(D41=EOMONTH(A41,0),B41<0),SUM($B$4:B41),"") -> 
F42: =IF(OR(D42=EOMONTH(A42,0),B42<0),SUM($B$4:B42),"") -> 
F43: =IF(OR(D43=EOMONTH(A43,0),B43<0),SUM($B$4:B43),"") -> 
F44: =IF(OR(D44=EOMONTH(A44,0),B44<0),SUM($B$4:B44),"") -> 
F45: =IF(OR(D45=EOMONTH(A45,0),B45<0),SUM($B$4:B45),"") -> 
F46: =IF(OR(D46=EOMONTH(A46,0),B46<0),SUM($B$4:B46),"") -> 
F47: =IF(OR(D47=EOMONTH(A47,0),B47<0),SUM($B$4:B47),"") -> 
F48: =IF(OR(D48=EOMONTH(A48,0),B48<0),SUM($B$4:B48),"") -> 
F49: =IF(OR(D49=EOMONTH(A49,0),B49<0),SUM($B$4:B49),"") -> 
F50: =IF(OR(D50=EOMONTH(A50,0),B50<0),SUM($B$4:B50),"") -> 
F51: =IF(OR(D51=EOMONTH(A51,0),B51<0),SUM($B$4:B51),"") -> 
F52: =IF(OR(D52=EOMONTH(A52,0),B52<0),SUM($B$4:B52),"") -> 
F53: =IF(OR(D53=EOMONTH(A53,0),B53<0),SUM($B$4:B53),"") -> 
F54: =IF(OR(D54=EOMONTH(A54,0),B54<0),SUM($B$4:B54),"") -> 
F55: =IF(OR(D55=EOMONTH(A55,0),B55<0),SUM($B$4:B55),"") -> 
F56: =IF(OR(D56=EOMONTH(A56,0),B56<0),SUM($B$4:B56),"") -> 
F57: =IF(OR(D57=EOMONTH(A57,0),B57<0),SUM($B$4:B57),"") -> 
F58: =IF(OR(D58=EOMONTH(A58,0),B58<0),SUM($B$4:B58),"") -> 
F59: =IF(OR(D59=EOMONTH(A59,0),B59<0),SUM($B$4:B59),"") -> 
F60: =IF(OR(D60=EOMONTH(A60,0),B60<0),SUM($B$4:B60),"") -> 
F61: =IF(OR(D61=EOMONTH(A61,0),B61<0),SUM($B$4:B61),"") -> 
F62: =IF(OR(D62=EOMONTH(A62,0),B62<0),SUM($B$4:B62),"") -> 
F63: =IF(OR(D63=EOMONTH(A63,0),B63<0),SUM($B$4:B63),"") ->  | H63: =IF(G63="a","a","") -> 
F64: =IF(OR(D64=EOMONTH(A64,0),B64<0),SUM($B$4:B64),"") -> 
F65: =IF(OR(D65=EOMONTH(A65,0),B65<0),SUM($B$4:B65),"") -> 
F66: =IF(OR(D66=EOMONTH(A66,0),B66<0),SUM($B$4:B66),"") -> 
F67: =IF(OR(D67=EOMONTH(A67,0),B67<0),SUM($B$4:B67),"") -> 
F68: =IF(OR(D68=EOMONTH(A68,0),B68<0),SUM($B$4:B68),"") -> 
D69: =IF(B69<0,"",IF(AND(D68<>"",EOMONTH(A68,0)=EOMONTH(A69,0)),"",IF(AND(G69<>G70,D68=EOMONTH(A68,0)),EOMONTH(A69,0),IF(G69=G70,"",IF(G69=$L$1,EOMONTH($G$1,0),IF(AND(G69<>G70,G69<>H69),EOMONTH(A68,0),"")))))) ->  | F69: =IF(OR(D69=EOMONTH(A69,0),B69<0),SUM($B$4:B69),"") -> 
E70: =IF(G70=G71,"",IF(D70="","",SUMIF(G:G,G70,B:B))) ->  | F70: =IF(OR(D70=EOMONTH(A70,0),B70<0),SUM($B$4:B70),"") ->  | G70: =IF(A70="","",IF(B70>0,MONTH(A70),"a")) ->  | H70: =IF(G70="a","a","") ->  | I70: =IF(J70<>"",MONTH(J70),"") ->  | J70: =IF(G70="a",A70,"") ->  | K70: =IF(G70="a",B70,"") -> 
C71: =IF(A71="","",IF(C70="",C69+1,IF(G71="a","",C70+1))) ->  | F71: =IF(OR(D71=EOMONTH(A71,0),B71<0),SUM($B$4:B71),"") -> 
F72: =IF(OR(D72=EOMONTH(A72,0),B72<0),SUM($B$4:B72),"") -> 
F73: =IF(OR(D73=EOMONTH(A73,0),B73<0),SUM($B$4:B73),"") -> 
F74: =IF(OR(D74=EOMONTH(A74,0),B74<0),SUM($B$4:B74),"") -> 
F75: =IF(OR(D75=EOMONTH(A75,0),B75<0),SUM($B$4:B75),"") -> 
F76: =IF(OR(D76=EOMONTH(A76,0),B76<0),SUM($B$4:B76),"") -> 
F77: =IF(OR(D77=EOMONTH(A77,0),B77<0),SUM($B$4:B77),"") -> 
E78: =IF(G78=G79,"",IF(D78="","",SUMIF(G:G,G78,B:B))) ->  | F78: =IF(OR(D78=EOMONTH(A78,0),B78<0),SUM($B$4:B78),"") -> 
E79: =IF(G79=G80,"",IF(D79="","",SUMIF(G:G,G79,B:B))) ->  | F79: =IF(OR(D79=EOMONTH(A79,0),B79<0),SUM($B$4:B79),"") -> 
F80: =IF(OR(D80=EOMONTH(A80,0),B80<0),SUM($B$4:B80),"") -> 
F81: =IF(OR(D81=EOMONTH(A81,0),B81<0),SUM($B$4:B81),"") -> 
F82: =IF(OR(D82=EOMONTH(A82,0),B82<0),SUM($B$4:B82),"") -> 
F83: =IF(OR(D83=EOMONTH(A83,0),B83<0),SUM($B$4:B83),"") -> 
F84: =IF(OR(D84=EOMONTH(A84,0),B84<0),SUM($B$4:B84),"") -> 
F85: =IF(OR(D85=EOMONTH(A85,0),B85<0),SUM($B$4:B85),"") -> 
F86: =IF(OR(D86=EOMONTH(A86,0),B86<0),SUM($B$4:B86),"") -> 
F87: =IF(OR(D87=EOMONTH(A87,0),B87<0),SUM($B$4:B87),"") -> 
F88: =IF(OR(D88=EOMONTH(A88,0),B88<0),SUM($B$4:B88),"") -> 
F89: =IF(OR(D89=EOMONTH(A89,0),B89<0),SUM($B$4:B89),"") -> 
F90: =IF(OR(D90=EOMONTH(A90,0),B90<0),SUM($B$4:B90),"") -> 
F91: =IF(OR(D91=EOMONTH(A91,0),B91<0),SUM($B$4:B91),"") -> 
F92: =IF(OR(D92=EOMONTH(A92,0),B92<0),SUM($B$4:B92),"") -> 
F93: =IF(OR(D93=EOMONTH(A93,0),B93<0),SUM($B$4:B93),"") -> 
F94: =IF(OR(D94=EOMONTH(A94,0),B94<0),SUM($B$4:B94),"") -> 
F95: =IF(OR(D95=EOMONTH(A95,0),B95<0),SUM($B$4:B95),"") -> 
F96: =IF(OR(D96=EOMONTH(A96,0),B96<0),SUM($B$4:B96),"") -> 
F97: =IF(OR(D97=EOMONTH(A97,0),B97<0),SUM($B$4:B97),"") -> 
F98: =IF(OR(D98=EOMONTH(A98,0),B98<0),SUM($B$4:B98),"") -> 
F99: =IF(OR(D99=EOMONTH(A99,0),B99<0),SUM($B$4:B99),"") -> 
F100: =IF(OR(D100=EOMONTH(A100,0),B100<0),SUM($B$4:B100),"") -> 

Sheet Feuil9
A1: 2013-01-10 | B1: =Feuil1!B19 -> SARL GUEZEI MULTI SERVUCES | G1: 2012-12-01 | H1: =SUM(B:B) -> 82375 | L1: =MONTH(G1) -> 12
A2: 4500
A3: DATE | B3: MONTANT | C3: N° Bon | D3: Fin Mois | E3: Total Mois | F3: G TOTAL | L3: FIN MOID | M3: SOME MOID | O3: DATE AVONCE | P3: MONTENT AVONCE | R3: TOTAL
A4: 2011-12-31 | D4: 2011-12-31 | F4: =B4 -> 0 | M4: =F4 -> 0
A5: 2012-06-16 | B5: 182375 | C5: 1 | D5: =IF(B5<0,"",IF(AND(D4<>"",EOMONTH(A4,0)=EOMONTH(A5,0)),"",IF(AND(G5<>G6,D4=EOMONTH(A4,0)),EOMONTH(A5,0),IF(G5=G6,"",IF(G5=$L$1,EOMONTH($G$1,0),IF(AND(G5<>G6,G5<>H5),EOMONTH(A4,0),"")))))) -> 2012-06-30 | F5: =IF(OR(D5=EOMONTH(A5,0),B5<0),SUM($B$4:B5),"") -> 182375 | G5: =IF(A5="","",IF(B5>0,MONTH(A5),"a")) -> 6 | H5: =IF(G5="a","a","") ->  | I5: =IF(J5<>"",MONTH(J5),"") ->  | J5: =IF(G5="a",A5,"") ->  | K5: =IF(G5="a",B5,"") ->  | L5: 2012-01-31 | M5: =IFERROR(VLOOKUP(L5,D:E,2,0),"0") -> 0 | N5: =IF(P5<0,SUM($M$4:M5,P5),SUM($M$4:M5)) -> 0 | O5: =IFERROR(VLOOKUP(MONTH(L5),I:K,2,0),"") ->  | P5: =IFERROR(VLOOKUP(MONTH(L5),I:K,3,0),"") ->  | Q5: =IFERROR(P5+N5,"") ->  | R5: =N5 -> 0
A6: 2012-09-05 | B6: -100000 | C6: =IF(A6="","",IF(C5="",C4+1,IF(G6="a","",C5+1))) ->  | E6: =IF(G6=G7,"",IF(D6="","",SUMIF(G:G,G6,B:B))) ->  | F6: =IF(OR(D6=EOMONTH(A6,0),B6<0),SUM($B$4:B6),"") -> 82375 | G6: =IF(A6="","",IF(B6>0,MONTH(A6),"a")) -> a | H6: =IF(G6="a","a","") -> a | I6: =IF(J6<>"",MONTH(J6),"") -> 9 | J6: =IF(G6="a",A6,"") -> 2012-09-05 | K6: =IF(G6="a",B6,"") -> -100000 | L6: 2012-02-29 | M6: =IFERROR(VLOOKUP(L6,D:E,2,0),"0") -> 0 | N6: =IF(P6<0,SUM($M$4:M6,P6),SUM($M$4:M6)) -> 0 | O6: =IFERROR(VLOOKUP(MONTH(L6),I:K,2,0),"") ->  | P6: =IFERROR(VLOOKUP(MONTH(L6),I:K,3,0),"") ->  | Q6: =IFERROR(P6+N6,"") ->  | R6: =IFERROR(R5+M6+P6,R5+M6) -> 0
C7: =IF(A7="","",IF(C6="",C5+1,IF(G7="a","",C6+1))) ->  | F7: =IF(OR(D7=EOMONTH(A7,0),B7<0),SUM($B$4:B7),"") ->  | L7: 2012-03-31 | M7: 0 | N7: =IF(P7<0,SUM($M$4:M7,P7),SUM($M$4:M7)) -> 0 | R7: =IFERROR(R6+M7+P7,R6+M7) -> 0
F8: =IF(OR(D8=EOMONTH(A8,0),B8<0),SUM($B$4:B8),"") ->  | L8: 2012-04-30 | M8: 0 | N8: =IF(P8<0,SUM($M$4:M8,P8),SUM($M$4:M8)) -> 0 | R8: 0
F9: =IF(OR(D9=EOMONTH(A9,0),B9<0),SUM($B$4:B9),"") ->  | L9: 2012-05-31 | M9: 0 | N9: =IF(P9<0,SUM($M$4:M9,P9),SUM($M$4:M9)) -> 0 | R9: 0
F10: =IF(OR(D10=EOMONTH(A10,0),B10<0),SUM($B$4:B10),"") ->  | L10: 2012-06-30 | M10: 0 | N10: =IF(P10<0,SUM($M$4:M10,P10),SUM($M$4:M10)) -> 0 | R10: 0
F11: =IF(OR(D11=EOMONTH(A11,0),B11<0),SUM($B$4:B11),"") ->  | L11: 2012-07-31 | M11: 0 | N11: =IF(P11<0,SUM($M$4:M11,P11),SUM($M$4:M11)) -> 0 | R11: 0
F12: =IF(OR(D12=EOMONTH(A12,0),B12<0),SUM($B$4:B12),"") ->  | L12: 2012-08-31 | M12: 0 | N12: =IF(P12<0,SUM($M$4:M12,P12),SUM($M$4:M12)) -> 0 | R12: 0
F13: =IF(OR(D13=EOMONTH(A13,0),B13<0),SUM($B$4:B13),"") ->  | L13: 2012-09-30 | M13: 0 | N13: =IF(P13<0,SUM($M$4:M13,P13),SUM($M$4:M13)) -> -100000 | O13: 2012-09-05 | P13: -100000 | Q13: -200000 | R13: -100000
F14: =IF(OR(D14=EOMONTH(A14,0),B14<0),SUM($B$4:B14),"") ->  | L14: 2012-10-31 | M14: 0 | N14: =IF(P14<0,SUM($M$4:M14,P14),SUM($M$4:M14)) -> 0 | R14: -100000
F15: =IF(OR(D15=EOMONTH(A15,0),B15<0),SUM($B$4:B15),"") ->  | L15: 2012-11-30 | M15: 0 | N15: =IF(P15<0,SUM($M$4:M15,P15),SUM($M$4:M15)) -> 0 | R15: -100000
F16: =IF(OR(D16=EOMONTH(A16,0),B16<0),SUM($B$4:B16),"") ->  | L16: 2012-12-31 | M16: 0 | N16: =IF(P16<0,SUM($M$4:M16,P16),SUM($M$4:M16)) -> 0 | R16: -100000
F17: =IF(OR(D17=EOMONTH(A17,0),B17<0),SUM($B$4:B17),"") ->  | R17: =R16-H1 -> -182375
F18: =IF(OR(D18=EOMONTH(A18,0),B18<0),SUM($B$4:B18),"") -> 
F19: =IF(OR(D19=EOMONTH(A19,0),B19<0),SUM($B$4:B19),"") -> 
F20: =IF(OR(D20=EOMONTH(A20,0),B20<0),SUM($B$4:B20),"") -> 
F21: =IF(OR(D21=EOMONTH(A21,0),B21<0),SUM($B$4:B21),"") -> 
F22: =IF(OR(D22=EOMONTH(A22,0),B22<0),SUM($B$4:B22),"") ->  | R22: =IFERROR(Q22+O22,"") -> 0
F23: =IF(OR(D23=EOMONTH(A23,0),B23<0),SUM($B$4:B23),"") -> 
F24: =IF(OR(D24=EOMONTH(A24,0),B24<0),SUM($B$4:B24),"") -> 
F25: =IF(OR(D25=EOMONTH(A25,0),B25<0),SUM($B$4:B25),"") -> 
F26: =IF(OR(D26=EOMONTH(A26,0),B26<0),SUM($B$4:B26),"") -> 
F27: =IF(OR(D27=EOMONTH(A27,0),B27<0),SUM($B$4:B27),"") -> 
F28: =IF(OR(D28=EOMONTH(A28,0),B28<0),SUM($B$4:B28),"") -> 
F29: =IF(OR(D29=EOMONTH(A29,0),B29<0),SUM($B$4:B29),"") -> 
F30: =IF(OR(D30=EOMONTH(A30,0),B30<0),SUM($B$4:B30),"") -> 
F31: =IF(OR(D31=EOMONTH(A31,0),B31<0),SUM($B$4:B31),"") -> 
F32: =IF(OR(D32=EOMONTH(A32,0),B32<0),SUM($B$4:B32),"") -> 
F33: =IF(OR(D33=EOMONTH(A33,0),B33<0),SUM($B$4:B33),"") -> 
F34: =IF(OR(D34=EOMONTH(A34,0),B34<0),SUM($B$4:B34),"") -> 
F35: =IF(OR(D35=EOMONTH(A35,0),B35<0),SUM($B$4:B35),"") -> 
F36: =IF(OR(D36=EOMONTH(A36,0),B36<0),SUM($B$4:B36),"") -> 
F37: =IF(OR(D37=EOMONTH(A37,0),B37<0),SUM($B$4:B37),"") -> 
F38: =IF(OR(D38=EOMONTH(A38,0),B38<0),SUM($B$4:B38),"") -> 
F39: =IF(OR(D39=EOMONTH(A39,0),B39<0),SUM($B$4:B39),"") -> 
F40: =IF(OR(D40=EOMONTH(A40,0),B40<0),SUM($B$4:B40),"") -> 
F41: =IF(OR(D41=EOMONTH(A41,0),B41<0),SUM($B$4:B41),"") -> 
F42: =IF(OR(D42=EOMONTH(A42,0),B42<0),SUM($B$4:B42),"") -> 
F43: =IF(OR(D43=EOMONTH(A43,0),B43<0),SUM($B$4:B43),"") -> 
F44: =IF(OR(D44=EOMONTH(A44,0),B44<0),SUM($B$4:B44),"") -> 
F45: =IF(OR(D45=EOMONTH(A45,0),B45<0),SUM($B$4:B45),"") -> 
F46: =IF(OR(D46=EOMONTH(A46,0),B46<0),SUM($B$4:B46),"") -> 
F47: =IF(OR(D47=EOMONTH(A47,0),B47<0),SUM($B$4:B47),"") -> 
F48: =IF(OR(D48=EOMONTH(A48,0),B48<0),SUM($B$4:B48),"") -> 
F49: =IF(OR(D49=EOMONTH(A49,0),B49<0),SUM($B$4:B49),"") -> 
F50: =IF(OR(D50=EOMONTH(A50,0),B50<0),SUM($B$4:B50),"") -> 
F51: =IF(OR(D51=EOMONTH(A51,0),B51<0),SUM($B$4:B51),"") -> 
F52: =IF(OR(D52=EOMONTH(A52,0),B52<0),SUM($B$4:B52),"") -> 
F53: =IF(OR(D53=EOMONTH(A53,0),B53<0),SUM($B$4:B53),"") -> 
F54: =IF(OR(D54=EOMONTH(A54,0),B54<0),SUM($B$4:B54),"") -> 
F55: =IF(OR(D55=EOMONTH(A55,0),B55<0),SUM($B$4:B55),"") -> 
F56: =IF(OR(D56=EOMONTH(A56,0),B56<0),SUM($B$4:B56),"") -> 
F57: =IF(OR(D57=EOMONTH(A57,0),B57<0),SUM($B$4:B57),"") -> 
F58: =IF(OR(D58=EOMONTH(A58,0),B58<0),SUM($B$4:B58),"") -> 
F59: =IF(OR(D59=EOMONTH(A59,0),B59<0),SUM($B$4:B59),"") -> 
F60: =IF(OR(D60=EOMONTH(A60,0),B60<0),SUM($B$4:B60),"") -> 
F61: =IF(OR(D61=EOMONTH(A61,0),B61<0),SUM($B$4:B61),"") -> 
F62: =IF(OR(D62=EOMONTH(A62,0),B62<0),SUM($B$4:B62),"") -> 
F63: =IF(OR(D63=EOMONTH(A63,0),B63<0),SUM($B$4:B63),"") ->  | H63: =IF(G63="a","a","") -> 
F64: =IF(OR(D64=EOMONTH(A64,0),B64<0),SUM($B$4:B64),"") -> 
F65: =IF(OR(D65=EOMONTH(A65,0),B65<0),SUM($B$4:B65),"") -> 
F66: =IF(OR(D66=EOMONTH(A66,0),B66<0),SUM($B$4:B66),"") -> 
F67: =IF(OR(D67=EOMONTH(A67,0),B67<0),SUM($B$4:B67),"") -> 
F68: =IF(OR(D68=EOMONTH(A68,0),B68<0),SUM($B$4:B68),"") -> 
D69: =IF(B69<0,"",IF(AND(D68<>"",EOMONTH(A68,0)=EOMONTH(A69,0)),"",IF(AND(G69<>G70,D68=EOMONTH(A68,0)),EOMONTH(A69,0),IF(G69=G70,"",IF(G69=$L$1,EOMONTH($G$1,0),IF(AND(G69<>G70,G69<>H69),EOMONTH(A68,0),"")))))) ->  | F69: =IF(OR(D69=EOMONTH(A69,0),B69<0),SUM($B$4:B69),"") -> 
E70: =IF(G70=G71,"",IF(D70="","",SUMIF(G:G,G70,B:B))) ->  | F70: =IF(OR(D70=EOMONTH(A70,0),B70<0),SUM($B$4:B70),"") ->  | G70: =IF(A70="","",IF(B70>0,MONTH(A70),"a")) ->  | H70: =IF(G70="a","a","") ->  | I70: =IF(J70<>"",MONTH(J70),"") ->  | J70: =IF(G70="a",A70,"") ->  | K70: =IF(G70="a",B70,"") -> 
C71: =IF(A71="","",IF(C70="",C69+1,IF(G71="a","",C70+1))) ->  | F71: =IF(OR(D71=EOMONTH(A71,0),B71<0),SUM($B$4:B71),"") -> 
F72: =IF(OR(D72=EOMONTH(A72,0),B72<0),SUM($B$4:B72),"") -> 
F73: =IF(OR(D73=EOMONTH(A73,0),B73<0),SUM($B$4:B73),"") -> 
F74: =IF(OR(D74=EOMONTH(A74,0),B74<0),SUM($B$4:B74),"") -> 
F75: =IF(OR(D75=EOMONTH(A75,0),B75<0),SUM($B$4:B75),"") -> 
F76: =IF(OR(D76=EOMONTH(A76,0),B76<0),SUM($B$4:B76),"") -> 
F77: =IF(OR(D77=EOMONTH(A77,0),B77<0),SUM($B$4:B77),"") -> 
E78: =IF(G78=G79,"",IF(D78="","",SUMIF(G:G,G78,B:B))) ->  | F78: =IF(OR(D78=EOMONTH(A78,0),B78<0),SUM($B$4:B78),"") -> 
E79: =IF(G79=G80,"",IF(D79="","",SUMIF(G:G,G79,B:B))) ->  | F79: =IF(OR(D79=EOMONTH(A79,0),B79<0),SUM($B$4:B79),"") -> 
F80: =IF(OR(D80=EOMONTH(A80,0),B80<0),SUM($B$4:B80),"") -> 
F81: =IF(OR(D81=EOMONTH(A81,0),B81<0),SUM($B$4:B81),"") -> 
F82: =IF(OR(D82=EOMONTH(A82,0),B82<0),SUM($B$4:B82),"") -> 
F83: =IF(OR(D83=EOMONTH(A83,0),B83<0),SUM($B$4:B83),"") -> 
F84: =IF(OR(D84=EOMONTH(A84,0),B84<0),SUM($B$4:B84),"") -> 
F85: =IF(OR(D85=EOMONTH(A85,0),B85<0),SUM($B$4:B85),"") -> 
F86: =IF(OR(D86=EOMONTH(A86,0),B86<0),SUM($B$4:B86),"") -> 
F87: =IF(OR(D87=EOMONTH(A87,0),B87<0),SUM($B$4:B87),"") -> 
F88: =IF(OR(D88=EOMONTH(A88,0),B88<0),SUM($B$4:B88),"") -> 
F89: =IF(OR(D89=EOMONTH(A89,0),B89<0),SUM($B$4:B89),"") -> 
F90: =IF(OR(D90=EOMONTH(A90,0),B90<0),SUM($B$4:B90),"") -> 
F91: =IF(OR(D91=EOMONTH(A91,0),B91<0),SUM($B$4:B91),"") -> 
F92: =IF(OR(D92=EOMONTH(A92,0),B92<0),SUM($B$4:B92),"") -> 
F93: =IF(OR(D93=EOMONTH(A93,0),B93<0),SUM($B$4:B93),"") -> 
F94: =IF(OR(D94=EOMONTH(A94,0),B94<0),SUM($B$4:B94),"") -> 
F95: =IF(OR(D95=EOMONTH(A95,0),B95<0),SUM($B$4:B95),"") -> 
F96: =IF(OR(D96=EOMONTH(A96,0),B96<0),SUM($B$4:B96),"") -> 
F97: =IF(OR(D97=EOMONTH(A97,0),B97<0),SUM($B$4:B97),"") -> 
F98: =IF(OR(D98=EOMONTH(A98,0),B98<0),SUM($B$4:B98),"") -> 
F99: =IF(OR(D99=EOMONTH(A99,0),B99<0),SUM($B$4:B99),"") -> 
F100: =IF(OR(D100=EOMONTH(A100,0),B100<0),SUM($B$4:B100),"") -> 

Sheet Feuil10
B1: =Feuil1!B20 -> STATION AFRIC DIESEL | G1: 2012-12-01 | H1: =SUM(B:B) -> 0 | L1: =MONTH(G1) -> 12
A3: DATE | B3: MONTANT | C3: N° Bon | D3: Fin Mois | E3: Total Mois | F3: G TOTAL | L3: FIN MOID | M3: SOME MOID | O3: DATE AVONCE | P3: MONTENT AVONCE | R3: TOTAL
D4: 2011-12-31 | F4: =B4 -> 0 | M4: =F4 -> 0
C5: 1 | D5: =IF(B5<0,"",IF(AND(D4<>"",EOMONTH(A4,0)=EOMONTH(A5,0)),"",IF(AND(G5<>G6,D4=EOMONTH(A4,0)),EOMONTH(A5,0),IF(G5=G6,"",IF(G5=$L$1,EOMONTH($G$1,0),IF(AND(G5<>G6,G5<>H5),EOMONTH(A4,0),"")))))) ->  | F5: =IF(OR(D5=EOMONTH(A5,0),B5<0),SUM($B$4:B5),"") ->  | G5: =IF(A5="","",IF(B5>0,MONTH(A5),"a")) ->  | H5: =IF(G5="a","a","") ->  | I5: =IF(J5<>"",MONTH(J5),"") ->  | J5: =IF(G5="a",A5,"") ->  | K5: =IF(G5="a",B5,"") ->  | L5: 2012-01-31 | M5: =IFERROR(VLOOKUP(L5,D:E,2,0),"0") -> 0 | N5: =IF(P5<0,SUM($M$4:M5,P5),SUM($M$4:M5)) -> 0 | O5: =IFERROR(VLOOKUP(MONTH(L5),I:K,2,0),"") ->  | P5: =IFERROR(VLOOKUP(MONTH(L5),I:K,3,0),"") ->  | Q5: =IFERROR(P5+N5,"") ->  | R5: =N5 -> 0
C6: =IF(A6="","",IF(C5="",C4+1,IF(G6="a","",C5+1))) ->  | E6: =IF(G6=G7,"",IF(D6="","",SUMIF(G:G,G6,B:B))) ->  | F6: =IF(OR(D6=EOMONTH(A6,0),B6<0),SUM($B$4:B6),"") ->  | G6: =IF(A6="","",IF(B6>0,MONTH(A6),"a")) ->  | H6: =IF(G6="a","a","") ->  | I6: =IF(J6<>"",MONTH(J6),"") ->  | J6: =IF(G6="a",A6,"") ->  | K6: =IF(G6="a",B6,"") ->  | L6: 2012-02-29 | M6: =IFERROR(VLOOKUP(L6,D:E,2,0),"0") -> 0 | N6: =IF(P6<0,SUM($M$4:M6,P6),SUM($M$4:M6)) -> 0 | O6: =IFERROR(VLOOKUP(MONTH(L6),I:K,2,0),"") ->  | P6: =IFERROR(VLOOKUP(MONTH(L6),I:K,3,0),"") ->  | Q6: =IFERROR(P6+N6,"") ->  | R6: =IFERROR(R5+M6+P6,R5+M6) -> 0
C7: =IF(A7="","",IF(C6="",C5+1,IF(G7="a","",C6+1))) ->  | F7: =IF(OR(D7=EOMONTH(A7,0),B7<0),SUM($B$4:B7),"") ->  | L7: 2012-03-31 | M7: 0 | N7: =IF(P7<0,SUM($M$4:M7,P7),SUM($M$4:M7)) -> 0 | R7: =IFERROR(R6+M7+P7,R6+M7) -> 0
F8: =IF(OR(D8=EOMONTH(A8,0),B8<0),SUM($B$4:B8),"") ->  | L8: 2012-04-30 | M8: 0 | N8: =IF(P8<0,SUM($M$4:M8,P8),SUM($M$4:M8)) -> 0 | R8: 0
F9: =IF(OR(D9=EOMONTH(A9,0),B9<0),SUM($B$4:B9),"") ->  | L9: 2012-05-31 | M9: 0 | N9: =IF(P9<0,SUM($M$4:M9,P9),SUM($M$4:M9)) -> 0 | R9: 0
F10: =IF(OR(D10=EOMONTH(A10,0),B10<0),SUM($B$4:B10),"") ->  | L10: 2012-06-30 | M10: 0 | N10: =IF(P10<0,SUM($M$4:M10,P10),SUM($M$4:M10)) -> 0 | R10: 0
F11: =IF(OR(D11=EOMONTH(A11,0),B11<0),SUM($B$4:B11),"") ->  | L11: 2012-07-31 | M11: 0 | N11: =IF(P11<0,SUM($M$4:M11,P11),SUM($M$4:M11)) -> 0 | R11: 0
F12: =IF(OR(D12=EOMONTH(A12,0),B12<0),SUM($B$4:B12),"") ->  | L12: 2012-08-31 | M12: 0 | N12: =IF(P12<0,SUM($M$4:M12,P12),SUM($M$4:M12)) -> 0 | R12: 0
F13: =IF(OR(D13=EOMONTH(A13,0),B13<0),SUM($B$4:B13),"") ->  | L13: 2012-09-30 | M13: 0 | N13: =IF(P13<0,SUM($M$4:M13,P13),SUM($M$4:M13)) -> 0 | R13: 0
F14: =IF(OR(D14=EOMONTH(A14,0),B14<0),SUM($B$4:B14),"") ->  | L14: 2012-10-31 | M14: 0 | N14: =IF(P14<0,SUM($M$4:M14,P14),SUM($M$4:M14)) -> 0 | R14: 0
F15: =IF(OR(D15=EOMONTH(A15,0),B15<0),SUM($B$4:B15),"") ->  | L15: 2012-11-30 | M15: 0 | N15: =IF(P15<0,SUM($M$4:M15,P15),SUM($M$4:M15)) -> 0 | R15: 0
F16: =IF(OR(D16=EOMONTH(A16,0),B16<0),SUM($B$4:B16),"") ->  | L16: 2012-12-31 | M16: 0 | N16: =IF(P16<0,SUM($M$4:M16,P16),SUM($M$4:M16)) -> 0 | R16: 0
F17: =IF(OR(D17=EOMONTH(A17,0),B17<0),SUM($B$4:B17),"") ->  | R17: =R16-H1 -> 0
F18: =IF(OR(D18=EOMONTH(A18,0),B18<0),SUM($B$4:B18),"") ->  | L18: =IF(D4=EOMONTH(D4,0),1,0) -> 1
F19: =IF(OR(D19=EOMONTH(A19,0),B19<0),SUM($B$4:B19),"") ->  | L19: =IF(B4<0,1,0) -> 0
F20: =IF(OR(D20=EOMONTH(A20,0),B20<0),SUM($B$4:B20),"") -> 
F21: =IF(OR(D21=EOMONTH(A21,0),B21<0),SUM($B$4:B21),"") -> 
F22: =IF(OR(D22=EOMONTH(A22,0),B22<0),SUM($B$4:B22),"") ->  | R22: =IFERROR(Q22+O22,"") -> 0
F23: =IF(OR(D23=EOMONTH(A23,0),B23<0),SUM($B$4:B23),"") -> 
F24: =IF(OR(D24=EOMONTH(A24,0),B24<0),SUM($B$4:B24),"") -> 
F25: =IF(OR(D25=EOMONTH(A25,0),B25<0),SUM($B$4:B25),"") -> 
F26: =IF(OR(D26=EOMONTH(A26,0),B26<0),SUM($B$4:B26),"") -> 
F27: =IF(OR(D27=EOMONTH(A27,0),B27<0),SUM($B$4:B27),"") -> 
F28: =IF(OR(D28=EOMONTH(A28,0),B28<0),SUM($B$4:B28),"") -> 
F29: =IF(OR(D29=EOMONTH(A29,0),B29<0),SUM($B$4:B29),"") -> 
F30: =IF(OR(D30=EOMONTH(A30,0),B30<0),SUM($B$4:B30),"") -> 
F31: =IF(OR(D31=EOMONTH(A31,0),B31<0),SUM($B$4:B31),"") -> 
F32: =IF(OR(D32=EOMONTH(A32,0),B32<0),SUM($B$4:B32),"") -> 
F33: =IF(OR(D33=EOMONTH(A33,0),B33<0),SUM($B$4:B33),"") -> 
F34: =IF(OR(D34=EOMONTH(A34,0),B34<0),SUM($B$4:B34),"") -> 
F35: =IF(OR(D35=EOMONTH(A35,0),B35<0),SUM($B$4:B35),"") -> 
F36: =IF(OR(D36=EOMONTH(A36,0),B36<0),SUM($B$4:B36),"") -> 
F37: =IF(OR(D37=EOMONTH(A37,0),B37<0),SUM($B$4:B37),"") -> 
F38: =IF(OR(D38=EOMONTH(A38,0),B38<0),SUM($B$4:B38),"") -> 
F39: =IF(OR(D39=EOMONTH(A39,0),B39<0),SUM($B$4:B39),"") -> 
F40: =IF(OR(D40=EOMONTH(A40,0),B40<0),SUM($B$4:B40),"") -> 
F41: =IF(OR(D41=EOMONTH(A41,0),B41<0),SUM($B$4:B41),"") -> 
F42: =IF(OR(D42=EOMONTH(A42,0),B42<0),SUM($B$4:B42),"") -> 
F43: =IF(OR(D43=EOMONTH(A43,0),B43<0),SUM($B$4:B43),"") -> 
F44: =IF(OR(D44=EOMONTH(A44,0),B44<0),SUM($B$4:B44),"") -> 
F45: =IF(OR(D45=EOMONTH(A45,0),B45<0),SUM($B$4:B45),"") -> 
F46: =IF(OR(D46=EOMONTH(A46,0),B46<0),SUM($B$4:B46),"") -> 
F47: =IF(OR(D47=EOMONTH(A47,0),B47<0),SUM($B$4:B47),"") -> 
F48: =IF(OR(D48=EOMONTH(A48,0),B48<0),SUM($B$4:B48),"") -> 
F49: =IF(OR(D49=EOMONTH(A49,0),B49<0),SUM($B$4:B49),"") -> 
F50: =IF(OR(D50=EOMONTH(A50,0),B50<0),SUM($B$4:B50),"") -> 
F51: =IF(OR(D51=EOMONTH(A51,0),B51<0),SUM($B$4:B51),"") -> 
F52: =IF(OR(D52=EOMONTH(A52,0),B52<0),SUM($B$4:B52),"") -> 
F53: =IF(OR(D53=EOMONTH(A53,0),B53<0),SUM($B$4:B53),"") -> 
F54: =IF(OR(D54=EOMONTH(A54,0),B54<0),SUM($B$4:B54),"") -> 
F55: =IF(OR(D55=EOMONTH(A55,0),B55<0),SUM($B$4:B55),"") -> 
F56: =IF(OR(D56=EOMONTH(A56,0),B56<0),SUM($B$4:B56),"") -> 
F57: =IF(OR(D57=EOMONTH(A57,0),B57<0),SUM($B$4:B57),"") -> 
F58: =IF(OR(D58=EOMONTH(A58,0),B58<0),SUM($B$4:B58),"") -> 
F59: =IF(OR(D59=EOMONTH(A59,0),B59<0),SUM($B$4:B59),"") -> 
F60: =IF(OR(D60=EOMONTH(A60,0),B60<0),SUM($B$4:B60),"") -> 
F61: =IF(OR(D61=EOMONTH(A61,0),B61<0),SUM($B$4:B61),"") -> 
F62: =IF(OR(D62=EOMONTH(A62,0),B62<0),SUM($B$4:B62),"") -> 
F63: =IF(OR(D63=EOMONTH(A63,0),B63<0),SUM($B$4:B63),"") ->  | H63: =IF(G63="a","a","") -> 
F64: =IF(OR(D64=EOMONTH(A64,0),B64<0),SUM($B$4:B64),"") -> 
F65: =IF(OR(D65=EOMONTH(A65,0),B65<0),SUM($B$4:B65),"") -> 
F66: =IF(OR(D66=EOMONTH(A66,0),B66<0),SUM($B$4:B66),"") -> 
F67: =IF(OR(D67=EOMONTH(A67,0),B67<0),SUM($B$4:B67),"") -> 
F68: =IF(OR(D68=EOMONTH(A68,0),B68<0),SUM($B$4:B68),"") -> 
D69: =IF(B69<0,"",IF(AND(D68<>"",EOMONTH(A68,0)=EOMONTH(A69,0)),"",IF(AND(G69<>G70,D68=EOMONTH(A68,0)),EOMONTH(A69,0),IF(G69=G70,"",IF(G69=$L$1,EOMONTH($G$1,0),IF(AND(G69<>G70,G69<>H69),EOMONTH(A68,0),"")))))) ->  | F69: =IF(OR(D69=EOMONTH(A69,0),B69<0),SUM($B$4:B69),"") -> 
E70: =IF(G70=G71,"",IF(D70="","",SUMIF(G:G,G70,B:B))) ->  | F70: =IF(OR(D70=EOMONTH(A70,0),B70<0),SUM($B$4:B70),"") ->  | G70: =IF(A70="","",IF(B70>0,MONTH(A70),"a")) ->  | H70: =IF(G70="a","a","") ->  | I70: =IF(J70<>"",MONTH(J70),"") ->  | J70: =IF(G70="a",A70,"") ->  | K70: =IF(G70="a",B70,"") -> 
C71: =IF(A71="","",IF(C70="",C69+1,IF(G71="a","",C70+1))) ->  | F71: =IF(OR(D71=EOMONTH(A71,0),B71<0),SUM($B$4:B71),"") -> 
F72: =IF(OR(D72=EOMONTH(A72,0),B72<0),SUM($B$4:B72),"") -> 
F73: =IF(OR(D73=EOMONTH(A73,0),B73<0),SUM($B$4:B73),"") -> 
F74: =IF(OR(D74=EOMONTH(A74,0),B74<0),SUM($B$4:B74),"") -> 
F75: =IF(OR(D75=EOMONTH(A75,0),B75<0),SUM($B$4:B75),"") -> 
F76: =IF(OR(D76=EOMONTH(A76,0),B76<0),SUM($B$4:B76),"") -> 
F77: =IF(OR(D77=EOMONTH(A77,0),B77<0),SUM($B$4:B77),"") -> 
E78: =IF(G78=G79,"",IF(D78="","",SUMIF(G:G,G78,B:B))) ->  | F78: =IF(OR(D78=EOMONTH(A78,0),B78<0),SUM($B$4:B78),"") -> 
E79: =IF(G79=G80,"",IF(D79="","",SUMIF(G:G,G79,B:B))) ->  | F79: =IF(OR(D79=EOMONTH(A79,0),B79<0),SUM($B$4:B79),"") -> 
F80: =IF(OR(D80=EOMONTH(A80,0),B80<0),SUM($B$4:B80),"") -> 
F81: =IF(OR(D81=EOMONTH(A81,0),B81<0),SUM($B$4:B81),"") -> 
F82: =IF(OR(D82=EOMONTH(A82,0),B82<0),SUM($B$4:B82),"") -> 
F83: =IF(OR(D83=EOMONTH(A83,0),B83<0),SUM($B$4:B83),"") -> 
F84: =IF(OR(D84=EOMONTH(A84,0),B84<0),SUM($B$4:B84),"") -> 
F85: =IF(OR(D85=EOMONTH(A85,0),B85<0),SUM($B$4:B85),"") -> 
F86: =IF(OR(D86=EOMONTH(A86,0),B86<0),SUM($B$4:B86),"") -> 
F87: =IF(OR(D87=EOMONTH(A87,0),B87<0),SUM($B$4:B87),"") -> 
F88: =IF(OR(D88=EOMONTH(A88,0),B88<0),SUM($B$4:B88),"") -> 
F89: =IF(OR(D89=EOMONTH(A89,0),B89<0),SUM($B$4:B89),"") -> 
F90: =IF(OR(D90=EOMONTH(A90,0),B90<0),SUM($B$4:B90),"") -> 
F91: =IF(OR(D91=EOMONTH(A91,0),B91<0),SUM($B$4:B91),"") -> 
F92: =IF(OR(D92=EOMONTH(A92,0),B92<0),SUM($B$4:B92),"") -> 
F93: =IF(OR(D93=EOMONTH(A93,0),B93<0),SUM($B$4:B93),"") -> 
F94: =IF(OR(D94=EOMONTH(A94,0),B94<0),SUM($B$4:B94),"") -> 
F95: =IF(OR(D95=EOMONTH(A95,0),B95<0),SUM($B$4:B95),"") -> 
F96: =IF(OR(D96=EOMONTH(A96,0),B96<0),SUM($B$4:B96),"") -> 
F97: =IF(OR(D97=EOMONTH(A97,0),B97<0),SUM($B$4:B97),"") -> 
F98: =IF(OR(D98=EOMONTH(A98,0),B98<0),SUM($B$4:B98),"") -> 
F99: =IF(OR(D99=EOMONTH(A99,0),B99<0),SUM($B$4:B99),"") -> 
F100: =IF(OR(D100=EOMONTH(A100,0),B100<0),SUM($B$4:B100),"") -> 

Sheet Feuil11
A1: 2013-01-10 | B1: =Feuil1!B21 -> EL ATHIR | G1: 2012-12-01 | H1: =SUM(B:B) -> 0 | L1: =MONTH(G1) -> 12
A2: 4000
A3: DATE | B3: MONTANT | C3: N° Bon | D3: Fin Mois | E3: Total Mois | F3: G TOTAL | L3: FIN MOID | M3: SOME MOID | O3: DATE AVONCE | P3: MONTENT AVONCE | R3: TOTAL
D4: 2011-12-31 | F4: =B4 -> 0 | M4: =F4 -> 0
C5: 1 | D5: =IF(B5<0,"",IF(AND(D4<>"",EOMONTH(A4,0)=EOMONTH(A5,0)),"",IF(AND(G5<>G6,D4=EOMONTH(A4,0)),EOMONTH(A5,0),IF(G5=G6,"",IF(G5=$L$1,EOMONTH($G$1,0),IF(AND(G5<>G6,G5<>H5),EOMONTH(A4,0),"")))))) ->  | F5: =IF(OR(D5=EOMONTH(A5,0),B5<0),SUM($B$4:B5),"") ->  | G5: =IF(A5="","",IF(B5>0,MONTH(A5),"a")) ->  | H5: =IF(G5="a","a","") ->  | I5: =IF(J5<>"",MONTH(J5),"") ->  | J5: =IF(G5="a",A5,"") ->  | K5: =IF(G5="a",B5,"") ->  | L5: 2012-01-31 | M5: =IFERROR(VLOOKUP(L5,D:E,2,0),"0") -> 0 | N5: =IF(P5<0,SUM($M$4:M5,P5),SUM($M$4:M5)) -> 0 | O5: =IFERROR(VLOOKUP(MONTH(L5),I:K,2,0),"") ->  | P5: =IFERROR(VLOOKUP(MONTH(L5),I:K,3,0),"") ->  | Q5: =IFERROR(P5+N5,"") ->  | R5: =N5 -> 0
C6: =IF(A6="","",IF(C5="",C4+1,IF(G6="a","",C5+1))) ->  | E6: =IF(G6=G7,"",IF(D6="","",SUMIF(G:G,G6,B:B))) ->  | F6: =IF(OR(D6=EOMONTH(A6,0),B6<0),SUM($B$4:B6),"") ->  | G6: =IF(A6="","",IF(B6>0,MONTH(A6),"a")) ->  | H6: =IF(G6="a","a","") ->  | I6: =IF(J6<>"",MONTH(J6),"") ->  | J6: =IF(G6="a",A6,"") ->  | K6: =IF(G6="a",B6,"") ->  | L6: 2012-02-29 | M6: =IFERROR(VLOOKUP(L6,D:E,2,0),"0") -> 0 | N6: =IF(P6<0,SUM($M$4:M6,P6),SUM($M$4:M6)) -> 0 | O6: =IFERROR(VLOOKUP(MONTH(L6),I:K,2,0),"") ->  | P6: =IFERROR(VLOOKUP(MONTH(L6),I:K,3,0),"") ->  | Q6: =IFERROR(P6+N6,"") ->  | R6: =IFERROR(R5+M6+P6,R5+M6) -> 0
C7: =IF(A7="","",IF(C6="",C5+1,IF(G7="a","",C6+1))) ->  | F7: =IF(OR(D7=EOMONTH(A7,0),B7<0),SUM($B$4:B7),"") ->  | L7: 2012-03-31 | M7: 0 | N7: =IF(P7<0,SUM($M$4:M7,P7),SUM($M$4:M7)) -> 0 | R7: =IFERROR(R6+M7+P7,R6+M7) -> 0
F8: =IF(OR(D8=EOMONTH(A8,0),B8<0),SUM($B$4:B8),"") ->  | L8: 2012-04-30 | M8: 0 | N8: =IF(P8<0,SUM($M$4:M8,P8),SUM($M$4:M8)) -> 0 | R8: 0
F9: =IF(OR(D9=EOMONTH(A9,0),B9<0),SUM($B$4:B9),"") ->  | L9: 2012-05-31 | M9: 0 | N9: =IF(P9<0,SUM($M$4:M9,P9),SUM($M$4:M9)) -> 0 | R9: 0
F10: =IF(OR(D10=EOMONTH(A10,0),B10<0),SUM($B$4:B10),"") ->  | L10: 2012-06-30 | M10: 0 | N10: =IF(P10<0,SUM($M$4:M10,P10),SUM($M$4:M10)) -> 0 | R10: 0
F11: =IF(OR(D11=EOMONTH(A11,0),B11<0),SUM($B$4:B11),"") ->  | L11: 2012-07-31 | M11: 0 | N11: =IF(P11<0,SUM($M$4:M11,P11),SUM($M$4:M11)) -> 0 | R11: 0
F12: =IF(OR(D12=EOMONTH(A12,0),B12<0),SUM($B$4:B12),"") ->  | L12: 2012-08-31 | M12: 0 | N12: =IF(P12<0,SUM($M$4:M12,P12),SUM($M$4:M12)) -> 0 | R12: 0
F13: =IF(OR(D13=EOMONTH(A13,0),B13<0),SUM($B$4:B13),"") ->  | L13: 2012-09-30 | M13: 0 | N13: =IF(P13<0,SUM($M$4:M13,P13),SUM($M$4:M13)) -> 0 | R13: 0
F14: =IF(OR(D14=EOMONTH(A14,0),B14<0),SUM($B$4:B14),"") ->  | L14: 2012-10-31 | M14: 0 | N14: =IF(P14<0,SUM($M$4:M14,P14),SUM($M$4:M14)) -> 0 | R14: 0
F15: =IF(OR(D15=EOMONTH(A15,0),B15<0),SUM($B$4:B15),"") ->  | L15: 2012-11-30 | M15: 0 | N15: =IF(P15<0,SUM($M$4:M15,P15),SUM($M$4:M15)) -> 0 | R15: 0
F16: =IF(OR(D16=EOMONTH(A16,0),B16<0),SUM($B$4:B16),"") ->  | L16: 2012-12-31 | M16: 0 | N16: =IF(P16<0,SUM($M$4:M16,P16),SUM($M$4:M16)) -> 0 | R16: 0
F17: =IF(OR(D17=EOMONTH(A17,0),B17<0),SUM($B$4:B17),"") ->  | R17: =R16-H1 -> 0
F18: =IF(OR(D18=EOMONTH(A18,0),B18<0),SUM($B$4:B18),"") ->  | L18: =IF(D4=EOMONTH(D4,0),1,0) -> 1
F19: =IF(OR(D19=EOMONTH(A19,0),B19<0),SUM($B$4:B19),"") ->  | L19: =IF(B4<0,1,0) -> 0
F20: =IF(OR(D20=EOMONTH(A20,0),B20<0),SUM($B$4:B20),"") -> 
F21: =IF(OR(D21=EOMONTH(A21,0),B21<0),SUM($B$4:B21),"") -> 
F22: =IF(OR(D22=EOMONTH(A22,0),B22<0),SUM($B$4:B22),"") ->  | R22: =IFERROR(Q22+O22,"") -> 0
F23: =IF(OR(D23=EOMONTH(A23,0),B23<0),SUM($B$4:B23),"") -> 
F24: =IF(OR(D24=EOMONTH(A24,0),B24<0),SUM($B$4:B24),"") -> 
F25: =IF(OR(D25=EOMONTH(A25,0),B25<0),SUM($B$4:B25),"") -> 
F26: =IF(OR(D26=EOMONTH(A26,0),B26<0),SUM($B$4:B26),"") -> 
F27: =IF(OR(D27=EOMONTH(A27,0),B27<0),SUM($B$4:B27),"") -> 
F28: =IF(OR(D28=EOMONTH(A28,0),B28<0),SUM($B$4:B28),"") -> 
F29: =IF(OR(D29=EOMONTH(A29,0),B29<0),SUM($B$4:B29),"") -> 
F30: =IF(OR(D30=EOMONTH(A30,0),B30<0),SUM($B$4:B30),"") -> 
F31: =IF(OR(D31=EOMONTH(A31,0),B31<0),SUM($B$4:B31),"") -> 
F32: =IF(OR(D32=EOMONTH(A32,0),B32<0),SUM($B$4:B32),"") -> 
F33: =IF(OR(D33=EOMONTH(A33,0),B33<0),SUM($B$4:B33),"") -> 
F34: =IF(OR(D34=EOMONTH(A34,0),B34<0),SUM($B$4:B34),"") -> 
F35: =IF(OR(D35=EOMONTH(A35,0),B35<0),SUM($B$4:B35),"") -> 
F36: =IF(OR(D36=EOMONTH(A36,0),B36<0),SUM($B$4:B36),"") -> 
F37: =IF(OR(D37=EOMONTH(A37,0),B37<0),SUM($B$4:B37),"") -> 
F38: =IF(OR(D38=EOMONTH(A38,0),B38<0),SUM($B$4:B38),"") -> 
F39: =IF(OR(D39=EOMONTH(A39,0),B39<0),SUM($B$4:B39),"") -> 
F40: =IF(OR(D40=EOMONTH(A40,0),B40<0),SUM($B$4:B40),"") -> 
F41: =IF(OR(D41=EOMONTH(A41,0),B41<0),SUM($B$4:B41),"") -> 
F42: =IF(OR(D42=EOMONTH(A42,0),B42<0),SUM($B$4:B42),"") -> 
F43: =IF(OR(D43=EOMONTH(A43,0),B43<0),SUM($B$4:B43),"") -> 
F44: =IF(OR(D44=EOMONTH(A44,0),B44<0),SUM($B$4:B44),"") -> 
F45: =IF(OR(D45=EOMONTH(A45,0),B45<0),SUM($B$4:B45),"") -> 
F46: =IF(OR(D46=EOMONTH(A46,0),B46<0),SUM($B$4:B46),"") -> 
F47: =IF(OR(D47=EOMONTH(A47,0),B47<0),SUM($B$4:B47),"") -> 
F48: =IF(OR(D48=EOMONTH(A48,0),B48<0),SUM($B$4:B48),"") -> 
F49: =IF(OR(D49=EOMONTH(A49,0),B49<0),SUM($B$4:B49),"") -> 
F50: =IF(OR(D50=EOMONTH(A50,0),B50<0),SUM($B$4:B50),"") -> 
F51: =IF(OR(D51=EOMONTH(A51,0),B51<0),SUM($B$4:B51),"") -> 
F52: =IF(OR(D52=EOMONTH(A52,0),B52<0),SUM($B$4:B52),"") -> 
F53: =IF(OR(D53=EOMONTH(A53,0),B53<0),SUM($B$4:B53),"") -> 
F54: =IF(OR(D54=EOMONTH(A54,0),B54<0),SUM($B$4:B54),"") -> 
F55: =IF(OR(D55=EOMONTH(A55,0),B55<0),SUM($B$4:B55),"") -> 
F56: =IF(OR(D56=EOMONTH(A56,0),B56<0),SUM($B$4:B56),"") -> 
F57: =IF(OR(D57=EOMONTH(A57,0),B57<0),SUM($B$4:B57),"") -> 
F58: =IF(OR(D58=EOMONTH(A58,0),B58<0),SUM($B$4:B58),"") -> 
F59: =IF(OR(D59=EOMONTH(A59,0),B59<0),SUM($B$4:B59),"") -> 
F60: =IF(OR(D60=EOMONTH(A60,0),B60<0),SUM($B$4:B60),"") -> 
F61: =IF(OR(D61=EOMONTH(A61,0),B61<0),SUM($B$4:B61),"") -> 
F62: =IF(OR(D62=EOMONTH(A62,0),B62<0),SUM($B$4:B62),"") -> 
F63: =IF(OR(D63=EOMONTH(A63,0),B63<0),SUM($B$4:B63),"") ->  | H63: =IF(G63="a","a","") -> 
F64: =IF(OR(D64=EOMONTH(A64,0),B64<0),SUM($B$4:B64),"") -> 
F65: =IF(OR(D65=EOMONTH(A65,0),B65<0),SUM($B$4:B65),"") -> 
F66: =IF(OR(D66=EOMONTH(A66,0),B66<0),SUM($B$4:B66),"") -> 
F67: =IF(OR(D67=EOMONTH(A67,0),B67<0),SUM($B$4:B67),"") -> 
F68: =IF(OR(D68=EOMONTH(A68,0),B68<0),SUM($B$4:B68),"") -> 
D69: =IF(B69<0,"",IF(AND(D68<>"",EOMONTH(A68,0)=EOMONTH(A69,0)),"",IF(AND(G69<>G70,D68=EOMONTH(A68,0)),EOMONTH(A69,0),IF(G69=G70,"",IF(G69=$L$1,EOMONTH($G$1,0),IF(AND(G69<>G70,G69<>H69),EOMONTH(A68,0),"")))))) ->  | F69: =IF(OR(D69=EOMONTH(A69,0),B69<0),SUM($B$4:B69),"") -> 
E70: =IF(G70=G71,"",IF(D70="","",SUMIF(G:G,G70,B:B))) ->  | F70: =IF(OR(D70=EOMONTH(A70,0),B70<0),SUM($B$4:B70),"") ->  | G70: =IF(A70="","",IF(B70>0,MONTH(A70),"a")) ->  | H70: =IF(G70="a","a","") ->  | I70: =IF(J70<>"",MONTH(J70),"") ->  | J70: =IF(G70="a",A70,"") ->  | K70: =IF(G70="a",B70,"") -> 
C71: =IF(A71="","",IF(C70="",C69+1,IF(G71="a","",C70+1))) ->  | F71: =IF(OR(D71=EOMONTH(A71,0),B71<0),SUM($B$4:B71),"") -> 
F72: =IF(OR(D72=EOMONTH(A72,0),B72<0),SUM($B$4:B72),"") -> 
F73: =IF(OR(D73=EOMONTH(A73,0),B73<0),SUM($B$4:B73),"") -> 
F74: =IF(OR(D74=EOMONTH(A74,0),B74<0),SUM($B$4:B74),"") -> 
F75: =IF(OR(D75=EOMONTH(A75,0),B75<0),SUM($B$4:B75),"") -> 
F76: =IF(OR(D76=EOMONTH(A76,0),B76<0),SUM($B$4:B76),"") -> 
F77: =IF(OR(D77=EOMONTH(A77,0),B77<0),SUM($B$4:B77),"") -> 
E78: =IF(G78=G79,"",IF(D78="","",SUMIF(G:G,G78,B:B))) ->  | F78: =IF(OR(D78=EOMONTH(A78,0),B78<0),SUM($B$4:B78),"") -> 
E79: =IF(G79=G80,"",IF(D79="","",SUMIF(G:G,G79,B:B))) ->  | F79: =IF(OR(D79=EOMONTH(A79,0),B79<0),SUM($B$4:B79),"") -> 
F80: =IF(OR(D80=EOMONTH(A80,0),B80<0),SUM($B$4:B80),"") -> 
F81: =IF(OR(D81=EOMONTH(A81,0),B81<0),SUM($B$4:B81),"") -> 
F82: =IF(OR(D82=EOMONTH(A82,0),B82<0),SUM($B$4:B82),"") -> 
F83: =IF(OR(D83=EOMONTH(A83,0),B83<0),SUM($B$4:B83),"") -> 
F84: =IF(OR(D84=EOMONTH(A84,0),B84<0),SUM($B$4:B84),"") -> 
F85: =IF(OR(D85=EOMONTH(A85,0),B85<0),SUM($B$4:B85),"") -> 
F86: =IF(OR(D86=EOMONTH(A86,0),B86<0),SUM($B$4:B86),"") -> 
F87: =IF(OR(D87=EOMONTH(A87,0),B87<0),SUM($B$4:B87),"") -> 
F88: =IF(OR(D88=EOMONTH(A88,0),B88<0),SUM($B$4:B88),"") -> 
F89: =IF(OR(D89=EOMONTH(A89,0),B89<0),SUM($B$4:B89),"") -> 
F90: =IF(OR(D90=EOMONTH(A90,0),B90<0),SUM($B$4:B90),"") -> 
F91: =IF(OR(D91=EOMONTH(A91,0),B91<0),SUM($B$4:B91),"") -> 
F92: =IF(OR(D92=EOMONTH(A92,0),B92<0),SUM($B$4:B92),"") -> 
F93: =IF(OR(D93=EOMONTH(A93,0),B93<0),SUM($B$4:B93),"") -> 
F94: =IF(OR(D94=EOMONTH(A94,0),B94<0),SUM($B$4:B94),"") -> 
F95: =IF(OR(D95=EOMONTH(A95,0),B95<0),SUM($B$4:B95),"") -> 
F96: =IF(OR(D96=EOMONTH(A96,0),B96<0),SUM($B$4:B96),"") -> 
F97: =IF(OR(D97=EOMONTH(A97,0),B97<0),SUM($B$4:B97),"") -> 
F98: =IF(OR(D98=EOMONTH(A98,0),B98<0),SUM($B$4:B98),"") -> 
F99: =IF(OR(D99=EOMONTH(A99,0),B99<0),SUM($B$4:B99),"") -> 
F100: =IF(OR(D100=EOMONTH(A100,0),B100<0),SUM($B$4:B100),"") -> 

Sheet Feuil12
B1: =Feuil1!B22 -> 0 | G1: 2012-12-01 | H1: =SUM(B:B) -> 0 | L1: =MONTH(G1) -> 12
A3: DATE | B3: MONTANT | C3: N° Bon | D3: Fin Mois | E3: Total Mois | F3: G TOTAL | L3: FIN MOID | M3: SOME MOID | O3: DATE AVONCE | P3: MONTENT AVONCE | R3: TOTAL
D4: 2011-12-31 | F4: =B4 -> 0 | M4: =F4 -> 0
C5: 1 | D5: =IF(B5<0,"",IF(AND(D4<>"",EOMONTH(A4,0)=EOMONTH(A5,0)),"",IF(AND(G5<>G6,D4=EOMONTH(A4,0)),EOMONTH(A5,0),IF(G5=G6,"",IF(G5=$L$1,EOMONTH($G$1,0),IF(AND(G5<>G6,G5<>H5),EOMONTH(A4,0),"")))))) ->  | F5: =IF(OR(D5=EOMONTH(A5,0),B5<0),SUM($B$4:B5),"") ->  | G5: =IF(A5="","",IF(B5>0,MONTH(A5),"a")) ->  | H5: =IF(G5="a","a","") ->  | I5: =IF(J5<>"",MONTH(J5),"") ->  | J5: =IF(G5="a",A5,"") ->  | K5: =IF(G5="a",B5,"") ->  | L5: 2012-01-31 | M5: =IFERROR(VLOOKUP(L5,D:E,2,0),"0") -> 0 | N5: =IF(P5<0,SUM($M$4:M5,P5),SUM($M$4:M5)) -> 0 | O5: =IFERROR(VLOOKUP(MONTH(L5),I:K,2,0),"") ->  | P5: =IFERROR(VLOOKUP(MONTH(L5),I:K,3,0),"") ->  | Q5: =IFERROR(P5+N5,"") ->  | R5: =N5 -> 0
C6: =IF(A6="","",IF(C5="",C4+1,IF(G6="a","",C5+1))) ->  | E6: =IF(G6=G7,"",IF(D6="","",SUMIF(G:G,G6,B:B))) ->  | F6: =IF(OR(D6=EOMONTH(A6,0),B6<0),SUM($B$4:B6),"") ->  | G6: =IF(A6="","",IF(B6>0,MONTH(A6),"a")) ->  | H6: =IF(G6="a","a","") ->  | I6: =IF(J6<>"",MONTH(J6),"") ->  | J6: =IF(G6="a",A6,"") ->  | K6: =IF(G6="a",B6,"") ->  | L6: 2012-02-29 | M6: =IFERROR(VLOOKUP(L6,D:E,2,0),"0") -> 0 | N6: =IF(P6<0,SUM($M$4:M6,P6),SUM($M$4:M6)) -> 0 | O6: =IFERROR(VLOOKUP(MONTH(L6),I:K,2,0),"") ->  | P6: =IFERROR(VLOOKUP(MONTH(L6),I:K,3,0),"") ->  | Q6: =IFERROR(P6+N6,"") ->  | R6: =IFERROR(R5+M6+P6,R5+M6) -> 0
C7: =IF(A7="","",IF(C6="",C5+1,IF(G7="a","",C6+1))) ->  | F7: =IF(OR(D7=EOMONTH(A7,0),B7<0),SUM($B$4:B7),"") ->  | L7: 2012-03-31 | M7: 0 | N7: =IF(P7<0,SUM($M$4:M7,P7),SUM($M$4:M7)) -> 0 | R7: =IFERROR(R6+M7+P7,R6+M7) -> 0
F8: =IF(OR(D8=EOMONTH(A8,0),B8<0),SUM($B$4:B8),"") ->  | L8: 2012-04-30 | M8: 0 | N8: =IF(P8<0,SUM($M$4:M8,P8),SUM($M$4:M8)) -> 0 | R8: 0
F9: =IF(OR(D9=EOMONTH(A9,0),B9<0),SUM($B$4:B9),"") ->  | L9: 2012-05-31 | M9: 0 | N9: =IF(P9<0,SUM($M$4:M9,P9),SUM($M$4:M9)) -> 0 | R9: 0
F10: =IF(OR(D10=EOMONTH(A10,0),B10<0),SUM($B$4:B10),"") ->  | L10: 2012-06-30 | M10: 0 | N10: =IF(P10<0,SUM($M$4:M10,P10),SUM($M$4:M10)) -> 0 | R10: 0
F11: =IF(OR(D11=EOMONTH(A11,0),B11<0),SUM($B$4:B11),"") ->  | L11: 2012-07-31 | M11: 0 | N11: =IF(P11<0,SUM($M$4:M11,P11),SUM($M$4:M11)) -> 0 | R11: 0
F12: =IF(OR(D12=EOMONTH(A12,0),B12<0),SUM($B$4:B12),"") ->  | L12: 2012-08-31 | M12: 0 | N12: =IF(P12<0,SUM($M$4:M12,P12),SUM($M$4:M12)) -> 0 | R12: 0
F13: =IF(OR(D13=EOMONTH(A13,0),B13<0),SUM($B$4:B13),"") ->  | L13: 2012-09-30 | M13: 0 | N13: =IF(P13<0,SUM($M$4:M13,P13),SUM($M$4:M13)) -> 0 | R13: 0
F14: =IF(OR(D14=EOMONTH(A14,0),B14<0),SUM($B$4:B14),"") ->  | L14: 2012-10-31 | M14: 0 | N14: =IF(P14<0,SUM($M$4:M14,P14),SUM($M$4:M14)) -> 0 | R14: 0
F15: =IF(OR(D15=EOMONTH(A15,0),B15<0),SUM($B$4:B15),"") ->  | L15: 2012-11-30 | M15: 0 | N15: =IF(P15<0,SUM($M$4:M15,P15),SUM($M$4:M15)) -> 0 | R15: 0
F16: =IF(OR(D16=EOMONTH(A16,0),B16<0),SUM($B$4:B16),"") ->  | L16: 2012-12-31 | M16: 0 | N16: =IF(P16<0,SUM($M$4:M16,P16),SUM($M$4:M16)) -> 0 | R16: 0
F17: =IF(OR(D17=EOMONTH(A17,0),B17<0),SUM($B$4:B17),"") ->  | R17: =R16-H1 -> 0
F18: =IF(OR(D18=EOMONTH(A18,0),B18<0),SUM($B$4:B18),"") ->  | L18: =IF(D4=EOMONTH(D4,0),1,0) -> 1
F19: =IF(OR(D19=EOMONTH(A19,0),B19<0),SUM($B$4:B19),"") ->  | L19: =IF(B4<0,1,0) -> 0
F20: =IF(OR(D20=EOMONTH(A20,0),B20<0),SUM($B$4:B20),"") -> 
F21: =IF(OR(D21=EOMONTH(A21,0),B21<0),SUM($B$4:B21),"") -> 
F22: =IF(OR(D22=EOMONTH(A22,0),B22<0),SUM($B$4:B22),"") ->  | R22: =IFERROR(Q22+O22,"") -> 0
F23: =IF(OR(D23=EOMONTH(A23,0),B23<0),SUM($B$4:B23),"") -> 
F24: =IF(OR(D24=EOMONTH(A24,0),B24<0),SUM($B$4:B24),"") -> 
F25: =IF(OR(D25=EOMONTH(A25,0),B25<0),SUM($B$4:B25),"") -> 
F26: =IF(OR(D26=EOMONTH(A26,0),B26<0),SUM($B$4:B26),"") -> 
F27: =IF(OR(D27=EOMONTH(A27,0),B27<0),SUM($B$4:B27),"") -> 
F28: =IF(OR(D28=EOMONTH(A28,0),B28<0),SUM($B$4:B28),"") -> 
F29: =IF(OR(D29=EOMONTH(A29,0),B29<0),SUM($B$4:B29),"") -> 
F30: =IF(OR(D30=EOMONTH(A30,0),B30<0),SUM($B$4:B30),"") -> 
F31: =IF(OR(D31=EOMONTH(A31,0),B31<0),SUM($B$4:B31),"") -> 
F32: =IF(OR(D32=EOMONTH(A32,0),B32<0),SUM($B$4:B32),"") -> 
F33: =IF(OR(D33=EOMONTH(A33,0),B33<0),SUM($B$4:B33),"") -> 
F34: =IF(OR(D34=EOMONTH(A34,0),B34<0),SUM($B$4:B34),"") -> 
F35: =IF(OR(D35=EOMONTH(A35,0),B35<0),SUM($B$4:B35),"") -> 
F36: =IF(OR(D36=EOMONTH(A36,0),B36<0),SUM($B$4:B36),"") -> 
F37: =IF(OR(D37=EOMONTH(A37,0),B37<0),SUM($B$4:B37),"") -> 
F38: =IF(OR(D38=EOMONTH(A38,0),B38<0),SUM($B$4:B38),"") -> 
F39: =IF(OR(D39=EOMONTH(A39,0),B39<0),SUM($B$4:B39),"") -> 
F40: =IF(OR(D40=EOMONTH(A40,0),B40<0),SUM($B$4:B40),"") -> 
F41: =IF(OR(D41=EOMONTH(A41,0),B41<0),SUM($B$4:B41),"") -> 
F42: =IF(OR(D42=EOMONTH(A42,0),B42<0),SUM($B$4:B42),"") -> 
F43: =IF(OR(D43=EOMONTH(A43,0),B43<0),SUM($B$4:B43),"") -> 
F44: =IF(OR(D44=EOMONTH(A44,0),B44<0),SUM($B$4:B44),"") -> 
F45: =IF(OR(D45=EOMONTH(A45,0),B45<0),SUM($B$4:B45),"") -> 
F46: =IF(OR(D46=EOMONTH(A46,0),B46<0),SUM($B$4:B46),"") -> 
F47: =IF(OR(D47=EOMONTH(A47,0),B47<0),SUM($B$4:B47),"") -> 
F48: =IF(OR(D48=EOMONTH(A48,0),B48<0),SUM($B$4:B48),"") -> 
F49: =IF(OR(D49=EOMONTH(A49,0),B49<0),SUM($B$4:B49),"") -> 
F50: =IF(OR(D50=EOMONTH(A50,0),B50<0),SUM($B$4:B50),"") -> 
F51: =IF(OR(D51=EOMONTH(A51,0),B51<0),SUM($B$4:B51),"") -> 
F52: =IF(OR(D52=EOMONTH(A52,0),B52<0),SUM($B$4:B52),"") -> 
F53: =IF(OR(D53=EOMONTH(A53,0),B53<0),SUM($B$4:B53),"") -> 
F54: =IF(OR(D54=EOMONTH(A54,0),B54<0),SUM($B$4:B54),"") -> 
F55: =IF(OR(D55=EOMONTH(A55,0),B55<0),SUM($B$4:B55),"") -> 
F56: =IF(OR(D56=EOMONTH(A56,0),B56<0),SUM($B$4:B56),"") -> 
F57: =IF(OR(D57=EOMONTH(A57,0),B57<0),SUM($B$4:B57),"") -> 
F58: =IF(OR(D58=EOMONTH(A58,0),B58<0),SUM($B$4:B58),"") -> 
F59: =IF(OR(D59=EOMONTH(A59,0),B59<0),SUM($B$4:B59),"") -> 
F60: =IF(OR(D60=EOMONTH(A60,0),B60<0),SUM($B$4:B60),"") -> 
F61: =IF(OR(D61=EOMONTH(A61,0),B61<0),SUM($B$4:B61),"") -> 
F62: =IF(OR(D62=EOMONTH(A62,0),B62<0),SUM($B$4:B62),"") -> 
F63: =IF(OR(D63=EOMONTH(A63,0),B63<0),SUM($B$4:B63),"") ->  | H63: =IF(G63="a","a","") -> 
F64: =IF(OR(D64=EOMONTH(A64,0),B64<0),SUM($B$4:B64),"") -> 
F65: =IF(OR(D65=EOMONTH(A65,0),B65<0),SUM($B$4:B65),"") -> 
F66: =IF(OR(D66=EOMONTH(A66,0),B66<0),SUM($B$4:B66),"") -> 
F67: =IF(OR(D67=EOMONTH(A67,0),B67<0),SUM($B$4:B67),"") -> 
F68: =IF(OR(D68=EOMONTH(A68,0),B68<0),SUM($B$4:B68),"") -> 
D69: =IF(B69<0,"",IF(AND(D68<>"",EOMONTH(A68,0)=EOMONTH(A69,0)),"",IF(AND(G69<>G70,D68=EOMONTH(A68,0)),EOMONTH(A69,0),IF(G69=G70,"",IF(G69=$L$1,EOMONTH($G$1,0),IF(AND(G69<>G70,G69<>H69),EOMONTH(A68,0),"")))))) ->  | F69: =IF(OR(D69=EOMONTH(A69,0),B69<0),SUM($B$4:B69),"") -> 
E70: =IF(G70=G71,"",IF(D70="","",SUMIF(G:G,G70,B:B))) ->  | F70: =IF(OR(D70=EOMONTH(A70,0),B70<0),SUM($B$4:B70),"") ->  | G70: =IF(A70="","",IF(B70>0,MONTH(A70),"a")) ->  | H70: =IF(G70="a","a","") ->  | I70: =IF(J70<>"",MONTH(J70),"") ->  | J70: =IF(G70="a",A70,"") ->  | K70: =IF(G70="a",B70,"") -> 
C71: =IF(A71="","",IF(C70="",C69+1,IF(G71="a","",C70+1))) ->  | F71: =IF(OR(D71=EOMONTH(A71,0),B71<0),SUM($B$4:B71),"") -> 
F72: =IF(OR(D72=EOMONTH(A72,0),B72<0),SUM($B$4:B72),"") -> 
F73: =IF(OR(D73=EOMONTH(A73,0),B73<0),SUM($B$4:B73),"") -> 
F74: =IF(OR(D74=EOMONTH(A74,0),B74<0),SUM($B$4:B74),"") -> 
F75: =IF(OR(D75=EOMONTH(A75,0),B75<0),SUM($B$4:B75),"") -> 
F76: =IF(OR(D76=EOMONTH(A76,0),B76<0),SUM($B$4:B76),"") -> 
F77: =IF(OR(D77=EOMONTH(A77,0),B77<0),SUM($B$4:B77),"") -> 
E78: =IF(G78=G79,"",IF(D78="","",SUMIF(G:G,G78,B:B))) ->  | F78: =IF(OR(D78=EOMONTH(A78,0),B78<0),SUM($B$4:B78),"") -> 
E79: =IF(G79=G80,"",IF(D79="","",SUMIF(G:G,G79,B:B))) ->  | F79: =IF(OR(D79=EOMONTH(A79,0),B79<0),SUM($B$4:B79),"") -> 
F80: =IF(OR(D80=EOMONTH(A80,0),B80<0),SUM($B$4:B80),"") -> 
F81: =IF(OR(D81=EOMONTH(A81,0),B81<0),SUM($B$4:B81),"") -> 
F82: =IF(OR(D82=EOMONTH(A82,0),B82<0),SUM($B$4:B82),"") -> 
F83: =IF(OR(D83=EOMONTH(A83,0),B83<0),SUM($B$4:B83),"") -> 
F84: =IF(OR(D84=EOMONTH(A84,0),B84<0),SUM($B$4:B84),"") -> 
F85: =IF(OR(D85=EOMONTH(A85,0),B85<0),SUM($B$4:B85),"") -> 
F86: =IF(OR(D86=EOMONTH(A86,0),B86<0),SUM($B$4:B86),"") -> 
F87: =IF(OR(D87=EOMONTH(A87,0),B87<0),SUM($B$4:B87),"") -> 
F88: =IF(OR(D88=EOMONTH(A88,0),B88<0),SUM($B$4:B88),"") -> 
F89: =IF(OR(D89=EOMONTH(A89,0),B89<0),SUM($B$4:B89),"") -> 
F90: =IF(OR(D90=EOMONTH(A90,0),B90<0),SUM($B$4:B90),"") -> 
F91: =IF(OR(D91=EOMONTH(A91,0),B91<0),SUM($B$4:B91),"") -> 
F92: =IF(OR(D92=EOMONTH(A92,0),B92<0),SUM($B$4:B92),"") -> 
F93: =IF(OR(D93=EOMONTH(A93,0),B93<0),SUM($B$4:B93),"") -> 
F94: =IF(OR(D94=EOMONTH(A94,0),B94<0),SUM($B$4:B94),"") -> 
F95: =IF(OR(D95=EOMONTH(A95,0),B95<0),SUM($B$4:B95),"") -> 
F96: =IF(OR(D96=EOMONTH(A96,0),B96<0),SUM($B$4:B96),"") -> 
F97: =IF(OR(D97=EOMONTH(A97,0),B97<0),SUM($B$4:B97),"") -> 
F98: =IF(OR(D98=EOMONTH(A98,0),B98<0),SUM($B$4:B98),"") -> 
F99: =IF(OR(D99=EOMONTH(A99,0),B99<0),SUM($B$4:B99),"") -> 
F100: =IF(OR(D100=EOMONTH(A100,0),B100<0),SUM($B$4:B100),"") -> 

Sheet Feuil13
B1: =Feuil1!B23 -> 0 | G1: 2012-12-01 | H1: =SUM(B:B) -> 0 | L1: =MONTH(G1) -> 12
A3: DATE | B3: MONTANT | C3: N° Bon | D3: Fin Mois | E3: Total Mois | F3: G TOTAL | L3: FIN MOID | M3: SOME MOID | O3: DATE AVONCE | P3: MONTENT AVONCE | R3: TOTAL
D4: 2011-12-31 | F4: =B4 -> 0 | M4: =F4 -> 0
C5: 1 | D5: =IF(B5<0,"",IF(AND(D4<>"",EOMONTH(A4,0)=EOMONTH(A5,0)),"",IF(AND(G5<>G6,D4=EOMONTH(A4,0)),EOMONTH(A5,0),IF(G5=G6,"",IF(G5=$L$1,EOMONTH($G$1,0),IF(AND(G5<>G6,G5<>H5),EOMONTH(A4,0),"")))))) ->  | F5: =IF(OR(D5=EOMONTH(A5,0),B5<0),SUM($B$4:B5),"") ->  | G5: =IF(A5="","",IF(B5>0,MONTH(A5),"a")) ->  | H5: =IF(G5="a","a","") ->  | I5: =IF(J5<>"",MONTH(J5),"") ->  | J5: =IF(G5="a",A5,"") ->  | K5: =IF(G5="a",B5,"") ->  | L5: 2012-01-31 | M5: =IFERROR(VLOOKUP(L5,D:E,2,0),"0") -> 0 | N5: =IF(P5<0,SUM($M$4:M5,P5),SUM($M$4:M5)) -> 0 | O5: =IFERROR(VLOOKUP(MONTH(L5),I:K,2,0),"") ->  | P5: =IFERROR(VLOOKUP(MONTH(L5),I:K,3,0),"") ->  | Q5: =IFERROR(P5+N5,"") ->  | R5: =N5 -> 0
C6: =IF(A6="","",IF(C5="",C4+1,IF(G6="a","",C5+1))) ->  | E6: =IF(G6=G7,"",IF(D6="","",SUMIF(G:G,G6,B:B))) ->  | F6: =IF(OR(D6=EOMONTH(A6,0),B6<0),SUM($B$4:B6),"") ->  | G6: =IF(A6="","",IF(B6>0,MONTH(A6),"a")) ->  | H6: =IF(G6="a","a","") ->  | I6: =IF(J6<>"",MONTH(J6),"") ->  | J6: =IF(G6="a",A6,"") ->  | K6: =IF(G6="a",B6,"") ->  | L6: 2012-02-29 | M6: =IFERROR(VLOOKUP(L6,D:E,2,0),"0") -> 0 | N6: =IF(P6<0,SUM($M$4:M6,P6),SUM($M$4:M6)) -> 0 | O6: =IFERROR(VLOOKUP(MONTH(L6),I:K,2,0),"") ->  | P6: =IFERROR(VLOOKUP(MONTH(L6),I:K,3,0),"") ->  | Q6: =IFERROR(P6+N6,"") ->  | R6: =IFERROR(R5+M6+P6,R5+M6) -> 0
C7: =IF(A7="","",IF(C6="",C5+1,IF(G7="a","",C6+1))) ->  | F7: =IF(OR(D7=EOMONTH(A7,0),B7<0),SUM($B$4:B7),"") ->  | L7: 2012-03-31 | M7: 0 | N7: =IF(P7<0,SUM($M$4:M7,P7),SUM($M$4:M7)) -> 0 | R7: =IFERROR(R6+M7+P7,R6+M7) -> 0
F8: =IF(OR(D8=EOMONTH(A8,0),B8<0),SUM($B$4:B8),"") ->  | L8: 2012-04-30 | M8: 0 | N8: =IF(P8<0,SUM($M$4:M8,P8),SUM($M$4:M8)) -> 0 | R8: 0
F9: =IF(OR(D9=EOMONTH(A9,0),B9<0),SUM($B$4:B9),"") ->  | L9: 2012-05-31 | M9: 0 | N9: =IF(P9<0,SUM($M$4:M9,P9),SUM($M$4:M9)) -> 0 | R9: 0
F10: =IF(OR(D10=EOMONTH(A10,0),B10<0),SUM($B$4:B10),"") ->  | L10: 2012-06-30 | M10: 0 | N10: =IF(P10<0,SUM($M$4:M10,P10),SUM($M$4:M10)) -> 0 | R10: 0
F11: =IF(OR(D11=EOMONTH(A11,0),B11<0),SUM($B$4:B11),"") ->  | L11: 2012-07-31 | M11: 0 | N11: =IF(P11<0,SUM($M$4:M11,P11),SUM($M$4:M11)) -> 0 | R11: 0
F12: =IF(OR(D12=EOMONTH(A12,0),B12<0),SUM($B$4:B12),"") ->  | L12: 2012-08-31 | M12: 0 | N12: =IF(P12<0,SUM($M$4:M12,P12),SUM($M$4:M12)) -> 0 | R12: 0
F13: =IF(OR(D13=EOMONTH(A13,0),B13<0),SUM($B$4:B13),"") ->  | L13: 2012-09-30 | M13: 0 | N13: =IF(P13<0,SUM($M$4:M13,P13),SUM($M$4:M13)) -> 0 | R13: 0
F14: =IF(OR(D14=EOMONTH(A14,0),B14<0),SUM($B$4:B14),"") ->  | L14: 2012-10-31 | M14: 0 | N14: =IF(P14<0,SUM($M$4:M14,P14),SUM($M$4:M14)) -> 0 | R14: 0
F15: =IF(OR(D15=EOMONTH(A15,0),B15<0),SUM($B$4:B15),"") ->  | L15: 2012-11-30 | M15: 0 | N15: =IF(P15<0,SUM($M$4:M15,P15),SUM($M$4:M15)) -> 0 | R15: 0
F16: =IF(OR(D16=EOMONTH(A16,0),B16<0),SUM($B$4:B16),"") ->  | L16: 2012-12-31 | M16: 0 | N16: =IF(P16<0,SUM($M$4:M16,P16),SUM($M$4:M16)) -> 0 | R16: 0
F17: =IF(OR(D17=EOMONTH(A17,0),B17<0),SUM($B$4:B17),"") ->  | R17: =R16-H1 -> 0
F18: =IF(OR(D18=EOMONTH(A18,0),B18<0),SUM($B$4:B18),"") ->  | L18: =IF(D4=EOMONTH(D4,0),1,0) -> 1
F19: =IF(OR(D19=EOMONTH(A19,0),B19<0),SUM($B$4:B19),"") ->  | L19: =IF(B4<0,1,0) -> 0
F20: =IF(OR(D20=EOMONTH(A20,0),B20<0),SUM($B$4:B20),"") -> 
F21: =IF(OR(D21=EOMONTH(A21,0),B21<0),SUM($B$4:B21),"") -> 
F22: =IF(OR(D22=EOMONTH(A22,0),B22<0),SUM($B$4:B22),"") ->  | R22: =IFERROR(Q22+O22,"") -> 0
F23: =IF(OR(D23=EOMONTH(A23,0),B23<0),SUM($B$4:B23),"") -> 
F24: =IF(OR(D24=EOMONTH(A24,0),B24<0),SUM($B$4:B24),"") -> 
F25: =IF(OR(D25=EOMONTH(A25,0),B25<0),SUM($B$4:B25),"") -> 
F26: =IF(OR(D26=EOMONTH(A26,0),B26<0),SUM($B$4:B26),"") -> 
F27: =IF(OR(D27=EOMONTH(A27,0),B27<0),SUM($B$4:B27),"") -> 
F28: =IF(OR(D28=EOMONTH(A28,0),B28<0),SUM($B$4:B28),"") -> 
F29: =IF(OR(D29=EOMONTH(A29,0),B29<0),SUM($B$4:B29),"") -> 
F30: =IF(OR(D30=EOMONTH(A30,0),B30<0),SUM($B$4:B30),"") -> 
F31: =IF(OR(D31=EOMONTH(A31,0),B31<0),SUM($B$4:B31),"") -> 
F32: =IF(OR(D32=EOMONTH(A32,0),B32<0),SUM($B$4:B32),"") -> 
F33: =IF(OR(D33=EOMONTH(A33,0),B33<0),SUM($B$4:B33),"") -> 
F34: =IF(OR(D34=EOMONTH(A34,0),B34<0),SUM($B$4:B34),"") -> 
F35: =IF(OR(D35=EOMONTH(A35,0),B35<0),SUM($B$4:B35),"") -> 
F36: =IF(OR(D36=EOMONTH(A36,0),B36<0),SUM($B$4:B36),"") -> 
F37: =IF(OR(D37=EOMONTH(A37,0),B37<0),SUM($B$4:B37),"") -> 
F38: =IF(OR(D38=EOMONTH(A38,0),B38<0),SUM($B$4:B38),"") -> 
F39: =IF(OR(D39=EOMONTH(A39,0),B39<0),SUM($B$4:B39),"") -> 
F40: =IF(OR(D40=EOMONTH(A40,0),B40<0),SUM($B$4:B40),"") -> 
F41: =IF(OR(D41=EOMONTH(A41,0),B41<0),SUM($B$4:B41),"") -> 
F42: =IF(OR(D42=EOMONTH(A42,0),B42<0),SUM($B$4:B42),"") -> 
F43: =IF(OR(D43=EOMONTH(A43,0),B43<0),SUM($B$4:B43),"") -> 
F44: =IF(OR(D44=EOMONTH(A44,0),B44<0),SUM($B$4:B44),"") -> 
F45: =IF(OR(D45=EOMONTH(A45,0),B45<0),SUM($B$4:B45),"") -> 
F46: =IF(OR(D46=EOMONTH(A46,0),B46<0),SUM($B$4:B46),"") -> 
F47: =IF(OR(D47=EOMONTH(A47,0),B47<0),SUM($B$4:B47),"") -> 
F48: =IF(OR(D48=EOMONTH(A48,0),B48<0),SUM($B$4:B48),"") -> 
F49: =IF(OR(D49=EOMONTH(A49,0),B49<0),SUM($B$4:B49),"") -> 
F50: =IF(OR(D50=EOMONTH(A50,0),B50<0),SUM($B$4:B50),"") -> 
F51: =IF(OR(D51=EOMONTH(A51,0),B51<0),SUM($B$4:B51),"") -> 
F52: =IF(OR(D52=EOMONTH(A52,0),B52<0),SUM($B$4:B52),"") -> 
F53: =IF(OR(D53=EOMONTH(A53,0),B53<0),SUM($B$4:B53),"") -> 
F54: =IF(OR(D54=EOMONTH(A54,0),B54<0),SUM($B$4:B54),"") -> 
F55: =IF(OR(D55=EOMONTH(A55,0),B55<0),SUM($B$4:B55),"") -> 
F56: =IF(OR(D56=EOMONTH(A56,0),B56<0),SUM($B$4:B56),"") -> 
F57: =IF(OR(D57=EOMONTH(A57,0),B57<0),SUM($B$4:B57),"") -> 
F58: =IF(OR(D58=EOMONTH(A58,0),B58<0),SUM($B$4:B58),"") -> 
F59: =IF(OR(D59=EOMONTH(A59,0),B59<0),SUM($B$4:B59),"") -> 
F60: =IF(OR(D60=EOMONTH(A60,0),B60<0),SUM($B$4:B60),"") -> 
F61: =IF(OR(D61=EOMONTH(A61,0),B61<0),SUM($B$4:B61),"") -> 
F62: =IF(OR(D62=EOMONTH(A62,0),B62<0),SUM($B$4:B62),"") -> 
F63: =IF(OR(D63=EOMONTH(A63,0),B63<0),SUM($B$4:B63),"") ->  | H63: =IF(G63="a","a","") -> 
F64: =IF(OR(D64=EOMONTH(A64,0),B64<0),SUM($B$4:B64),"") -> 
F65: =IF(OR(D65=EOMONTH(A65,0),B65<0),SUM($B$4:B65),"") -> 
F66: =IF(OR(D66=EOMONTH(A66,0),B66<0),SUM($B$4:B66),"") -> 
F67: =IF(OR(D67=EOMONTH(A67,0),B67<0),SUM($B$4:B67),"") -> 
F68: =IF(OR(D68=EOMONTH(A68,0),B68<0),SUM($B$4:B68),"") -> 
D69: =IF(B69<0,"",IF(AND(D68<>"",EOMONTH(A68,0)=EOMONTH(A69,0)),"",IF(AND(G69<>G70,D68=EOMONTH(A68,0)),EOMONTH(A69,0),IF(G69=G70,"",IF(G69=$L$1,EOMONTH($G$1,0),IF(AND(G69<>G70,G69<>H69),EOMONTH(A68,0),"")))))) ->  | F69: =IF(OR(D69=EOMONTH(A69,0),B69<0),SUM($B$4:B69),"") -> 
E70: =IF(G70=G71,"",IF(D70="","",SUMIF(G:G,G70,B:B))) ->  | F70: =IF(OR(D70=EOMONTH(A70,0),B70<0),SUM($B$4:B70),"") ->  | G70: =IF(A70="","",IF(B70>0,MONTH(A70),"a")) ->  | H70: =IF(G70="a","a","") ->  | I70: =IF(J70<>"",MONTH(J70),"") ->  | J70: =IF(G70="a",A70,"") ->  | K70: =IF(G70="a",B70,"") -> 
C71: =IF(A71="","",IF(C70="",C69+1,IF(G71="a","",C70+1))) ->  | F71: =IF(OR(D71=EOMONTH(A71,0),B71<0),SUM($B$4:B71),"") -> 
F72: =IF(OR(D72=EOMONTH(A72,0),B72<0),SUM($B$4:B72),"") -> 
F73: =IF(OR(D73=EOMONTH(A73,0),B73<0),SUM($B$4:B73),"") -> 
F74: =IF(OR(D74=EOMONTH(A74,0),B74<0),SUM($B$4:B74),"") -> 
F75: =IF(OR(D75=EOMONTH(A75,0),B75<0),SUM($B$4:B75),"") -> 
F76: =IF(OR(D76=EOMONTH(A76,0),B76<0),SUM($B$4:B76),"") -> 
F77: =IF(OR(D77=EOMONTH(A77,0),B77<0),SUM($B$4:B77),"") -> 
E78: =IF(G78=G79,"",IF(D78="","",SUMIF(G:G,G78,B:B))) ->  | F78: =IF(OR(D78=EOMONTH(A78,0),B78<0),SUM($B$4:B78),"") -> 
E79: =IF(G79=G80,"",IF(D79="","",SUMIF(G:G,G79,B:B))) ->  | F79: =IF(OR(D79=EOMONTH(A79,0),B79<0),SUM($B$4:B79),"") -> 
F80: =IF(OR(D80=EOMONTH(A80,0),B80<0),SUM($B$4:B80),"") -> 
F81: =IF(OR(D81=EOMONTH(A81,0),B81<0),SUM($B$4:B81),"") -> 
F82: =IF(OR(D82=EOMONTH(A82,0),B82<0),SUM($B$4:B82),"") -> 
F83: =IF(OR(D83=EOMONTH(A83,0),B83<0),SUM($B$4:B83),"") -> 
F84: =IF(OR(D84=EOMONTH(A84,0),B84<0),SUM($B$4:B84),"") -> 
F85: =IF(OR(D85=EOMONTH(A85,0),B85<0),SUM($B$4:B85),"") -> 
F86: =IF(OR(D86=EOMONTH(A86,0),B86<0),SUM($B$4:B86),"") -> 
F87: =IF(OR(D87=EOMONTH(A87,0),B87<0),SUM($B$4:B87),"") -> 
F88: =IF(OR(D88=EOMONTH(A88,0),B88<0),SUM($B$4:B88),"") -> 
F89: =IF(OR(D89=EOMONTH(A89,0),B89<0),SUM($B$4:B89),"") -> 
F90: =IF(OR(D90=EOMONTH(A90,0),B90<0),SUM($B$4:B90),"") -> 
F91: =IF(OR(D91=EOMONTH(A91,0),B91<0),SUM($B$4:B91),"") -> 
F92: =IF(OR(D92=EOMONTH(A92,0),B92<0),SUM($B$4:B92),"") -> 
F93: =IF(OR(D93=EOMONTH(A93,0),B93<0),SUM($B$4:B93),"") -> 
F94: =IF(OR(D94=EOMONTH(A94,0),B94<0),SUM($B$4:B94),"") -> 
F95: =IF(OR(D95=EOMONTH(A95,0),B95<0),SUM($B$4:B95),"") -> 
F96: =IF(OR(D96=EOMONTH(A96,0),B96<0),SUM($B$4:B96),"") -> 
F97: =IF(OR(D97=EOMONTH(A97,0),B97<0),SUM($B$4:B97),"") -> 
F98: =IF(OR(D98=EOMONTH(A98,0),B98<0),SUM($B$4:B98),"") -> 
F99: =IF(OR(D99=EOMONTH(A99,0),B99<0),SUM($B$4:B99),"") -> 
F100: =IF(OR(D100=EOMONTH(A100,0),B100<0),SUM($B$4:B100),"") -> 

Sheet Feuil14
B1: =Feuil1!B24 -> 0 | G1: 2012-12-01 | H1: =SUM(B:B) -> 0 | L1: =MONTH(G1) -> 12
A3: DATE | B3: MONTANT | C3: N° Bon | D3: Fin Mois | E3: Total Mois | F3: G TOTAL | L3: FIN MOID | M3: SOME MOID | O3: DATE AVONCE | P3: MONTENT AVONCE | R3: TOTAL
D4: 2011-12-31 | F4: =B4 -> 0 | M4: =F4 -> 0
C5: 1 | D5: =IF(B5<0,"",IF(AND(D4<>"",EOMONTH(A4,0)=EOMONTH(A5,0)),"",IF(AND(G5<>G6,D4=EOMONTH(A4,0)),EOMONTH(A5,0),IF(G5=G6,"",IF(G5=$L$1,EOMONTH($G$1,0),IF(AND(G5<>G6,G5<>H5),EOMONTH(A4,0),"")))))) ->  | F5: =IF(OR(D5=EOMONTH(A5,0),B5<0),SUM($B$4:B5),"") ->  | G5: =IF(A5="","",IF(B5>0,MONTH(A5),"a")) ->  | H5: =IF(G5="a","a","") ->  | I5: =IF(J5<>"",MONTH(J5),"") ->  | J5: =IF(G5="a",A5,"") ->  | K5: =IF(G5="a",B5,"") ->  | L5: 2012-01-31 | M5: =IFERROR(VLOOKUP(L5,D:E,2,0),"0") -> 0 | N5: =IF(P5<0,SUM($M$4:M5,P5),SUM($M$4:M5)) -> 0 | O5: =IFERROR(VLOOKUP(MONTH(L5),I:K,2,0),"") ->  | P5: =IFERROR(VLOOKUP(MONTH(L5),I:K,3,0),"") ->  | Q5: =IFERROR(P5+N5,"") ->  | R5: =N5 -> 0
C6: =IF(A6="","",IF(C5="",C4+1,IF(G6="a","",C5+1))) ->  | E6: =IF(G6=G7,"",IF(D6="","",SUMIF(G:G,G6,B:B))) ->  | F6: =IF(OR(D6=EOMONTH(A6,0),B6<0),SUM($B$4:B6),"") ->  | G6: =IF(A6="","",IF(B6>0,MONTH(A6),"a")) ->  | H6: =IF(G6="a","a","") ->  | I6: =IF(J6<>"",MONTH(J6),"") ->  | J6: =IF(G6="a",A6,"") ->  | K6: =IF(G6="a",B6,"") ->  | L6: 2012-02-29 | M6: =IFERROR(VLOOKUP(L6,D:E,2,0),"0") -> 0 | N6: =IF(P6<0,SUM($M$4:M6,P6),SUM($M$4:M6)) -> 0 | O6: =IFERROR(VLOOKUP(MONTH(L6),I:K,2,0),"") ->  | P6: =IFERROR(VLOOKUP(MONTH(L6),I:K,3,0),"") ->  | Q6: =IFERROR(P6+N6,"") ->  | R6: =IFERROR(R5+M6+P6,R5+M6) -> 0
C7: =IF(A7="","",IF(C6="",C5+1,IF(G7="a","",C6+1))) ->  | F7: =IF(OR(D7=EOMONTH(A7,0),B7<0),SUM($B$4:B7),"") ->  | L7: 2012-03-31 | M7: 0 | N7: =IF(P7<0,SUM($M$4:M7,P7),SUM($M$4:M7)) -> 0 | R7: =IFERROR(R6+M7+P7,R6+M7) -> 0
F8: =IF(OR(D8=EOMONTH(A8,0),B8<0),SUM($B$4:B8),"") ->  | L8: 2012-04-30 | M8: 0 | N8: =IF(P8<0,SUM($M$4:M8,P8),SUM($M$4:M8)) -> 0 | R8: 0
F9: =IF(OR(D9=EOMONTH(A9,0),B9<0),SUM($B$4:B9),"") ->  | L9: 2012-05-31 | M9: 0 | N9: =IF(P9<0,SUM($M$4:M9,P9),SUM($M$4:M9)) -> 0 | R9: 0
F10: =IF(OR(D10=EOMONTH(A10,0),B10<0),SUM($B$4:B10),"") ->  | L10: 2012-06-30 | M10: 0 | N10: =IF(P10<0,SUM($M$4:M10,P10),SUM($M$4:M10)) -> 0 | R10: 0
F11: =IF(OR(D11=EOMONTH(A11,0),B11<0),SUM($B$4:B11),"") ->  | L11: 2012-07-31 | M11: 0 | N11: =IF(P11<0,SUM($M$4:M11,P11),SUM($M$4:M11)) -> 0 | R11: 0
F12: =IF(OR(D12=EOMONTH(A12,0),B12<0),SUM($B$4:B12),"") ->  | L12: 2012-08-31 | M12: 0 | N12: =IF(P12<0,SUM($M$4:M12,P12),SUM($M$4:M12)) -> 0 | R12: 0
F13: =IF(OR(D13=EOMONTH(A13,0),B13<0),SUM($B$4:B13),"") ->  | L13: 2012-09-30 | M13: 0 | N13: =IF(P13<0,SUM($M$4:M13,P13),SUM($M$4:M13)) -> 0 | R13: 0
F14: =IF(OR(D14=EOMONTH(A14,0),B14<0),SUM($B$4:B14),"") ->  | L14: 2012-10-31 | M14: 0 | N14: =IF(P14<0,SUM($M$4:M14,P14),SUM($M$4:M14)) -> 0 | R14: 0
F15: =IF(OR(D15=EOMONTH(A15,0),B15<0),SUM($B$4:B15),"") ->  | L15: 2012-11-30 | M15: 0 | N15: =IF(P15<0,SUM($M$4:M15,P15),SUM($M$4:M15)) -> 0 | R15: 0
F16: =IF(OR(D16=EOMONTH(A16,0),B16<0),SUM($B$4:B16),"") ->  | L16: 2012-12-31 | M16: 0 | N16: =IF(P16<0,SUM($M$4:M16,P16),SUM($M$4:M16)) -> 0 | R16: 0
F17: =IF(OR(D17=EOMONTH(A17,0),B17<0),SUM($B$4:B17),"") ->  | R17: =R16-H1 -> 0
F18: =IF(OR(D18=EOMONTH(A18,0),B18<0),SUM($B$4:B18),"") ->  | L18: =IF(D4=EOMONTH(D4,0),1,0) -> 1
F19: =IF(OR(D19=EOMONTH(A19,0),B19<0),SUM($B$4:B19),"") ->  | L19: =IF(B4<0,1,0) -> 0
F20: =IF(OR(D20=EOMONTH(A20,0),B20<0),SUM($B$4:B20),"") -> 
F21: =IF(OR(D21=EOMONTH(A21,0),B21<0),SUM($B$4:B21),"") -> 
F22: =IF(OR(D22=EOMONTH(A22,0),B22<0),SUM($B$4:B22),"") ->  | R22: =IFERROR(Q22+O22,"") -> 0
F23: =IF(OR(D23=EOMONTH(A23,0),B23<0),SUM($B$4:B23),"") -> 
F24: =IF(OR(D24=EOMONTH(A24,0),B24<0),SUM($B$4:B24),"") -> 
F25: =IF(OR(D25=EOMONTH(A25,0),B25<0),SUM($B$4:B25),"") -> 
F26: =IF(OR(D26=EOMONTH(A26,0),B26<0),SUM($B$4:B26),"") -> 
F27: =IF(OR(D27=EOMONTH(A27,0),B27<0),SUM($B$4:B27),"") -> 
F28: =IF(OR(D28=EOMONTH(A28,0),B28<0),SUM($B$4:B28),"") -> 
F29: =IF(OR(D29=EOMONTH(A29,0),B29<0),SUM($B$4:B29),"") -> 
F30: =IF(OR(D30=EOMONTH(A30,0),B30<0),SUM($B$4:B30),"") -> 
F31: =IF(OR(D31=EOMONTH(A31,0),B31<0),SUM($B$4:B31),"") -> 
F32: =IF(OR(D32=EOMONTH(A32,0),B32<0),SUM($B$4:B32),"") -> 
F33: =IF(OR(D33=EOMONTH(A33,0),B33<0),SUM($B$4:B33),"") -> 
F34: =IF(OR(D34=EOMONTH(A34,0),B34<0),SUM($B$4:B34),"") -> 
F35: =IF(OR(D35=EOMONTH(A35,0),B35<0),SUM($B$4:B35),"") -> 
F36: =IF(OR(D36=EOMONTH(A36,0),B36<0),SUM($B$4:B36),"") -> 
F37: =IF(OR(D37=EOMONTH(A37,0),B37<0),SUM($B$4:B37),"") -> 
F38: =IF(OR(D38=EOMONTH(A38,0),B38<0),SUM($B$4:B38),"") -> 
F39: =IF(OR(D39=EOMONTH(A39,0),B39<0),SUM($B$4:B39),"") -> 
F40: =IF(OR(D40=EOMONTH(A40,0),B40<0),SUM($B$4:B40),"") -> 
F41: =IF(OR(D41=EOMONTH(A41,0),B41<0),SUM($B$4:B41),"") -> 
F42: =IF(OR(D42=EOMONTH(A42,0),B42<0),SUM($B$4:B42),"") -> 
F43: =IF(OR(D43=EOMONTH(A43,0),B43<0),SUM($B$4:B43),"") -> 
F44: =IF(OR(D44=EOMONTH(A44,0),B44<0),SUM($B$4:B44),"") -> 
F45: =IF(OR(D45=EOMONTH(A45,0),B45<0),SUM($B$4:B45),"") -> 
F46: =IF(OR(D46=EOMONTH(A46,0),B46<0),SUM($B$4:B46),"") -> 
F47: =IF(OR(D47=EOMONTH(A47,0),B47<0),SUM($B$4:B47),"") -> 
F48: =IF(OR(D48=EOMONTH(A48,0),B48<0),SUM($B$4:B48),"") -> 
F49: =IF(OR(D49=EOMONTH(A49,0),B49<0),SUM($B$4:B49),"") -> 
F50: =IF(OR(D50=EOMONTH(A50,0),B50<0),SUM($B$4:B50),"") -> 
F51: =IF(OR(D51=EOMONTH(A51,0),B51<0),SUM($B$4:B51),"") -> 
F52: =IF(OR(D52=EOMONTH(A52,0),B52<0),SUM($B$4:B52),"") -> 
F53: =IF(OR(D53=EOMONTH(A53,0),B53<0),SUM($B$4:B53),"") -> 
F54: =IF(OR(D54=EOMONTH(A54,0),B54<0),SUM($B$4:B54),"") -> 
F55: =IF(OR(D55=EOMONTH(A55,0),B55<0),SUM($B$4:B55),"") -> 
F56: =IF(OR(D56=EOMONTH(A56,0),B56<0),SUM($B$4:B56),"") -> 
F57: =IF(OR(D57=EOMONTH(A57,0),B57<0),SUM($B$4:B57),"") -> 
F58: =IF(OR(D58=EOMONTH(A58,0),B58<0),SUM($B$4:B58),"") -> 
F59: =IF(OR(D59=EOMONTH(A59,0),B59<0),SUM($B$4:B59),"") -> 
F60: =IF(OR(D60=EOMONTH(A60,0),B60<0),SUM($B$4:B60),"") -> 
F61: =IF(OR(D61=EOMONTH(A61,0),B61<0),SUM($B$4:B61),"") -> 
F62: =IF(OR(D62=EOMONTH(A62,0),B62<0),SUM($B$4:B62),"") -> 
F63: =IF(OR(D63=EOMONTH(A63,0),B63<0),SUM($B$4:B63),"") ->  | H63: =IF(G63="a","a","") -> 
F64: =IF(OR(D64=EOMONTH(A64,0),B64<0),SUM($B$4:B64),"") -> 
F65: =IF(OR(D65=EOMONTH(A65,0),B65<0),SUM($B$4:B65),"") -> 
F66: =IF(OR(D66=EOMONTH(A66,0),B66<0),SUM($B$4:B66),"") -> 
F67: =IF(OR(D67=EOMONTH(A67,0),B67<0),SUM($B$4:B67),"") -> 
F68: =IF(OR(D68=EOMONTH(A68,0),B68<0),SUM($B$4:B68),"") -> 
D69: =IF(B69<0,"",IF(AND(D68<>"",EOMONTH(A68,0)=EOMONTH(A69,0)),"",IF(AND(G69<>G70,D68=EOMONTH(A68,0)),EOMONTH(A69,0),IF(G69=G70,"",IF(G69=$L$1,EOMONTH($G$1,0),IF(AND(G69<>G70,G69<>H69),EOMONTH(A68,0),"")))))) ->  | F69: =IF(OR(D69=EOMONTH(A69,0),B69<0),SUM($B$4:B69),"") -> 
E70: =IF(G70=G71,"",IF(D70="","",SUMIF(G:G,G70,B:B))) ->  | F70: =IF(OR(D70=EOMONTH(A70,0),B70<0),SUM($B$4:B70),"") ->  | G70: =IF(A70="","",IF(B70>0,MONTH(A70),"a")) ->  | H70: =IF(G70="a","a","") ->  | I70: =IF(J70<>"",MONTH(J70),"") ->  | J70: =IF(G70="a",A70,"") ->  | K70: =IF(G70="a",B70,"") -> 
C71: =IF(A71="","",IF(C70="",C69+1,IF(G71="a","",C70+1))) ->  | F71: =IF(OR(D71=EOMONTH(A71,0),B71<0),SUM($B$4:B71),"") -> 
F72: =IF(OR(D72=EOMONTH(A72,0),B72<0),SUM($B$4:B72),"") -> 
F73: =IF(OR(D73=EOMONTH(A73,0),B73<0),SUM($B$4:B73),"") -> 
F74: =IF(OR(D74=EOMONTH(A74,0),B74<0),SUM($B$4:B74),"") -> 
F75: =IF(OR(D75=EOMONTH(A75,0),B75<0),SUM($B$4:B75),"") -> 
F76: =IF(OR(D76=EOMONTH(A76,0),B76<0),SUM($B$4:B76),"") -> 
F77: =IF(OR(D77=EOMONTH(A77,0),B77<0),SUM($B$4:B77),"") -> 
E78: =IF(G78=G79,"",IF(D78="","",SUMIF(G:G,G78,B:B))) ->  | F78: =IF(OR(D78=EOMONTH(A78,0),B78<0),SUM($B$4:B78),"") -> 
E79: =IF(G79=G80,"",IF(D79="","",SUMIF(G:G,G79,B:B))) ->  | F79: =IF(OR(D79=EOMONTH(A79,0),B79<0),SUM($B$4:B79),"") -> 
F80: =IF(OR(D80=EOMONTH(A80,0),B80<0),SUM($B$4:B80),"") -> 
F81: =IF(OR(D81=EOMONTH(A81,0),B81<0),SUM($B$4:B81),"") -> 
F82: =IF(OR(D82=EOMONTH(A82,0),B82<0),SUM($B$4:B82),"") -> 
F83: =IF(OR(D83=EOMONTH(A83,0),B83<0),SUM($B$4:B83),"") -> 
F84: =IF(OR(D84=EOMONTH(A84,0),B84<0),SUM($B$4:B84),"") -> 
F85: =IF(OR(D85=EOMONTH(A85,0),B85<0),SUM($B$4:B85),"") -> 
F86: =IF(OR(D86=EOMONTH(A86,0),B86<0),SUM($B$4:B86),"") -> 
F87: =IF(OR(D87=EOMONTH(A87,0),B87<0),SUM($B$4:B87),"") -> 
F88: =IF(OR(D88=EOMONTH(A88,0),B88<0),SUM($B$4:B88),"") -> 
F89: =IF(OR(D89=EOMONTH(A89,0),B89<0),SUM($B$4:B89),"") -> 
F90: =IF(OR(D90=EOMONTH(A90,0),B90<0),SUM($B$4:B90),"") -> 
F91: =IF(OR(D91=EOMONTH(A91,0),B91<0),SUM($B$4:B91),"") -> 
F92: =IF(OR(D92=EOMONTH(A92,0),B92<0),SUM($B$4:B92),"") -> 
F93: =IF(OR(D93=EOMONTH(A93,0),B93<0),SUM($B$4:B93),"") -> 
F94: =IF(OR(D94=EOMONTH(A94,0),B94<0),SUM($B$4:B94),"") -> 
F95: =IF(OR(D95=EOMONTH(A95,0),B95<0),SUM($B$4:B95),"") -> 
F96: =IF(OR(D96=EOMONTH(A96,0),B96<0),SUM($B$4:B96),"") -> 
F97: =IF(OR(D97=EOMONTH(A97,0),B97<0),SUM($B$4:B97),"") -> 
F98: =IF(OR(D98=EOMONTH(A98,0),B98<0),SUM($B$4:B98),"") -> 
F99: =IF(OR(D99=EOMONTH(A99,0),B99<0),SUM($B$4:B99),"") -> 
F100: =IF(OR(D100=EOMONTH(A100,0),B100<0),SUM($B$4:B100),"") -> 

Sheet Feuil15
B1: =Feuil1!B25 -> 0 | G1: 2012-12-01 | H1: =SUM(B:B) -> 0 | L1: =MONTH(G1) -> 12
A3: DATE | B3: MONTANT | C3: N° Bon | D3: Fin Mois | E3: Total Mois | F3: G TOTAL | L3: FIN MOID | M3: SOME MOID | O3: DATE AVONCE | P3: MONTENT AVONCE | R3: TOTAL
D4: 2011-12-31 | F4: =B4 -> 0 | M4: =F4 -> 0
C5: 1 | D5: =IF(B5<0,"",IF(AND(D4<>"",EOMONTH(A4,0)=EOMONTH(A5,0)),"",IF(AND(G5<>G6,D4=EOMONTH(A4,0)),EOMONTH(A5,0),IF(G5=G6,"",IF(G5=$L$1,EOMONTH($G$1,0),IF(AND(G5<>G6,G5<>H5),EOMONTH(A4,0),"")))))) ->  | F5: =IF(OR(D5=EOMONTH(A5,0),B5<0),SUM($B$4:B5),"") ->  | G5: =IF(A5="","",IF(B5>0,MONTH(A5),"a")) ->  | H5: =IF(G5="a","a","") ->  | I5: =IF(J5<>"",MONTH(J5),"") ->  | J5: =IF(G5="a",A5,"") ->  | K5: =IF(G5="a",B5,"") ->  | L5: 2012-01-31 | M5: =IFERROR(VLOOKUP(L5,D:E,2,0),"0") -> 0 | N5: =IF(P5<0,SUM($M$4:M5,P5),SUM($M$4:M5)) -> 0 | O5: =IFERROR(VLOOKUP(MONTH(L5),I:K,2,0),"") ->  | P5: =IFERROR(VLOOKUP(MONTH(L5),I:K,3,0),"") ->  | Q5: =IFERROR(P5+N5,"") ->  | R5: =N5 -> 0
C6: =IF(A6="","",IF(C5="",C4+1,IF(G6="a","",C5+1))) ->  | E6: =IF(G6=G7,"",IF(D6="","",SUMIF(G:G,G6,B:B))) ->  | F6: =IF(OR(D6=EOMONTH(A6,0),B6<0),SUM($B$4:B6),"") ->  | G6: =IF(A6="","",IF(B6>0,MONTH(A6),"a")) ->  | H6: =IF(G6="a","a","") ->  | I6: =IF(J6<>"",MONTH(J6),"") ->  | J6: =IF(G6="a",A6,"") ->  | K6: =IF(G6="a",B6,"") ->  | L6: 2012-02-29 | M6: =IFERROR(VLOOKUP(L6,D:E,2,0),"0") -> 0 | N6: =IF(P6<0,SUM($M$4:M6,P6),SUM($M$4:M6)) -> 0 | O6: =IFERROR(VLOOKUP(MONTH(L6),I:K,2,0),"") ->  | P6: =IFERROR(VLOOKUP(MONTH(L6),I:K,3,0),"") ->  | Q6: =IFERROR(P6+N6,"") ->  | R6: =IFERROR(R5+M6+P6,R5+M6) -> 0
C7: =IF(A7="","",IF(C6="",C5+1,IF(G7="a","",C6+1))) ->  | F7: =IF(OR(D7=EOMONTH(A7,0),B7<0),SUM($B$4:B7),"") ->  | L7: 2012-03-31 | M7: 0 | N7: =IF(P7<0,SUM($M$4:M7,P7),SUM($M$4:M7)) -> 0 | R7: =IFERROR(R6+M7+P7,R6+M7) -> 0
F8: =IF(OR(D8=EOMONTH(A8,0),B8<0),SUM($B$4:B8),"") ->  | L8: 2012-04-30 | M8: 0 | N8: =IF(P8<0,SUM($M$4:M8,P8),SUM($M$4:M8)) -> 0 | R8: 0
F9: =IF(OR(D9=EOMONTH(A9,0),B9<0),SUM($B$4:B9),"") ->  | L9: 2012-05-31 | M9: 0 | N9: =IF(P9<0,SUM($M$4:M9,P9),SUM($M$4:M9)) -> 0 | R9: 0
F10: =IF(OR(D10=EOMONTH(A10,0),B10<0),SUM($B$4:B10),"") ->  | L10: 2012-06-30 | M10: 0 | N10: =IF(P10<0,SUM($M$4:M10,P10),SUM($M$4:M10)) -> 0 | R10: 0
F11: =IF(OR(D11=EOMONTH(A11,0),B11<0),SUM($B$4:B11),"") ->  | L11: 2012-07-31 | M11: 0 | N11: =IF(P11<0,SUM($M$4:M11,P11),SUM($M$4:M11)) -> 0 | R11: 0
F12: =IF(OR(D12=EOMONTH(A12,0),B12<0),SUM($B$4:B12),"") ->  | L12: 2012-08-31 | M12: 0 | N12: =IF(P12<0,SUM($M$4:M12,P12),SUM($M$4:M12)) -> 0 | R12: 0
F13: =IF(OR(D13=EOMONTH(A13,0),B13<0),SUM($B$4:B13),"") ->  | L13: 2012-09-30 | M13: 0 | N13: =IF(P13<0,SUM($M$4:M13,P13),SUM($M$4:M13)) -> 0 | R13: 0
F14: =IF(OR(D14=EOMONTH(A14,0),B14<0),SUM($B$4:B14),"") ->  | L14: 2012-10-31 | M14: 0 | N14: =IF(P14<0,SUM($M$4:M14,P14),SUM($M$4:M14)) -> 0 | R14: 0
F15: =IF(OR(D15=EOMONTH(A15,0),B15<0),SUM($B$4:B15),"") ->  | L15: 2012-11-30 | M15: 0 | N15: =IF(P15<0,SUM($M$4:M15,P15),SUM($M$4:M15)) -> 0 | R15: 0
F16: =IF(OR(D16=EOMONTH(A16,0),B16<0),SUM($B$4:B16),"") ->  | L16: 2012-12-31 | M16: 0 | N16: =IF(P16<0,SUM($M$4:M16,P16),SUM($M$4:M16)) -> 0 | R16: 0
F17: =IF(OR(D17=EOMONTH(A17,0),B17<0),SUM($B$4:B17),"") ->  | R17: =R16-H1 -> 0
F18: =IF(OR(D18=EOMONTH(A18,0),B18<0),SUM($B$4:B18),"") ->  | L18: =IF(D4=EOMONTH(D4,0),1,0) -> 1
F19: =IF(OR(D19=EOMONTH(A19,0),B19<0),SUM($B$4:B19),"") ->  | L19: =IF(B4<0,1,0) -> 0
F20: =IF(OR(D20=EOMONTH(A20,0),B20<0),SUM($B$4:B20),"") -> 
F21: =IF(OR(D21=EOMONTH(A21,0),B21<0),SUM($B$4:B21),"") -> 
F22: =IF(OR(D22=EOMONTH(A22,0),B22<0),SUM($B$4:B22),"") ->  | R22: =IFERROR(Q22+O22,"") -> 0
F23: =IF(OR(D23=EOMONTH(A23,0),B23<0),SUM($B$4:B23),"") -> 
F24: =IF(OR(D24=EOMONTH(A24,0),B24<0),SUM($B$4:B24),"") -> 
F25: =IF(OR(D25=EOMONTH(A25,0),B25<0),SUM($B$4:B25),"") -> 
F26: =IF(OR(D26=EOMONTH(A26,0),B26<0),SUM($B$4:B26),"") -> 
F27: =IF(OR(D27=EOMONTH(A27,0),B27<0),SUM($B$4:B27),"") -> 
F28: =IF(OR(D28=EOMONTH(A28,0),B28<0),SUM($B$4:B28),"") -> 
F29: =IF(OR(D29=EOMONTH(A29,0),B29<0),SUM($B$4:B29),"") -> 
F30: =IF(OR(D30=EOMONTH(A30,0),B30<0),SUM($B$4:B30),"") -> 
F31: =IF(OR(D31=EOMONTH(A31,0),B31<0),SUM($B$4:B31),"") -> 
F32: =IF(OR(D32=EOMONTH(A32,0),B32<0),SUM($B$4:B32),"") -> 
F33: =IF(OR(D33=EOMONTH(A33,0),B33<0),SUM($B$4:B33),"") -> 
F34: =IF(OR(D34=EOMONTH(A34,0),B34<0),SUM($B$4:B34),"") -> 
F35: =IF(OR(D35=EOMONTH(A35,0),B35<0),SUM($B$4:B35),"") -> 
F36: =IF(OR(D36=EOMONTH(A36,0),B36<0),SUM($B$4:B36),"") -> 
F37: =IF(OR(D37=EOMONTH(A37,0),B37<0),SUM($B$4:B37),"") -> 
F38: =IF(OR(D38=EOMONTH(A38,0),B38<0),SUM($B$4:B38),"") -> 
F39: =IF(OR(D39=EOMONTH(A39,0),B39<0),SUM($B$4:B39),"") -> 
F40: =IF(OR(D40=EOMONTH(A40,0),B40<0),SUM($B$4:B40),"") -> 
F41: =IF(OR(D41=EOMONTH(A41,0),B41<0),SUM($B$4:B41),"") -> 
F42: =IF(OR(D42=EOMONTH(A42,0),B42<0),SUM($B$4:B42),"") -> 
F43: =IF(OR(D43=EOMONTH(A43,0),B43<0),SUM($B$4:B43),"") -> 
F44: =IF(OR(D44=EOMONTH(A44,0),B44<0),SUM($B$4:B44),"") -> 
F45: =IF(OR(D45=EOMONTH(A45,0),B45<0),SUM($B$4:B45),"") -> 
F46: =IF(OR(D46=EOMONTH(A46,0),B46<0),SUM($B$4:B46),"") -> 
F47: =IF(OR(D47=EOMONTH(A47,0),B47<0),SUM($B$4:B47),"") -> 
F48: =IF(OR(D48=EOMONTH(A48,0),B48<0),SUM($B$4:B48),"") -> 
F49: =IF(OR(D49=EOMONTH(A49,0),B49<0),SUM($B$4:B49),"") -> 
F50: =IF(OR(D50=EOMONTH(A50,0),B50<0),SUM($B$4:B50),"") -> 
F51: =IF(OR(D51=EOMONTH(A51,0),B51<0),SUM($B$4:B51),"") -> 
F52: =IF(OR(D52=EOMONTH(A52,0),B52<0),SUM($B$4:B52),"") -> 
F53: =IF(OR(D53=EOMONTH(A53,0),B53<0),SUM($B$4:B53),"") -> 
F54: =IF(OR(D54=EOMONTH(A54,0),B54<0),SUM($B$4:B54),"") -> 
F55: =IF(OR(D55=EOMONTH(A55,0),B55<0),SUM($B$4:B55),"") -> 
F56: =IF(OR(D56=EOMONTH(A56,0),B56<0),SUM($B$4:B56),"") -> 
F57: =IF(OR(D57=EOMONTH(A57,0),B57<0),SUM($B$4:B57),"") -> 
F58: =IF(OR(D58=EOMONTH(A58,0),B58<0),SUM($B$4:B58),"") -> 
F59: =IF(OR(D59=EOMONTH(A59,0),B59<0),SUM($B$4:B59),"") -> 
F60: =IF(OR(D60=EOMONTH(A60,0),B60<0),SUM($B$4:B60),"") -> 
F61: =IF(OR(D61=EOMONTH(A61,0),B61<0),SUM($B$4:B61),"") -> 
F62: =IF(OR(D62=EOMONTH(A62,0),B62<0),SUM($B$4:B62),"") -> 
F63: =IF(OR(D63=EOMONTH(A63,0),B63<0),SUM($B$4:B63),"") ->  | H63: =IF(G63="a","a","") -> 
F64: =IF(OR(D64=EOMONTH(A64,0),B64<0),SUM($B$4:B64),"") -> 
F65: =IF(OR(D65=EOMONTH(A65,0),B65<0),SUM($B$4:B65),"") -> 
F66: =IF(OR(D66=EOMONTH(A66,0),B66<0),SUM($B$4:B66),"") -> 
F67: =IF(OR(D67=EOMONTH(A67,0),B67<0),SUM($B$4:B67),"") -> 
F68: =IF(OR(D68=EOMONTH(A68,0),B68<0),SUM($B$4:B68),"") -> 
D69: =IF(B69<0,"",IF(AND(D68<>"",EOMONTH(A68,0)=EOMONTH(A69,0)),"",IF(AND(G69<>G70,D68=EOMONTH(A68,0)),EOMONTH(A69,0),IF(G69=G70,"",IF(G69=$L$1,EOMONTH($G$1,0),IF(AND(G69<>G70,G69<>H69),EOMONTH(A68,0),"")))))) ->  | F69: =IF(OR(D69=EOMONTH(A69,0),B69<0),SUM($B$4:B69),"") -> 
E70: =IF(G70=G71,"",IF(D70="","",SUMIF(G:G,G70,B:B))) ->  | F70: =IF(OR(D70=EOMONTH(A70,0),B70<0),SUM($B$4:B70),"") ->  | G70: =IF(A70="","",IF(B70>0,MONTH(A70),"a")) ->  | H70: =IF(G70="a","a","") ->  | I70: =IF(J70<>"",MONTH(J70),"") ->  | J70: =IF(G70="a",A70,"") ->  | K70: =IF(G70="a",B70,"") -> 
C71: =IF(A71="","",IF(C70="",C69+1,IF(G71="a","",C70+1))) ->  | F71: =IF(OR(D71=EOMONTH(A71,0),B71<0),SUM($B$4:B71),"") -> 
F72: =IF(OR(D72=EOMONTH(A72,0),B72<0),SUM($B$4:B72),"") -> 
F73: =IF(OR(D73=EOMONTH(A73,0),B73<0),SUM($B$4:B73),"") -> 
F74: =IF(OR(D74=EOMONTH(A74,0),B74<0),SUM($B$4:B74),"") -> 
F75: =IF(OR(D75=EOMONTH(A75,0),B75<0),SUM($B$4:B75),"") -> 
F76: =IF(OR(D76=EOMONTH(A76,0),B76<0),SUM($B$4:B76),"") -> 
F77: =IF(OR(D77=EOMONTH(A77,0),B77<0),SUM($B$4:B77),"") -> 
E78: =IF(G78=G79,"",IF(D78="","",SUMIF(G:G,G78,B:B))) ->  | F78: =IF(OR(D78=EOMONTH(A78,0),B78<0),SUM($B$4:B78),"") -> 
E79: =IF(G79=G80,"",IF(D79="","",SUMIF(G:G,G79,B:B))) ->  | F79: =IF(OR(D79=EOMONTH(A79,0),B79<0),SUM($B$4:B79),"") -> 
F80: =IF(OR(D80=EOMONTH(A80,0),B80<0),SUM($B$4:B80),"") -> 
F81: =IF(OR(D81=EOMONTH(A81,0),B81<0),SUM($B$4:B81),"") -> 
F82: =IF(OR(D82=EOMONTH(A82,0),B82<0),SUM($B$4:B82),"") -> 
F83: =IF(OR(D83=EOMONTH(A83,0),B83<0),SUM($B$4:B83),"") -> 
F84: =IF(OR(D84=EOMONTH(A84,0),B84<0),SUM($B$4:B84),"") -> 
F85: =IF(OR(D85=EOMONTH(A85,0),B85<0),SUM($B$4:B85),"") -> 
F86: =IF(OR(D86=EOMONTH(A86,0),B86<0),SUM($B$4:B86),"") -> 
F87: =IF(OR(D87=EOMONTH(A87,0),B87<0),SUM($B$4:B87),"") -> 
F88: =IF(OR(D88=EOMONTH(A88,0),B88<0),SUM($B$4:B88),"") -> 
F89: =IF(OR(D89=EOMONTH(A89,0),B89<0),SUM($B$4:B89),"") -> 
F90: =IF(OR(D90=EOMONTH(A90,0),B90<0),SUM($B$4:B90),"") -> 
F91: =IF(OR(D91=EOMONTH(A91,0),B91<0),SUM($B$4:B91),"") -> 
F92: =IF(OR(D92=EOMONTH(A92,0),B92<0),SUM($B$4:B92),"") -> 
F93: =IF(OR(D93=EOMONTH(A93,0),B93<0),SUM($B$4:B93),"") -> 
F94: =IF(OR(D94=EOMONTH(A94,0),B94<0),SUM($B$4:B94),"") -> 
F95: =IF(OR(D95=EOMONTH(A95,0),B95<0),SUM($B$4:B95),"") -> 
F96: =IF(OR(D96=EOMONTH(A96,0),B96<0),SUM($B$4:B96),"") -> 
F97: =IF(OR(D97=EOMONTH(A97,0),B97<0),SUM($B$4:B97),"") -> 
F98: =IF(OR(D98=EOMONTH(A98,0),B98<0),SUM($B$4:B98),"") -> 
F99: =IF(OR(D99=EOMONTH(A99,0),B99<0),SUM($B$4:B99),"") -> 
F100: =IF(OR(D100=EOMONTH(A100,0),B100<0),SUM($B$4:B100),"") -> 

Sheet Feuil16
B1: =Feuil1!B26 -> 0 | G1: 2012-12-01 | H1: =SUM(B:B) -> 0 | L1: =MONTH(G1) -> 12
A3: DATE | B3: MONTANT | C3: N° Bon | D3: Fin Mois | E3: Total Mois | F3: G TOTAL | L3: FIN MOID | M3: SOME MOID | O3: DATE AVONCE | P3: MONTENT AVONCE | R3: TOTAL
D4: 2011-12-31 | F4: =B4 -> 0 | M4: =F4 -> 0
C5: 1 | D5: =IF(B5<0,"",IF(AND(D4<>"",EOMONTH(A4,0)=EOMONTH(A5,0)),"",IF(AND(G5<>G6,D4=EOMONTH(A4,0)),EOMONTH(A5,0),IF(G5=G6,"",IF(G5=$L$1,EOMONTH($G$1,0),IF(AND(G5<>G6,G5<>H5),EOMONTH(A4,0),"")))))) ->  | F5: =IF(OR(D5=EOMONTH(A5,0),B5<0),SUM($B$4:B5),"") ->  | G5: =IF(A5="","",IF(B5>0,MONTH(A5),"a")) ->  | H5: =IF(G5="a","a","") ->  | I5: =IF(J5<>"",MONTH(J5),"") ->  | J5: =IF(G5="a",A5,"") ->  | K5: =IF(G5="a",B5,"") ->  | L5: 2012-01-31 | M5: =IFERROR(VLOOKUP(L5,D:E,2,0),"0") -> 0 | N5: =IF(P5<0,SUM($M$4:M5,P5),SUM($M$4:M5)) -> 0 | O5: =IFERROR(VLOOKUP(MONTH(L5),I:K,2,0),"") ->  | P5: =IFERROR(VLOOKUP(MONTH(L5),I:K,3,0),"") ->  | Q5: =IFERROR(P5+N5,"") ->  | R5: =N5 -> 0
C6: =IF(A6="","",IF(C5="",C4+1,IF(G6="a","",C5+1))) ->  | E6: =IF(G6=G7,"",IF(D6="","",SUMIF(G:G,G6,B:B))) ->  | F6: =IF(OR(D6=EOMONTH(A6,0),B6<0),SUM($B$4:B6),"") ->  | G6: =IF(A6="","",IF(B6>0,MONTH(A6),"a")) ->  | H6: =IF(G6="a","a","") ->  | I6: =IF(J6<>"",MONTH(J6),"") ->  | J6: =IF(G6="a",A6,"") ->  | K6: =IF(G6="a",B6,"") ->  | L6: 2012-02-29 | M6: =IFERROR(VLOOKUP(L6,D:E,2,0),"0") -> 0 | N6: =IF(P6<0,SUM($M$4:M6,P6),SUM($M$4:M6)) -> 0 | O6: =IFERROR(VLOOKUP(MONTH(L6),I:K,2,0),"") ->  | P6: =IFERROR(VLOOKUP(MONTH(L6),I:K,3,0),"") ->  | Q6: =IFERROR(P6+N6,"") ->  | R6: =IFERROR(R5+M6+P6,R5+M6) -> 0
C7: =IF(A7="","",IF(C6="",C5+1,IF(G7="a","",C6+1))) ->  | F7: =IF(OR(D7=EOMONTH(A7,0),B7<0),SUM($B$4:B7),"") ->  | L7: 2012-03-31 | M7: 0 | N7: =IF(P7<0,SUM($M$4:M7,P7),SUM($M$4:M7)) -> 0 | R7: =IFERROR(R6+M7+P7,R6+M7) -> 0
F8: =IF(OR(D8=EOMONTH(A8,0),B8<0),SUM($B$4:B8),"") ->  | L8: 2012-04-30 | M8: 0 | N8: =IF(P8<0,SUM($M$4:M8,P8),SUM($M$4:M8)) -> 0 | R8: 0
F9: =IF(OR(D9=EOMONTH(A9,0),B9<0),SUM($B$4:B9),"") ->  | L9: 2012-05-31 | M9: 0 | N9: =IF(P9<0,SUM($M$4:M9,P9),SUM($M$4:M9)) -> 0 | R9: 0
F10: =IF(OR(D10=EOMONTH(A10,0),B10<0),SUM($B$4:B10),"") ->  | L10: 2012-06-30 | M10: 0 | N10: =IF(P10<0,SUM($M$4:M10,P10),SUM($M$4:M10)) -> 0 | R10: 0
F11: =IF(OR(D11=EOMONTH(A11,0),B11<0),SUM($B$4:B11),"") ->  | L11: 2012-07-31 | M11: 0 | N11: =IF(P11<0,SUM($M$4:M11,P11),SUM($M$4:M11)) -> 0 | R11: 0
F12: =IF(OR(D12=EOMONTH(A12,0),B12<0),SUM($B$4:B12),"") ->  | L12: 2012-08-31 | M12: 0 | N12: =IF(P12<0,SUM($M$4:M12,P12),SUM($M$4:M12)) -> 0 | R12: 0
F13: =IF(OR(D13=EOMONTH(A13,0),B13<0),SUM($B$4:B13),"") ->  | L13: 2012-09-30 | M13: 0 | N13: =IF(P13<0,SUM($M$4:M13,P13),SUM($M$4:M13)) -> 0 | R13: 0
F14: =IF(OR(D14=EOMONTH(A14,0),B14<0),SUM($B$4:B14),"") ->  | L14: 2012-10-31 | M14: 0 | N14: =IF(P14<0,SUM($M$4:M14,P14),SUM($M$4:M14)) -> 0 | R14: 0
F15: =IF(OR(D15=EOMONTH(A15,0),B15<0),SUM($B$4:B15),"") ->  | L15: 2012-11-30 | M15: 0 | N15: =IF(P15<0,SUM($M$4:M15,P15),SUM($M$4:M15)) -> 0 | R15: 0
F16: =IF(OR(D16=EOMONTH(A16,0),B16<0),SUM($B$4:B16),"") ->  | L16: 2012-12-31 | M16: 0 | N16: =IF(P16<0,SUM($M$4:M16,P16),SUM($M$4:M16)) -> 0 | R16: 0
F17: =IF(OR(D17=EOMONTH(A17,0),B17<0),SUM($B$4:B17),"") ->  | R17: =R16-H1 -> 0
F18: =IF(OR(D18=EOMONTH(A18,0),B18<0),SUM($B$4:B18),"") ->  | L18: =IF(D4=EOMONTH(D4,0),1,0) -> 1
F19: =IF(OR(D19=EOMONTH(A19,0),B19<0),SUM($B$4:B19),"") ->  | L19: =IF(B4<0,1,0) -> 0
F20: =IF(OR(D20=EOMONTH(A20,0),B20<0),SUM($B$4:B20),"") -> 
F21: =IF(OR(D21=EOMONTH(A21,0),B21<0),SUM($B$4:B21),"") -> 
F22: =IF(OR(D22=EOMONTH(A22,0),B22<0),SUM($B$4:B22),"") ->  | R22: =IFERROR(Q22+O22,"") -> 0
F23: =IF(OR(D23=EOMONTH(A23,0),B23<0),SUM($B$4:B23),"") -> 
F24: =IF(OR(D24=EOMONTH(A24,0),B24<0),SUM($B$4:B24),"") -> 
F25: =IF(OR(D25=EOMONTH(A25,0),B25<0),SUM($B$4:B25),"") -> 
F26: =IF(OR(D26=EOMONTH(A26,0),B26<0),SUM($B$4:B26),"") -> 
F27: =IF(OR(D27=EOMONTH(A27,0),B27<0),SUM($B$4:B27),"") -> 
F28: =IF(OR(D28=EOMONTH(A28,0),B28<0),SUM($B$4:B28),"") -> 
F29: =IF(OR(D29=EOMONTH(A29,0),B29<0),SUM($B$4:B29),"") -> 
F30: =IF(OR(D30=EOMONTH(A30,0),B30<0),SUM($B$4:B30),"") -> 
F31: =IF(OR(D31=EOMONTH(A31,0),B31<0),SUM($B$4:B31),"") -> 
F32: =IF(OR(D32=EOMONTH(A32,0),B32<0),SUM($B$4:B32),"") -> 
F33: =IF(OR(D33=EOMONTH(A33,0),B33<0),SUM($B$4:B33),"") -> 
F34: =IF(OR(D34=EOMONTH(A34,0),B34<0),SUM($B$4:B34),"") -> 
F35: =IF(OR(D35=EOMONTH(A35,0),B35<0),SUM($B$4:B35),"") -> 
F36: =IF(OR(D36=EOMONTH(A36,0),B36<0),SUM($B$4:B36),"") -> 
F37: =IF(OR(D37=EOMONTH(A37,0),B37<0),SUM($B$4:B37),"") -> 
F38: =IF(OR(D38=EOMONTH(A38,0),B38<0),SUM($B$4:B38),"") -> 
F39: =IF(OR(D39=EOMONTH(A39,0),B39<0),SUM($B$4:B39),"") -> 
F40: =IF(OR(D40=EOMONTH(A40,0),B40<0),SUM($B$4:B40),"") -> 
F41: =IF(OR(D41=EOMONTH(A41,0),B41<0),SUM($B$4:B41),"") -> 
F42: =IF(OR(D42=EOMONTH(A42,0),B42<0),SUM($B$4:B42),"") -> 
F43: =IF(OR(D43=EOMONTH(A43,0),B43<0),SUM($B$4:B43),"") -> 
F44: =IF(OR(D44=EOMONTH(A44,0),B44<0),SUM($B$4:B44),"") -> 
F45: =IF(OR(D45=EOMONTH(A45,0),B45<0),SUM($B$4:B45),"") -> 
F46: =IF(OR(D46=EOMONTH(A46,0),B46<0),SUM($B$4:B46),"") -> 
F47: =IF(OR(D47=EOMONTH(A47,0),B47<0),SUM($B$4:B47),"") -> 
F48: =IF(OR(D48=EOMONTH(A48,0),B48<0),SUM($B$4:B48),"") -> 
F49: =IF(OR(D49=EOMONTH(A49,0),B49<0),SUM($B$4:B49),"") -> 
F50: =IF(OR(D50=EOMONTH(A50,0),B50<0),SUM($B$4:B50),"") -> 
F51: =IF(OR(D51=EOMONTH(A51,0),B51<0),SUM($B$4:B51),"") -> 
F52: =IF(OR(D52=EOMONTH(A52,0),B52<0),SUM($B$4:B52),"") -> 
F53: =IF(OR(D53=EOMONTH(A53,0),B53<0),SUM($B$4:B53),"") -> 
F54: =IF(OR(D54=EOMONTH(A54,0),B54<0),SUM($B$4:B54),"") -> 
F55: =IF(OR(D55=EOMONTH(A55,0),B55<0),SUM($B$4:B55),"") -> 
F56: =IF(OR(D56=EOMONTH(A56,0),B56<0),SUM($B$4:B56),"") -> 
F57: =IF(OR(D57=EOMONTH(A57,0),B57<0),SUM($B$4:B57),"") -> 
F58: =IF(OR(D58=EOMONTH(A58,0),B58<0),SUM($B$4:B58),"") -> 
F59: =IF(OR(D59=EOMONTH(A59,0),B59<0),SUM($B$4:B59),"") -> 
F60: =IF(OR(D60=EOMONTH(A60,0),B60<0),SUM($B$4:B60),"") -> 
F61: =IF(OR(D61=EOMONTH(A61,0),B61<0),SUM($B$4:B61),"") -> 
F62: =IF(OR(D62=EOMONTH(A62,0),B62<0),SUM($B$4:B62),"") -> 
F63: =IF(OR(D63=EOMONTH(A63,0),B63<0),SUM($B$4:B63),"") ->  | H63: =IF(G63="a","a","") -> 
F64: =IF(OR(D64=EOMONTH(A64,0),B64<0),SUM($B$4:B64),"") -> 
F65: =IF(OR(D65=EOMONTH(A65,0),B65<0),SUM($B$4:B65),"") -> 
F66: =IF(OR(D66=EOMONTH(A66,0),B66<0),SUM($B$4:B66),"") -> 
F67: =IF(OR(D67=EOMONTH(A67,0),B67<0),SUM($B$4:B67),"") -> 
F68: =IF(OR(D68=EOMONTH(A68,0),B68<0),SUM($B$4:B68),"") -> 
D69: =IF(B69<0,"",IF(AND(D68<>"",EOMONTH(A68,0)=EOMONTH(A69,0)),"",IF(AND(G69<>G70,D68=EOMONTH(A68,0)),EOMONTH(A69,0),IF(G69=G70,"",IF(G69=$L$1,EOMONTH($G$1,0),IF(AND(G69<>G70,G69<>H69),EOMONTH(A68,0),"")))))) ->  | F69: =IF(OR(D69=EOMONTH(A69,0),B69<0),SUM($B$4:B69),"") -> 
E70: =IF(G70=G71,"",IF(D70="","",SUMIF(G:G,G70,B:B))) ->  | F70: =IF(OR(D70=EOMONTH(A70,0),B70<0),SUM($B$4:B70),"") ->  | G70: =IF(A70="","",IF(B70>0,MONTH(A70),"a")) ->  | H70: =IF(G70="a","a","") ->  | I70: =IF(J70<>"",MONTH(J70),"") ->  | J70: =IF(G70="a",A70,"") ->  | K70: =IF(G70="a",B70,"") -> 
C71: =IF(A71="","",IF(C70="",C69+1,IF(G71="a","",C70+1))) ->  | F71: =IF(OR(D71=EOMONTH(A71,0),B71<0),SUM($B$4:B71),"") -> 
F72: =IF(OR(D72=EOMONTH(A72,0),B72<0),SUM($B$4:B72),"") -> 
F73: =IF(OR(D73=EOMONTH(A73,0),B73<0),SUM($B$4:B73),"") -> 
F74: =IF(OR(D74=EOMONTH(A74,0),B74<0),SUM($B$4:B74),"") -> 
F75: =IF(OR(D75=EOMONTH(A75,0),B75<0),SUM($B$4:B75),"") -> 
F76: =IF(OR(D76=EOMONTH(A76,0),B76<0),SUM($B$4:B76),"") -> 
F77: =IF(OR(D77=EOMONTH(A77,0),B77<0),SUM($B$4:B77),"") -> 
E78: =IF(G78=G79,"",IF(D78="","",SUMIF(G:G,G78,B:B))) ->  | F78: =IF(OR(D78=EOMONTH(A78,0),B78<0),SUM($B$4:B78),"") -> 
E79: =IF(G79=G80,"",IF(D79="","",SUMIF(G:G,G79,B:B))) ->  | F79: =IF(OR(D79=EOMONTH(A79,0),B79<0),SUM($B$4:B79),"") -> 
F80: =IF(OR(D80=EOMONTH(A80,0),B80<0),SUM($B$4:B80),"") -> 
F81: =IF(OR(D81=EOMONTH(A81,0),B81<0),SUM($B$4:B81),"") -> 
F82: =IF(OR(D82=EOMONTH(A82,0),B82<0),SUM($B$4:B82),"") -> 
F83: =IF(OR(D83=EOMONTH(A83,0),B83<0),SUM($B$4:B83),"") -> 
F84: =IF(OR(D84=EOMONTH(A84,0),B84<0),SUM($B$4:B84),"") -> 
F85: =IF(OR(D85=EOMONTH(A85,0),B85<0),SUM($B$4:B85),"") -> 
F86: =IF(OR(D86=EOMONTH(A86,0),B86<0),SUM($B$4:B86),"") -> 
F87: =IF(OR(D87=EOMONTH(A87,0),B87<0),SUM($B$4:B87),"") -> 
F88: =IF(OR(D88=EOMONTH(A88,0),B88<0),SUM($B$4:B88),"") -> 
F89: =IF(OR(D89=EOMONTH(A89,0),B89<0),SUM($B$4:B89),"") -> 
F90: =IF(OR(D90=EOMONTH(A90,0),B90<0),SUM($B$4:B90),"") -> 
F91: =IF(OR(D91=EOMONTH(A91,0),B91<0),SUM($B$4:B91),"") -> 
F92: =IF(OR(D92=EOMONTH(A92,0),B92<0),SUM($B$4:B92),"") -> 
F93: =IF(OR(D93=EOMONTH(A93,0),B93<0),SUM($B$4:B93),"") -> 
F94: =IF(OR(D94=EOMONTH(A94,0),B94<0),SUM($B$4:B94),"") -> 
F95: =IF(OR(D95=EOMONTH(A95,0),B95<0),SUM($B$4:B95),"") -> 
F96: =IF(OR(D96=EOMONTH(A96,0),B96<0),SUM($B$4:B96),"") -> 
F97: =IF(OR(D97=EOMONTH(A97,0),B97<0),SUM($B$4:B97),"") -> 
F98: =IF(OR(D98=EOMONTH(A98,0),B98<0),SUM($B$4:B98),"") -> 
F99: =IF(OR(D99=EOMONTH(A99,0),B99<0),SUM($B$4:B99),"") -> 
F100: =IF(OR(D100=EOMONTH(A100,0),B100<0),SUM($B$4:B100),"") -> 

Sheet Feuil17
B1: =Feuil1!B27 -> 0 | G1: 2012-12-01 | H1: =SUM(B:B) -> 0 | L1: =MONTH(G1) -> 12
A3: DATE | B3: MONTANT | C3: N° Bon | D3: Fin Mois | E3: Total Mois | F3: G TOTAL | L3: FIN MOID | M3: SOME MOID | O3: DATE AVONCE | P3: MONTENT AVONCE | R3: TOTAL
D4: 2011-12-31 | F4: =B4 -> 0 | M4: =F4 -> 0
C5: 1 | D5: =IF(B5<0,"",IF(AND(D4<>"",EOMONTH(A4,0)=EOMONTH(A5,0)),"",IF(AND(G5<>G6,D4=EOMONTH(A4,0)),EOMONTH(A5,0),IF(G5=G6,"",IF(G5=$L$1,EOMONTH($G$1,0),IF(AND(G5<>G6,G5<>H5),EOMONTH(A4,0),"")))))) ->  | F5: =IFERROR(IFERROR(IF(AND(A6="",B6=""),VLOOKUP(A5,$O$5:$R$16,4,0),IF(B5<0,VLOOKUP(A5,$O$5:$Q$16,3,0),VLOOKUP(D5,$L$5:$R$16,7,0))),VLOOKUP(D5,$L$5:$R$16,7,0)),"") ->  | G5: =IF(A5="","",IF(B5>0,MONTH(A5),"a")) ->  | H5: =IF(G5="a","a","") ->  | I5: =IF(J5<>"",MONTH(J5),"") ->  | J5: =IF(G5="a",A5,"") ->  | K5: =IF(G5="a",B5,"") ->  | L5: 2012-01-31 | M5: =IFERROR(VLOOKUP(L5,D:E,2,0),"0") -> 0 | N5: =IF(P5<0,SUM($M$4:M5,P5),SUM($M$4:M5)) -> 0 | O5: =IFERROR(VLOOKUP(MONTH(L5),I:K,2,0),"") ->  | P5: =IFERROR(VLOOKUP(MONTH(L5),I:K,3,0),"") ->  | Q5: =IFERROR(P5+N5,"") ->  | R5: =N5 -> 0
C6: =IF(A6="","",IF(C5="",C4+1,IF(G6="a","",C5+1))) ->  | E6: =IF(G6=G7,"",IF(D6="","",SUMIF(G:G,G6,B:B))) ->  | F6: =IFERROR(IFERROR(IF(AND(A7="",B7=""),VLOOKUP(A6,$O$5:$R$16,4,0),IF(B6<0,VLOOKUP(A6,$O$5:$Q$16,3,0),VLOOKUP(D6,$L$5:$R$16,7,0))),VLOOKUP(D6,$L$5:$R$16,7,0)),"") ->  | G6: =IF(A6="","",IF(B6>0,MONTH(A6),"a")) ->  | H6: =IF(G6="a","a","") ->  | I6: =IF(J6<>"",MONTH(J6),"") ->  | J6: =IF(G6="a",A6,"") ->  | K6: =IF(G6="a",B6,"") ->  | L6: 2012-02-29 | M6: =IFERROR(VLOOKUP(L6,D:E,2,0),"0") -> 0 | N6: =IF(P6<0,SUM($M$4:M6,P6),SUM($M$4:M6)) -> 0 | O6: =IFERROR(VLOOKUP(MONTH(L6),I:K,2,0),"") ->  | P6: =IFERROR(VLOOKUP(MONTH(L6),I:K,3,0),"") ->  | Q6: =IFERROR(P6+N6,"") ->  | R6: =IFERROR(R5+M6+P6,R5+M6) -> 0
C7: =IF(A7="","",IF(C6="",C5+1,IF(G7="a","",C6+1))) ->  | L7: 2012-03-31 | M7: 0 | N7: =IF(P7<0,SUM($M$4:M7,P7),SUM($M$4:M7)) -> 0 | R7: =IFERROR(R6+M7+P7,R6+M7) -> 0
L8: 2012-04-30 | M8: 0 | N8: =IF(P8<0,SUM($M$4:M8,P8),SUM($M$4:M8)) -> 0 | R8: 0
L9: 2012-05-31 | M9: 0 | N9: =IF(P9<0,SUM($M$4:M9,P9),SUM($M$4:M9)) -> 0 | R9: 0
L10: 2012-06-30 | M10: 0 | N10: =IF(P10<0,SUM($M$4:M10,P10),SUM($M$4:M10)) -> 0 | R10: 0
L11: 2012-07-31 | M11: 0 | N11: =IF(P11<0,SUM($M$4:M11,P11),SUM($M$4:M11)) -> 0 | R11: 0
L12: 2012-08-31 | M12: 0 | N12: =IF(P12<0,SUM($M$4:M12,P12),SUM($M$4:M12)) -> 0 | R12: 0
L13: 2012-09-30 | M13: 0 | N13: =IF(P13<0,SUM($M$4:M13,P13),SUM($M$4:M13)) -> 0 | R13: 0
L14: 2012-10-31 | M14: 0 | N14: =IF(P14<0,SUM($M$4:M14,P14),SUM($M$4:M14)) -> 0 | R14: 0
L15: 2012-11-30 | M15: 0 | N15: =IF(P15<0,SUM($M$4:M15,P15),SUM($M$4:M15)) -> 0 | R15: 0
L16: 2012-12-31 | M16: 0 | N16: =IF(P16<0,SUM($M$4:M16,P16),SUM($M$4:M16)) -> 0 | R16: 0
R17: =R16-H1 -> 0
L18: =IF(D4=EOMONTH(D4,0),1,0) -> 1
L19: =IF(B4<0,1,0) -> 0
R22: =IFERROR(Q22+O22,"") -> 0
H63: =IF(G63="a","a","") -> 
D69: =IF(B69<0,"",IF(AND(D68<>"",EOMONTH(A68,0)=EOMONTH(A69,0)),"",IF(AND(G69<>G70,D68=EOMONTH(A68,0)),EOMONTH(A69,0),IF(G69=G70,"",IF(G69=$L$1,EOMONTH($G$1,0),IF(AND(G69<>G70,G69<>H69),EOMONTH(A68,0),"")))))) -> 
E70: =IF(G70=G71,"",IF(D70="","",SUMIF(G:G,G70,B:B))) ->  | F70: =IFERROR(IFERROR(IF(AND(A71="",B71=""),VLOOKUP(A70,$O$5:$R$16,4,0),IF(B70<0,VLOOKUP(A70,$O$5:$Q$16,3,0),VLOOKUP(D70,$L$5:$R$16,7,0))),VLOOKUP(D70,$L$5:$R$16,7,0)),"") ->  | G70: =IF(A70="","",IF(B70>0,MONTH(A70),"a")) ->  | H70: =IF(G70="a","a","") ->  | I70: =IF(J70<>"",MONTH(J70),"") ->  | J70: =IF(G70="a",A70,"") ->  | K70: =IF(G70="a",B70,"") -> 
C71: =IF(A71="","",IF(C70="",C69+1,IF(G71="a","",C70+1))) -> 
E78: =IF(G78=G79,"",IF(D78="","",SUMIF(G:G,G78,B:B))) -> 
E79: =IF(G79=G80,"",IF(D79="","",SUMIF(G:G,G79,B:B))) -> 

Sheet Feuil18
B1: =Feuil1!B28 -> 0 | G1: 2012-12-01 | H1: =SUM(B:B) -> 0 | L1: =MONTH(G1) -> 12
A3: DATE | B3: MONTANT | C3: N° Bon | D3: Fin Mois | E3: Total Mois | F3: G TOTAL | L3: FIN MOID | M3: SOME MOID | O3: DATE AVONCE | P3: MONTENT AVONCE | R3: TOTAL
D4: 2011-12-31 | F4: =B4 -> 0 | M4: =F4 -> 0
C5: 1 | D5: =IF(B5<0,"",IF(AND(D4<>"",EOMONTH(A4,0)=EOMONTH(A5,0)),"",IF(AND(G5<>G6,D4=EOMONTH(A4,0)),EOMONTH(A5,0),IF(G5=G6,"",IF(G5=$L$1,EOMONTH($G$1,0),IF(AND(G5<>G6,G5<>H5),EOMONTH(A4,0),"")))))) ->  | F5: =IFERROR(IFERROR(IF(AND(A6="",B6=""),VLOOKUP(A5,$O$5:$R$16,4,0),IF(B5<0,VLOOKUP(A5,$O$5:$Q$16,3,0),VLOOKUP(D5,$L$5:$R$16,7,0))),VLOOKUP(D5,$L$5:$R$16,7,0)),"") ->  | G5: =IF(A5="","",IF(B5>0,MONTH(A5),"a")) ->  | H5: =IF(G5="a","a","") ->  | I5: =IF(J5<>"",MONTH(J5),"") ->  | J5: =IF(G5="a",A5,"") ->  | K5: =IF(G5="a",B5,"") ->  | L5: 2012-01-31 | M5: =IFERROR(VLOOKUP(L5,D:E,2,0),"0") -> 0 | N5: =IF(P5<0,SUM($M$4:M5,P5),SUM($M$4:M5)) -> 0 | O5: =IFERROR(VLOOKUP(MONTH(L5),I:K,2,0),"") ->  | P5: =IFERROR(VLOOKUP(MONTH(L5),I:K,3,0),"") ->  | Q5: =IFERROR(P5+N5,"") ->  | R5: =N5 -> 0
C6: =IF(A6="","",IF(C5="",C4+1,IF(G6="a","",C5+1))) ->  | E6: =IF(G6=G7,"",IF(D6="","",SUMIF(G:G,G6,B:B))) ->  | F6: =IFERROR(IFERROR(IF(AND(A7="",B7=""),VLOOKUP(A6,$O$5:$R$16,4,0),IF(B6<0,VLOOKUP(A6,$O$5:$Q$16,3,0),VLOOKUP(D6,$L$5:$R$16,7,0))),VLOOKUP(D6,$L$5:$R$16,7,0)),"") ->  | G6: =IF(A6="","",IF(B6>0,MONTH(A6),"a")) ->  | H6: =IF(G6="a","a","") ->  | I6: =IF(J6<>"",MONTH(J6),"") ->  | J6: =IF(G6="a",A6,"") ->  | K6: =IF(G6="a",B6,"") ->  | L6: 2012-02-29 | M6: =IFERROR(VLOOKUP(L6,D:E,2,0),"0") -> 0 | N6: =IF(P6<0,SUM($M$4:M6,P6),SUM($M$4:M6)) -> 0 | O6: =IFERROR(VLOOKUP(MONTH(L6),I:K,2,0),"") ->  | P6: =IFERROR(VLOOKUP(MONTH(L6),I:K,3,0),"") ->  | Q6: =IFERROR(P6+N6,"") ->  | R6: =IFERROR(R5+M6+P6,R5+M6) -> 0
C7: =IF(A7="","",IF(C6="",C5+1,IF(G7="a","",C6+1))) ->  | L7: 2012-03-31 | M7: 0 | N7: =IF(P7<0,SUM($M$4:M7,P7),SUM($M$4:M7)) -> 0 | R7: =IFERROR(R6+M7+P7,R6+M7) -> 0
L8: 2012-04-30 | M8: 0 | N8: =IF(P8<0,SUM($M$4:M8,P8),SUM($M$4:M8)) -> 0 | R8: 0
L9: 2012-05-31 | M9: 0 | N9: =IF(P9<0,SUM($M$4:M9,P9),SUM($M$4:M9)) -> 0 | R9: 0
L10: 2012-06-30 | M10: 0 | N10: =IF(P10<0,SUM($M$4:M10,P10),SUM($M$4:M10)) -> 0 | R10: 0
L11: 2012-07-31 | M11: 0 | N11: =IF(P11<0,SUM($M$4:M11,P11),SUM($M$4:M11)) -> 0 | R11: 0
L12: 2012-08-31 | M12: 0 | N12: =IF(P12<0,SUM($M$4:M12,P12),SUM($M$4:M12)) -> 0 | R12: 0
L13: 2012-09-30 | M13: 0 | N13: =IF(P13<0,SUM($M$4:M13,P13),SUM($M$4:M13)) -> 0 | R13: 0
L14: 2012-10-31 | M14: 0 | N14: =IF(P14<0,SUM($M$4:M14,P14),SUM($M$4:M14)) -> 0 | R14: 0
L15: 2012-11-30 | M15: 0 | N15: =IF(P15<0,SUM($M$4:M15,P15),SUM($M$4:M15)) -> 0 | R15: 0
L16: 2012-12-31 | M16: 0 | N16: =IF(P16<0,SUM($M$4:M16,P16),SUM($M$4:M16)) -> 0 | R16: 0
R17: =R16-H1 -> 0
L18: =IF(D4=EOMONTH(D4,0),1,0) -> 1
L19: =IF(B4<0,1,0) -> 0
R22: =IFERROR(Q22+O22,"") -> 0
H63: =IF(G63="a","a","") -> 
D69: =IF(B69<0,"",IF(AND(D68<>"",EOMONTH(A68,0)=EOMONTH(A69,0)),"",IF(AND(G69<>G70,D68=EOMONTH(A68,0)),EOMONTH(A69,0),IF(G69=G70,"",IF(G69=$L$1,EOMONTH($G$1,0),IF(AND(G69<>G70,G69<>H69),EOMONTH(A68,0),"")))))) -> 
E70: =IF(G70=G71,"",IF(D70="","",SUMIF(G:G,G70,B:B))) ->  | F70: =IFERROR(IFERROR(IF(AND(A71="",B71=""),VLOOKUP(A70,$O$5:$R$16,4,0),IF(B70<0,VLOOKUP(A70,$O$5:$Q$16,3,0),VLOOKUP(D70,$L$5:$R$16,7,0))),VLOOKUP(D70,$L$5:$R$16,7,0)),"") ->  | G70: =IF(A70="","",IF(B70>0,MONTH(A70),"a")) ->  | H70: =IF(G70="a","a","") ->  | I70: =IF(J70<>"",MONTH(J70),"") ->  | J70: =IF(G70="a",A70,"") ->  | K70: =IF(G70="a",B70,"") -> 
C71: =IF(A71="","",IF(C70="",C69+1,IF(G71="a","",C70+1))) -> 
E78: =IF(G78=G79,"",IF(D78="","",SUMIF(G:G,G78,B:B))) -> 
E79: =IF(G79=G80,"",IF(D79="","",SUMIF(G:G,G79,B:B))) -> 

Sheet Feuil19
B1: =Feuil1!B29 -> 0 | G1: 2012-12-01 | H1: =SUM(B:B) -> 0 | L1: =MONTH(G1) -> 12
A3: DATE | B3: MONTANT | C3: N° Bon | D3: Fin Mois | E3: Total Mois | F3: G TOTAL | L3: FIN MOID | M3: SOME MOID | O3: DATE AVONCE | P3: MONTENT AVONCE | R3: TOTAL
D4: 2011-12-31 | F4: =B4 -> 0 | M4: =F4 -> 0
C5: 1 | D5: =IF(B5<0,"",IF(AND(D4<>"",EOMONTH(A4,0)=EOMONTH(A5,0)),"",IF(AND(G5<>G6,D4=EOMONTH(A4,0)),EOMONTH(A5,0),IF(G5=G6,"",IF(G5=$L$1,EOMONTH($G$1,0),IF(AND(G5<>G6,G5<>H5),EOMONTH(A4,0),"")))))) ->  | F5: =IFERROR(IFERROR(IF(AND(A6="",B6=""),VLOOKUP(A5,$O$5:$R$16,4,0),IF(B5<0,VLOOKUP(A5,$O$5:$Q$16,3,0),VLOOKUP(D5,$L$5:$R$16,7,0))),VLOOKUP(D5,$L$5:$R$16,7,0)),"") ->  | G5: =IF(A5="","",IF(B5>0,MONTH(A5),"a")) ->  | H5: =IF(G5="a","a","") ->  | I5: =IF(J5<>"",MONTH(J5),"") ->  | J5: =IF(G5="a",A5,"") ->  | K5: =IF(G5="a",B5,"") ->  | L5: 2012-01-31 | M5: =IFERROR(VLOOKUP(L5,D:E,2,0),"0") -> 0 | N5: =IF(P5<0,SUM($M$4:M5,P5),SUM($M$4:M5)) -> 0 | O5: =IFERROR(VLOOKUP(MONTH(L5),I:K,2,0),"") ->  | P5: =IFERROR(VLOOKUP(MONTH(L5),I:K,3,0),"") ->  | Q5: =IFERROR(P5+N5,"") ->  | R5: =N5 -> 0
C6: =IF(A6="","",IF(C5="",C4+1,IF(G6="a","",C5+1))) ->  | E6: =IF(G6=G7,"",IF(D6="","",SUMIF(G:G,G6,B:B))) ->  | F6: =IFERROR(IFERROR(IF(AND(A7="",B7=""),VLOOKUP(A6,$O$5:$R$16,4,0),IF(B6<0,VLOOKUP(A6,$O$5:$Q$16,3,0),VLOOKUP(D6,$L$5:$R$16,7,0))),VLOOKUP(D6,$L$5:$R$16,7,0)),"") ->  | G6: =IF(A6="","",IF(B6>0,MONTH(A6),"a")) ->  | H6: =IF(G6="a","a","") ->  | I6: =IF(J6<>"",MONTH(J6),"") ->  | J6: =IF(G6="a",A6,"") ->  | K6: =IF(G6="a",B6,"") ->  | L6: 2012-02-29 | M6: =IFERROR(VLOOKUP(L6,D:E,2,0),"0") -> 0 | N6: =IF(P6<0,SUM($M$4:M6,P6),SUM($M$4:M6)) -> 0 | O6: =IFERROR(VLOOKUP(MONTH(L6),I:K,2,0),"") ->  | P6: =IFERROR(VLOOKUP(MONTH(L6),I:K,3,0),"") ->  | Q6: =IFERROR(P6+N6,"") ->  | R6: =IFERROR(R5+M6+P6,R5+M6) -> 0
C7: =IF(A7="","",IF(C6="",C5+1,IF(G7="a","",C6+1))) ->  | L7: 2012-03-31 | M7: 0 | N7: =IF(P7<0,SUM($M$4:M7,P7),SUM($M$4:M7)) -> 0 | R7: =IFERROR(R6+M7+P7,R6+M7) -> 0
L8: 2012-04-30 | M8: 0 | N8: =IF(P8<0,SUM($M$4:M8,P8),SUM($M$4:M8)) -> 0 | R8: 0
L9: 2012-05-31 | M9: 0 | N9: =IF(P9<0,SUM($M$4:M9,P9),SUM($M$4:M9)) -> 0 | R9: 0
L10: 2012-06-30 | M10: 0 | N10: =IF(P10<0,SUM($M$4:M10,P10),SUM($M$4:M10)) -> 0 | R10: 0
L11: 2012-07-31 | M11: 0 | N11: =IF(P11<0,SUM($M$4:M11,P11),SUM($M$4:M11)) -> 0 | R11: 0
L12: 2012-08-31 | M12: 0 | N12: =IF(P12<0,SUM($M$4:M12,P12),SUM($M$4:M12)) -> 0 | R12: 0
L13: 2012-09-30 | M13: 0 | N13: =IF(P13<0,SUM($M$4:M13,P13),SUM($M$4:M13)) -> 0 | R13: 0
L14: 2012-10-31 | M14: 0 | N14: =IF(P14<0,SUM($M$4:M14,P14),SUM($M$4:M14)) -> 0 | R14: 0
L15: 2012-11-30 | M15: 0 | N15: =IF(P15<0,SUM($M$4:M15,P15),SUM($M$4:M15)) -> 0 | R15: 0
L16: 2012-12-31 | M16: 0 | N16: =IF(P16<0,SUM($M$4:M16,P16),SUM($M$4:M16)) -> 0 | R16: 0
R17: =R16-H1 -> 0
L18: =IF(D4=EOMONTH(D4,0),1,0) -> 1
L19: =IF(B4<0,1,0) -> 0
R22: =IFERROR(Q22+O22,"") -> 0
H63: =IF(G63="a","a","") -> 
D69: =IF(B69<0,"",IF(AND(D68<>"",EOMONTH(A68,0)=EOMONTH(A69,0)),"",IF(AND(G69<>G70,D68=EOMONTH(A68,0)),EOMONTH(A69,0),IF(G69=G70,"",IF(G69=$L$1,EOMONTH($G$1,0),IF(AND(G69<>G70,G69<>H69),EOMONTH(A68,0),"")))))) -> 
E70: =IF(G70=G71,"",IF(D70="","",SUMIF(G:G,G70,B:B))) ->  | F70: =IFERROR(IFERROR(IF(AND(A71="",B71=""),VLOOKUP(A70,$O$5:$R$16,4,0),IF(B70<0,VLOOKUP(A70,$O$5:$Q$16,3,0),VLOOKUP(D70,$L$5:$R$16,7,0))),VLOOKUP(D70,$L$5:$R$16,7,0)),"") ->  | G70: =IF(A70="","",IF(B70>0,MONTH(A70),"a")) ->  | H70: =IF(G70="a","a","") ->  | I70: =IF(J70<>"",MONTH(J70),"") ->  | J70: =IF(G70="a",A70,"") ->  | K70: =IF(G70="a",B70,"") -> 
C71: =IF(A71="","",IF(C70="",C69+1,IF(G71="a","",C70+1))) -> 
E78: =IF(G78=G79,"",IF(D78="","",SUMIF(G:G,G78,B:B))) -> 
E79: =IF(G79=G80,"",IF(D79="","",SUMIF(G:G,G79,B:B))) -> 

Sheet Feuil20
B1: =Feuil1!B30 -> 0 | G1: 2012-12-01 | H1: =SUM(B:B) -> 0 | L1: =MONTH(G1) -> 12
A3: DATE | B3: MONTANT | C3: N° Bon | D3: Fin Mois | E3: Total Mois | F3: G TOTAL | L3: FIN MOID | M3: SOME MOID | O3: DATE AVONCE | P3: MONTENT AVONCE | R3: TOTAL
D4: 2011-12-31 | F4: =B4 -> 0 | M4: =F4 -> 0
C5: 1 | D5: =IF(B5<0,"",IF(AND(D4<>"",EOMONTH(A4,0)=EOMONTH(A5,0)),"",IF(AND(G5<>G6,D4=EOMONTH(A4,0)),EOMONTH(A5,0),IF(G5=G6,"",IF(G5=$L$1,EOMONTH($G$1,0),IF(AND(G5<>G6,G5<>H5),EOMONTH(A4,0),"")))))) ->  | F5: =IFERROR(IFERROR(IF(AND(A6="",B6=""),VLOOKUP(A5,$O$5:$R$16,4,0),IF(B5<0,VLOOKUP(A5,$O$5:$Q$16,3,0),VLOOKUP(D5,$L$5:$R$16,7,0))),VLOOKUP(D5,$L$5:$R$16,7,0)),"") ->  | G5: =IF(A5="","",IF(B5>0,MONTH(A5),"a")) ->  | H5: =IF(G5="a","a","") ->  | I5: =IF(J5<>"",MONTH(J5),"") ->  | J5: =IF(G5="a",A5,"") ->  | K5: =IF(G5="a",B5,"") ->  | L5: 2012-01-31 | M5: =IFERROR(VLOOKUP(L5,D:E,2,0),"0") -> 0 | N5: =IF(P5<0,SUM($M$4:M5,P5),SUM($M$4:M5)) -> 0 | O5: =IFERROR(VLOOKUP(MONTH(L5),I:K,2,0),"") ->  | P5: =IFERROR(VLOOKUP(MONTH(L5),I:K,3,0),"") ->  | Q5: =IFERROR(P5+N5,"") ->  | R5: =N5 -> 0
C6: =IF(A6="","",IF(C5="",C4+1,IF(G6="a","",C5+1))) ->  | E6: =IF(G6=G7,"",IF(D6="","",SUMIF(G:G,G6,B:B))) ->  | F6: =IFERROR(IFERROR(IF(AND(A7="",B7=""),VLOOKUP(A6,$O$5:$R$16,4,0),IF(B6<0,VLOOKUP(A6,$O$5:$Q$16,3,0),VLOOKUP(D6,$L$5:$R$16,7,0))),VLOOKUP(D6,$L$5:$R$16,7,0)),"") ->  | G6: =IF(A6="","",IF(B6>0,MONTH(A6),"a")) ->  | H6: =IF(G6="a","a","") ->  | I6: =IF(J6<>"",MONTH(J6),"") ->  | J6: =IF(G6="a",A6,"") ->  | K6: =IF(G6="a",B6,"") ->  | L6: 2012-02-29 | M6: =IFERROR(VLOOKUP(L6,D:E,2,0),"0") -> 0 | N6: =IF(P6<0,SUM($M$4:M6,P6),SUM($M$4:M6)) -> 0 | O6: =IFERROR(VLOOKUP(MONTH(L6),I:K,2,0),"") ->  | P6: =IFERROR(VLOOKUP(MONTH(L6),I:K,3,0),"") ->  | Q6: =IFERROR(P6+N6,"") ->  | R6: =IFERROR(R5+M6+P6,R5+M6) -> 0
C7: =IF(A7="","",IF(C6="",C5+1,IF(G7="a","",C6+1))) ->  | L7: 2012-03-31 | M7: 0 | N7: =IF(P7<0,SUM($M$4:M7,P7),SUM($M$4:M7)) -> 0 | R7: =IFERROR(R6+M7+P7,R6+M7) -> 0
L8: 2012-04-30 | M8: 0 | N8: =IF(P8<0,SUM($M$4:M8,P8),SUM($M$4:M8)) -> 0 | R8: 0
L9: 2012-05-31 | M9: 0 | N9: =IF(P9<0,SUM($M$4:M9,P9),SUM($M$4:M9)) -> 0 | R9: 0
L10: 2012-06-30 | M10: 0 | N10: =IF(P10<0,SUM($M$4:M10,P10),SUM($M$4:M10)) -> 0 | R10: 0
L11: 2012-07-31 | M11: 0 | N11: =IF(P11<0,SUM($M$4:M11,P11),SUM($M$4:M11)) -> 0 | R11: 0
L12: 2012-08-31 | M12: 0 | N12: =IF(P12<0,SUM($M$4:M12,P12),SUM($M$4:M12)) -> 0 | R12: 0
L13: 2012-09-30 | M13: 0 | N13: =IF(P13<0,SUM($M$4:M13,P13),SUM($M$4:M13)) -> 0 | R13: 0
L14: 2012-10-31 | M14: 0 | N14: =IF(P14<0,SUM($M$4:M14,P14),SUM($M$4:M14)) -> 0 | R14: 0
L15: 2012-11-30 | M15: 0 | N15: =IF(P15<0,SUM($M$4:M15,P15),SUM($M$4:M15)) -> 0 | R15: 0
L16: 2012-12-31 | M16: 0 | N16: =IF(P16<0,SUM($M$4:M16,P16),SUM($M$4:M16)) -> 0 | R16: 0
R17: =R16-H1 -> 0
L18: =IF(D4=EOMONTH(D4,0),1,0) -> 1
L19: =IF(B4<0,1,0) -> 0
R22: =IFERROR(Q22+O22,"") -> 0
H63: =IF(G63="a","a","") -> 
D69: =IF(B69<0,"",IF(AND(D68<>"",EOMONTH(A68,0)=EOMONTH(A69,0)),"",IF(AND(G69<>G70,D68=EOMONTH(A68,0)),EOMONTH(A69,0),IF(G69=G70,"",IF(G69=$L$1,EOMONTH($G$1,0),IF(AND(G69<>G70,G69<>H69),EOMONTH(A68,0),"")))))) -> 
E70: =IF(G70=G71,"",IF(D70="","",SUMIF(G:G,G70,B:B))) ->  | F70: =IFERROR(IFERROR(IF(AND(A71="",B71=""),VLOOKUP(A70,$O$5:$R$16,4,0),IF(B70<0,VLOOKUP(A70,$O$5:$Q$16,3,0),VLOOKUP(D70,$L$5:$R$16,7,0))),VLOOKUP(D70,$L$5:$R$16,7,0)),"") ->  | G70: =IF(A70="","",IF(B70>0,MONTH(A70),"a")) ->  | H70: =IF(G70="a","a","") ->  | I70: =IF(J70<>"",MONTH(J70),"") ->  | J70: =IF(G70="a",A70,"") ->  | K70: =IF(G70="a",B70,"") -> 
C71: =IF(A71="","",IF(C70="",C69+1,IF(G71="a","",C70+1))) -> 
E78: =IF(G78=G79,"",IF(D78="","",SUMIF(G:G,G78,B:B))) -> 
E79: =IF(G79=G80,"",IF(D79="","",SUMIF(G:G,G79,B:B))) -> 

Sheet Feuil21
B1: =Feuil1!B31 -> 0 | G1: 2012-12-01 | H1: =SUM(B:B) -> 0 | L1: =MONTH(G1) -> 12
A3: DATE | B3: MONTANT | C3: N° Bon | D3: Fin Mois | E3: Total Mois | F3: G TOTAL | L3: FIN MOID | M3: SOME MOID | O3: DATE AVONCE | P3: MONTENT AVONCE | R3: TOTAL
D4: 2011-12-31 | F4: =B4 -> 0 | M4: =F4 -> 0
C5: 1 | D5: =IF(B5<0,"",IF(AND(D4<>"",EOMONTH(A4,0)=EOMONTH(A5,0)),"",IF(AND(G5<>G6,D4=EOMONTH(A4,0)),EOMONTH(A5,0),IF(G5=G6,"",IF(G5=$L$1,EOMONTH($G$1,0),IF(AND(G5<>G6,G5<>H5),EOMONTH(A4,0),"")))))) ->  | F5: =IFERROR(IFERROR(IF(AND(A6="",B6=""),VLOOKUP(A5,$O$5:$R$16,4,0),IF(B5<0,VLOOKUP(A5,$O$5:$Q$16,3,0),VLOOKUP(D5,$L$5:$R$16,7,0))),VLOOKUP(D5,$L$5:$R$16,7,0)),"") ->  | G5: =IF(A5="","",IF(B5>0,MONTH(A5),"a")) ->  | H5: =IF(G5="a","a","") ->  | I5: =IF(J5<>"",MONTH(J5),"") ->  | J5: =IF(G5="a",A5,"") ->  | K5: =IF(G5="a",B5,"") ->  | L5: 2012-01-31 | M5: =IFERROR(VLOOKUP(L5,D:E,2,0),"0") -> 0 | N5: =IF(P5<0,SUM($M$4:M5,P5),SUM($M$4:M5)) -> 0 | O5: =IFERROR(VLOOKUP(MONTH(L5),I:K,2,0),"") ->  | P5: =IFERROR(VLOOKUP(MONTH(L5),I:K,3,0),"") ->  | Q5: =IFERROR(P5+N5,"") ->  | R5: =N5 -> 0
C6: =IF(A6="","",IF(C5="",C4+1,IF(G6="a","",C5+1))) ->  | E6: =IF(G6=G7,"",IF(D6="","",SUMIF(G:G,G6,B:B))) ->  | F6: =IFERROR(IFERROR(IF(AND(A7="",B7=""),VLOOKUP(A6,$O$5:$R$16,4,0),IF(B6<0,VLOOKUP(A6,$O$5:$Q$16,3,0),VLOOKUP(D6,$L$5:$R$16,7,0))),VLOOKUP(D6,$L$5:$R$16,7,0)),"") ->  | G6: =IF(A6="","",IF(B6>0,MONTH(A6),"a")) ->  | H6: =IF(G6="a","a","") ->  | I6: =IF(J6<>"",MONTH(J6),"") ->  | J6: =IF(G6="a",A6,"") ->  | K6: =IF(G6="a",B6,"") ->  | L6: 2012-02-29 | M6: =IFERROR(VLOOKUP(L6,D:E,2,0),"0") -> 0 | N6: =IF(P6<0,SUM($M$4:M6,P6),SUM($M$4:M6)) -> 0 | O6: =IFERROR(VLOOKUP(MONTH(L6),I:K,2,0),"") ->  | P6: =IFERROR(VLOOKUP(MONTH(L6),I:K,3,0),"") ->  | Q6: =IFERROR(P6+N6,"") ->  | R6: =IFERROR(R5+M6+P6,R5+M6) -> 0
C7: =IF(A7="","",IF(C6="",C5+1,IF(G7="a","",C6+1))) ->  | L7: 2012-03-31 | M7: 0 | N7: =IF(P7<0,SUM($M$4:M7,P7),SUM($M$4:M7)) -> 0 | R7: =IFERROR(R6+M7+P7,R6+M7) -> 0
L8: 2012-04-30 | M8: 0 | N8: =IF(P8<0,SUM($M$4:M8,P8),SUM($M$4:M8)) -> 0 | R8: 0
L9: 2012-05-31 | M9: 0 | N9: =IF(P9<0,SUM($M$4:M9,P9),SUM($M$4:M9)) -> 0 | R9: 0
L10: 2012-06-30 | M10: 0 | N10: =IF(P10<0,SUM($M$4:M10,P10),SUM($M$4:M10)) -> 0 | R10: 0
L11: 2012-07-31 | M11: 0 | N11: =IF(P11<0,SUM($M$4:M11,P11),SUM($M$4:M11)) -> 0 | R11: 0
L12: 2012-08-31 | M12: 0 | N12: =IF(P12<0,SUM($M$4:M12,P12),SUM($M$4:M12)) -> 0 | R12: 0
L13: 2012-09-30 | M13: 0 | N13: =IF(P13<0,SUM($M$4:M13,P13),SUM($M$4:M13)) -> 0 | R13: 0
L14: 2012-10-31 | M14: 0 | N14: =IF(P14<0,SUM($M$4:M14,P14),SUM($M$4:M14)) -> 0 | R14: 0
L15: 2012-11-30 | M15: 0 | N15: =IF(P15<0,SUM($M$4:M15,P15),SUM($M$4:M15)) -> 0 | R15: 0
L16: 2012-12-31 | M16: 0 | N16: =IF(P16<0,SUM($M$4:M16,P16),SUM($M$4:M16)) -> 0 | R16: 0
R17: =R16-H1 -> 0
L18: =IF(D4=EOMONTH(D4,0),1,0) -> 1
L19: =IF(B4<0,1,0) -> 0
R22: =IFERROR(Q22+O22,"") -> 0
H63: =IF(G63="a","a","") -> 
D69: =IF(B69<0,"",IF(AND(D68<>"",EOMONTH(A68,0)=EOMONTH(A69,0)),"",IF(AND(G69<>G70,D68=EOMONTH(A68,0)),EOMONTH(A69,0),IF(G69=G70,"",IF(G69=$L$1,EOMONTH($G$1,0),IF(AND(G69<>G70,G69<>H69),EOMONTH(A68,0),"")))))) -> 
E70: =IF(G70=G71,"",IF(D70="","",SUMIF(G:G,G70,B:B))) ->  | F70: =IFERROR(IFERROR(IF(AND(A71="",B71=""),VLOOKUP(A70,$O$5:$R$16,4,0),IF(B70<0,VLOOKUP(A70,$O$5:$Q$16,3,0),VLOOKUP(D70,$L$5:$R$16,7,0))),VLOOKUP(D70,$L$5:$R$16,7,0)),"") ->  | G70: =IF(A70="","",IF(B70>0,MONTH(A70),"a")) ->  | H70: =IF(G70="a","a","") ->  | I70: =IF(J70<>"",MONTH(J70),"") ->  | J70: =IF(G70="a",A70,"") ->  | K70: =IF(G70="a",B70,"") -> 
C71: =IF(A71="","",IF(C70="",C69+1,IF(G71="a","",C70+1))) -> 
E78: =IF(G78=G79,"",IF(D78="","",SUMIF(G:G,G78,B:B))) -> 
E79: =IF(G79=G80,"",IF(D79="","",SUMIF(G:G,G79,B:B))) -> 
